Ref No,Fund Type,Dept,Cost Centre Description    ,Description    ,Creditor Name    ,GL Code Net Amount,Payment date        
2,Revenue,CAHD,Central - Commissioned Services,Permanent Residential,1 St Georges House,13333.52, 04-May-2021
3,Revenue,CAHD,Early Years High Needs Support,Other Private Contractors,100 Acre Wood Day Nursery,1315.20, 21-May-2021
4,Revenue,CAHD,South - Commissioned Services,Permanent Residential,2Nd Floor Building,5630.76, 04-May-2021
5,Revenue,CAHD,South - Commissioned Services,Permanent Residential,2Nd Floor Building,2806.12, 04-May-2021
6,Revenue,CAHD,Central - Commissioned Services,Other Small Contracts,3 Trees Community Support Ltd,7511.32, 11-May-2021
7,Revenue,CAHD,Central - Commissioned Services,Supported Living,3 Trees Community Support Ltd,3008.32, 11-May-2021
8,Revenue,CAHD,Central - Commissioned Services,Other Small Contracts,3 Trees Community Support Ltd,7667.59, 11-May-2021
9,Revenue,CAHD,Central - Commissioned Services,Supported Living,3 Trees Community Support Ltd,3005.78, 11-May-2021
10,Revenue,CAHD,Central - Commissioned Services,Other Small Contracts,3 Trees Community Support Ltd,7519.98, 14-May-2021
11,Revenue,CAHD,Central - Commissioned Services,Supported Living,3 Trees Community Support Ltd,3001.06, 14-May-2021
12,Revenue,CAHD,Central - Commissioned Services,Other Small Contracts,3 Trees Community Support Ltd,7517.43, 21-May-2021
13,Revenue,CAHD,Central - Commissioned Services,Supported Living,3 Trees Community Support Ltd,2998.52, 21-May-2021
14,Revenue,CAHD,South - Commissioned Services,Permanent Nursing,3Rd Floor  The Aspect,3593.88, 04-May-2021
15,Revenue,CAHD,North - Community based support,Permanent Nursing,3Rd Floor  The Aspect,3234.72, 04-May-2021
16,Revenue,CAHD,Central - Commissioned Services,Permanent Residential,5Th Floor Harlech Court,15254.92, 04-May-2021
17,Revenue,CAHD,South - Commissioned Services,Permanent Residential,5Th Floor Harlech Court,17391.48, 04-May-2021
18,Revenue,CAHD,South - Commissioned Services,Permanent Residential,5Th Floor Harlech Court,10872.36, 04-May-2021
19,Revenue,CAHD,S28A cases,Permanent Residential,5Th Floor Harlech Court,11378.60, 04-May-2021
20,Revenue,CAHD,South - Commissioned Services,Permanent Residential,5Th Floor Harlech Court,11933.40, 04-May-2021
21,Revenue,CAHD,Covid - ASC - Infection Control,Grants to Voluntary Bodies,5Th Floor Harlech Court,2630.37, 10-May-2021
22,Revenue,CAHD,ASC Rapid Testing Fund,Grants to Voluntary Bodies,5Th Floor Harlech Court,2058.94, 10-May-2021
23,Revenue,CAHD,North - Community based support,Permanent Residential,5Th Floor Harlech Court,12498.56, 04-May-2021
24,Revenue,CAHD,North - Community based support,Permanent Residential,5Th Floor Harlech Court,10537.24, 04-May-2021
25,Revenue,CAHD,North - Community based support,Permanent Residential,5Th Floor Harlech Court,9071.12, 04-May-2021
26,Revenue,CAHD,18-25 Year Olds,Day Care / Social Activities,A+bility Ltd,1216.00, 26-May-2021
27,Revenue,CAHD,Early Years Inclusion Fund,Other Public Bodies,Abacus Pre-School,1333.34, 07-May-2021
28,Revenue,CAHD,Early Years High Needs Support,Other Private Contractors,Abacus Pre-School (Meadowbrook),1673.36, 21-May-2021
29,Revenue,CAHD,South - Commissioned Services,Permanent Nursing,Acacia House,2996.00, 04-May-2021
30,Revenue,CAHD,Post 16 High Needs Placements,Other Private Contractors,Access To Music Ltd,3841.36, 04-May-2021
31,Revenue,CAHD,Post 16 High Needs Placements,Other Private Contractors,Access To Music Ltd,3841.36, 04-May-2021
32,Revenue,CAHD,CSC - Residential Placements,Permanent Residential,Acorn Care & Education Ltd,16457.14, 19-May-2021
33,Revenue,CAHD,Jointly Funded H&SC Packages,Permanent Residential,Acorn Care Providers,2364.08, 04-May-2021
34,Revenue,CAHD,Section 117 Placements MH Younger,Permanent Residential,Acorn Care Providers,5607.36, 04-May-2021
35,Revenue,CAHD,North - S117,Permanent Residential,Acorn Care Providers,4069.48, 04-May-2021
36,Revenue,CAHD,Jointly Funded H&SC Packages,Permanent Residential,Acorn Care Providers,2191.28, 04-May-2021
37,Revenue,CAHD,MH Purchasing - Younger,Permanent Residential,Acorn Care Providers,6528.83, 04-May-2021
38,Revenue,CAHD,Jointly Funded H&SC Packages,Permanent Residential,Acorn Care Providers,3515.53, 04-May-2021
39,Revenue,CAHD,MH Purchasing - Younger,Permanent Residential,Acorn Care Providers,6411.00, 04-May-2021
40,Revenue,CAHD,Covid - ASC - Infection Control,Grants to Voluntary Bodies,Acorn Care Providers,1434.75, 21-May-2021
41,Revenue,CAHD,ASC Rapid Testing Fund,Grants to Voluntary Bodies,Acorn Care Providers,1123.06, 21-May-2021
42,Revenue,CAHD,Training - Adult Services,Training Expenses,Acorn Health & Safety Limited,465.00, 07-May-2021
43,Revenue,CAHD,Training - Adult Services,Training Expenses,Acorn Health & Safety Limited,477.00, 13-May-2021
44,Revenue,CAHD,CSC - Agency Fostering,Foster Parent Allowances,Action for Children,3771.30, 20-May-2021
45,Revenue,CAHD,18-25 Year Olds,Permanent Residential,Action on Hearing Loss,5091.08, 04-May-2021
46,Revenue,CAHD,South - Commissioned Services,Respite Emergency - Residential,Administration And Revenue Centre,1650.00, 04-May-2021
47,Revenue,CAHD,South - Commissioned Services,Permanent Nursing,Administration And Revenue Centre,2502.20, 04-May-2021
48,Revenue,CAHD,South - Commissioned Services,Permanent Nursing,Administration And Revenue Centre,2502.20, 04-May-2021
49,Revenue,CAHD,South Glos Users in South Glos Homes,Permanent Nursing,Administration And Revenue Centre,750.40, 04-May-2021
50,Revenue,CAHD,South - Commissioned Services,Permanent Residential,Administration And Revenue Centre,2569.56, 04-May-2021
51,Revenue,CAHD,South Glos Users in South Glos Homes,Permanent Nursing,Administration And Revenue Centre,750.40, 04-May-2021
52,Revenue,CAHD,South - Commissioned Services,Permanent Nursing,Administration And Revenue Centre,3017.44, 04-May-2021
53,Revenue,CAHD,South Glos Users in South Glos Homes,Permanent Nursing,Administration And Revenue Centre,750.40, 04-May-2021
54,Revenue,CAHD,South Glos Users in South Glos Homes,Permanent Nursing,Administration And Revenue Centre,750.40, 04-May-2021
55,Revenue,CAHD,South - Commissioned Services,Permanent Residential,Administration And Revenue Centre,3885.71, 04-May-2021
56,Revenue,CAHD,South - Commissioned Services,Permanent Residential,Administration And Revenue Centre,3400.00, 04-May-2021
57,Revenue,CAHD,South - Commissioned Services,Permanent Residential,Administration And Revenue Centre,850.00, 04-May-2021
58,Revenue,CAHD,South Glos Users in South Glos Homes,Permanent Nursing,Administration And Revenue Centre,750.40, 04-May-2021
59,Revenue,CAHD,South - Commissioned Services,Permanent Residential,Administration And Revenue Centre,3366.00, 04-May-2021
60,Revenue,CAHD,South - Commissioned Services,Permanent Nursing,Administration And Revenue Centre,2991.84, 04-May-2021
61,Revenue,CAHD,South - Commissioned Services,Permanent Residential,Administration And Revenue Centre,3263.96, 04-May-2021
62,Revenue,CAHD,South - Commissioned Services,Permanent Residential,Administration And Revenue Centre,3263.96, 04-May-2021
63,Revenue,CAHD,South - Commissioned Services,Permanent Nursing,Administration And Revenue Centre,2569.56, 04-May-2021
64,Revenue,CAHD,South Glos Users in South Glos Homes,Permanent Nursing,Administration And Revenue Centre,750.40, 04-May-2021
65,Revenue,CAHD,South - Commissioned Services,Permanent Nursing,Administration And Revenue Centre,2502.20, 04-May-2021
66,Revenue,CAHD,South Glos Users in South Glos Homes,Permanent Nursing,Administration And Revenue Centre,750.40, 04-May-2021
67,Revenue,CAHD,South - Commissioned Services,Permanent Nursing,Administration And Revenue Centre,2502.20, 04-May-2021
68,Revenue,CAHD,South Glos Users in South Glos Homes,Permanent Nursing,Administration And Revenue Centre,750.40, 04-May-2021
69,Revenue,CAHD,South - Commissioned Services,Permanent Residential,Administration And Revenue Centre,3263.96, 04-May-2021
70,Revenue,CAHD,South - Commissioned Services,Permanent Nursing,Administration And Revenue Centre,2502.20, 04-May-2021
71,Revenue,CAHD,South Glos Users in South Glos Homes,Permanent Nursing,Administration And Revenue Centre,750.40, 04-May-2021
72,Revenue,CAHD,South - Commissioned Services,Permanent Residential,Administration And Revenue Centre,3017.44, 04-May-2021
73,Revenue,CAHD,South Glos Users in South Glos Homes,Permanent Nursing,Administration And Revenue Centre,750.40, 04-May-2021
74,Revenue,CAHD,Covid - ASC - Infection Control,Grants to Voluntary Bodies,Administration And Revenue Centre,15782.22, 10-May-2021
75,Revenue,CAHD,ASC Rapid Testing Fund,Grants to Voluntary Bodies,Administration And Revenue Centre,12353.65, 10-May-2021
76,Revenue,CAHD,Central - Commissioned Services,Respite Emergency - Residential,Administration And Revenue Centre,12021.43, 04-May-2021
77,Revenue,CAHD,Central - Commissioned Services,Permanent Nursing,Administration And Revenue Centre,3400.00, 04-May-2021
78,Revenue,CAHD,South - Commissioned Services,Permanent Residential,Administration And Revenue Centre,16514.29, 04-May-2021
79,Revenue,CAHD,South - Commissioned Services,Permanent Residential,Administration And Revenue Centre,3400.00, 04-May-2021
80,Revenue,CAHD,South - Commissioned Services,Permanent Residential,Administration And Revenue Centre,850.00, 04-May-2021
81,Revenue,CAHD,Central - Commissioned Services,Permanent Nursing,Administration And Revenue Centre,22585.71, 04-May-2021
82,Revenue,CAHD,Central - Commissioned Services,Respite Planned - Nursing,Administration And Revenue Centre,12750.00, 04-May-2021
83,Revenue,CAHD,Central - Commissioned Services,Permanent Nursing,Administration And Revenue Centre,3400.00, 04-May-2021
84,Revenue,CAHD,Central - Commissioned Services,Permanent Nursing,Administration And Revenue Centre,850.00, 04-May-2021
85,Revenue,CAHD,Pathway 1 - Re-Ablement Home Care,Other Small Contracts,Advantedge Commercial Finance Limited,792.18, 07-May-2021
86,Revenue,CAHD,South - Commissioned Services,Other Small Contracts,Advantedge Commercial Finance Limited,2313.36, 07-May-2021
87,Revenue,CAHD,South - Commissioned Services,Other Small Contracts,Advantedge Commercial Finance Limited,1088.64, 28-May-2021
88,Revenue,CAHD,South - Commissioned Services,Other Small Contracts,Advantedge Commercial Finance Limited,2386.26, 28-May-2021
89,Revenue,CAHD,South - Commissioned Services,Other Small Contracts,Advantedge Commercial Finance Limited,622.08, 28-May-2021
90,Revenue,CAHD,South - Commissioned Services,Other Small Contracts,Advantedge Commercial Finance Limited,758.16, 28-May-2021
91,Revenue,CAHD,CSC - Vinney Green Secure Unit,R & M by Departments,Affordable Skip Hire Bristol Ltd,820.00, 28-May-2021
92,Revenue,CAHD,South - Commissioned Services,Day Care / Social Activities,Age Concern,648.64, 04-May-2021
93,Revenue,CAHD,Central - Commissioned Services,Day Care / Social Activities,Age Concern,559.36, 04-May-2021
94,Revenue,CAHD,Central - Commissioned Services,Day Care / Social Activities,Age Concern,559.36, 04-May-2021
95,Revenue,CAHD,South - Commissioned Services,Other Small Contracts,Agincare UK Limited,840.42, 11-May-2021
96,Revenue,CAHD,Younger MH non-res purchasing,Other Small Contracts,Agincare UK Limited,149.73, 11-May-2021
97,Revenue,CAHD,South - Commissioned Services,Other Small Contracts,Agincare UK Limited,657.02, 11-May-2021
98,Revenue,CAHD,Younger MH non-res purchasing,Other Small Contracts,Agincare UK Limited,158.08, 11-May-2021
99,Revenue,CAHD,South - Commissioned Services,Other Small Contracts,Agincare UK Limited,666.90, 11-May-2021
100,Revenue,CAHD,Younger MH non-res purchasing,Other Small Contracts,Agincare UK Limited,158.08, 11-May-2021
101,Revenue,CAHD,Extra Care Housing,Private & Voluntary Home Care,Agincare UK Limited,29078.70, 04-May-2021
102,Revenue,CAHD,Covid - ASC - Infection Control,Grants to Voluntary Bodies,Agincare UK Limited,2813.20, 21-May-2021
103,Revenue,CAHD,Covid - ASC - Infection Control,Grants to Voluntary Bodies,Agincare UK Limited,6588.81, 21-May-2021
104,Revenue,CAHD,ASC Rapid Testing Fund,Grants to Voluntary Bodies,Agincare UK Limited,7112.84, 21-May-2021
105,Revenue,CAHD,ASC Rapid Testing Fund,Grants to Voluntary Bodies,Agincare UK Limited,16659.02, 21-May-2021
106,Revenue,CAHD,Prison Assessments & Costs,Other Supplies & Services,Agincare UK Limited,2580.00, 20-May-2021
107,Revenue,CAHD,Statemented Support Payments to OLAs,Other L.A.s - General,Air Balloon Hill Primary School,801.92, 21-May-2021
108,Revenue,CAHD,Covid 19 -Adult Social Care,Other Small Contracts,AliMo Care Ltd,9.78, 07-May-2021
109,Revenue,CAHD,South - Commissioned Services,Other Small Contracts,AliMo Care Ltd,689.49, 07-May-2021
110,Revenue,CAHD,North - Community based support,Other Small Contracts,AliMo Care Ltd,127.14, 07-May-2021
111,Revenue,CAHD,Covid 19 -Adult Social Care,Other Small Contracts,AliMo Care Ltd,9.78, 07-May-2021
112,Revenue,CAHD,South - Commissioned Services,Other Small Contracts,AliMo Care Ltd,665.04, 07-May-2021
113,Revenue,CAHD,North - Community based support,Other Small Contracts,AliMo Care Ltd,127.14, 07-May-2021
114,Revenue,CAHD,Covid 19 -Adult Social Care,Other Small Contracts,AliMo Care Ltd,9.78, 12-May-2021
115,Revenue,CAHD,South - Commissioned Services,Other Small Contracts,AliMo Care Ltd,650.37, 12-May-2021
116,Revenue,CAHD,North - Community based support,Other Small Contracts,AliMo Care Ltd,132.03, 12-May-2021
117,Revenue,CAHD,Covid 19 -Adult Social Care,Other Small Contracts,AliMo Care Ltd,9.78, 27-May-2021
118,Revenue,CAHD,South - Commissioned Services,Other Small Contracts,AliMo Care Ltd,767.73, 27-May-2021
119,Revenue,CAHD,North - Community based support,Other Small Contracts,AliMo Care Ltd,136.92, 27-May-2021
120,Revenue,CAHD,Covid - ASC - Infection Control,Grants to Voluntary Bodies,Alina Homecare Services Limited,2294.98, 10-May-2021
121,Revenue,CAHD,Central - Commissioned Services,Permanent Residential,Alvony House Residential Care Home,3000.00, 04-May-2021
122,Revenue,CAHD,CSC - Residential Placements,Permanent Residential,Ambito Care and Education,19920.87, 10-May-2021
123,Revenue,CAHD,CSC - Residential Placements,Permanent Residential,Ambito Care and Education,19930.88, 10-May-2021
124,Revenue,CAHD,CSC - Residential Placements,Permanent Residential,Ambito Care and Education,19920.87, 28-May-2021
125,Revenue,CAHD,CSC - Residential Placements,Permanent Residential,Ambito Care and Education,19930.88, 28-May-2021
126,Revenue,CAHD,Early Years High Needs Support,Other Private Contractors,Ambourne House Day Nursery,637.05, 21-May-2021
127,Revenue,CAHD,CSC - Agency Fostering,Foster Parent Allowances,Amicus Foster Care Ltd,4721.61, 04-May-2021
128,Revenue,CAHD,CSC - Agency Fostering,Foster Parent Allowances,Amicus Foster Care Ltd,4641.72, 04-May-2021
129,Revenue,CAHD,EARLY YEARS DISABILITY  ACCES FUND,Preventative Assistance,Anchor Day Nursery Ltd,615.00, 07-May-2021
130,Revenue,CAHD,Social Lettings Agency,Rent,Individual,822.73, 25-May-2021
131,Revenue,CAHD,Social Lettings Agency,Fees & Charges Income - General,Individual,-65.82, 25-May-2021
132,Revenue,CAHD,Younger MH non-res purchasing,Supported Living,Archcare Rehab Limited,2002.44, 04-May-2021
133,Revenue,CAHD,North - Community based support,Permanent Nursing,Argentum Lodge,4000.00, 04-May-2021
134,Revenue,CAHD,South - Commissioned Services,Permanent Residential,Ash View House,5656.60, 04-May-2021
135,Revenue,CAHD,Jointly Funded H&SC Packages,Permanent Residential,Ash View House,1159.72, 04-May-2021
136,Revenue,CAHD,S117 Placements PCT,Permanent Residential,Ash View House,7884.72, 04-May-2021
137,Revenue,CAHD,North - Community based support,Permanent Residential,Ash View House,7099.52, 04-May-2021
138,Revenue,CAHD,North - Community based support,Permanent Residential,Ash View House,7120.00, 04-May-2021
139,Revenue,CAHD,Section 117 Placements MH Younger,Permanent Residential,Ash View House,5138.12, 04-May-2021
140,Revenue,CAHD,Jointly Funded H&SC Packages,Permanent Residential,Ash View House,2202.12, 04-May-2021
141,Revenue,CAHD,South - S117,Permanent Residential,Ash View House,6983.64, 04-May-2021
142,Revenue,CAHD,South - Commissioned Services,Permanent Residential,Ash View House,6903.04, 04-May-2021
143,Revenue,CAHD,Covid - ASC - Infection Control,Grants to Voluntary Bodies,Ash View House,4065.12, 21-May-2021
144,Revenue,CAHD,ASC Rapid Testing Fund,Grants to Voluntary Bodies,Ash View House,3182.00, 21-May-2021
145,Revenue,CAHD,18-25 Year Olds,Other Small Contracts,Aspirations,1916.58, 07-May-2021
146,Revenue,CAHD,18-25 Year Olds,Supported Living,Aspirations,713.94, 07-May-2021
147,Revenue,CAHD,Central - Commissioned Services,Other Small Contracts,Aspirations,216.00, 07-May-2021
148,Revenue,CAHD,South - Commissioned Services,Day Care / Social Activities,Aspirations,1481.67, 07-May-2021
149,Revenue,CAHD,South - Commissioned Services,Other Small Contracts,Aspirations,7861.19, 07-May-2021
150,Revenue,CAHD,South - Commissioned Services,Supported Living,Aspirations,21916.63, 07-May-2021
151,Revenue,CAHD,North - Community based support,Supported Living,Aspirations,3440.34, 07-May-2021
152,Revenue,CAHD,18-25 Year Olds,Other Small Contracts,Aspirations,1848.12, 18-May-2021
153,Revenue,CAHD,18-25 Year Olds,Supported Living,Aspirations,567.24, 18-May-2021
154,Revenue,CAHD,Central - Commissioned Services,Other Small Contracts,Aspirations,144.00, 18-May-2021
155,Revenue,CAHD,South - Commissioned Services,Day Care / Social Activities,Aspirations,1457.22, 18-May-2021
156,Revenue,CAHD,South - Commissioned Services,Other Small Contracts,Aspirations,8129.19, 18-May-2021
157,Revenue,CAHD,South - Commissioned Services,Supported Living,Aspirations,21178.14, 18-May-2021
158,Revenue,CAHD,North - Community based support,Supported Living,Aspirations,3456.00, 18-May-2021
159,Revenue,CAHD,18-25 Year Olds,Other Small Contracts,Aspirations,1857.90, 21-May-2021
160,Revenue,CAHD,18-25 Year Olds,Supported Living,Aspirations,655.26, 21-May-2021
161,Revenue,CAHD,Central - Commissioned Services,Other Small Contracts,Aspirations,168.00, 21-May-2021
162,Revenue,CAHD,Central - Commissioned Services,Supported Living,Aspirations,1572.81, 21-May-2021
163,Revenue,CAHD,South - Commissioned Services,Day Care / Social Activities,Aspirations,1467.00, 21-May-2021
164,Revenue,CAHD,South - Commissioned Services,Other Small Contracts,Aspirations,3972.59, 21-May-2021
165,Revenue,CAHD,South - Commissioned Services,Supported Living,Aspirations,20001.18, 21-May-2021
166,Revenue,CAHD,North - Community based support,Supported Living,Aspirations,3407.46, 21-May-2021
167,Revenue,CAHD,Covid - ASC - Infection Control,Grants to Voluntary Bodies,Aspirations Support Bristol Limited,5922.53, 21-May-2021
168,Revenue,CAHD,ASC Rapid Testing Fund,Grants to Voluntary Bodies,Aspirations Support Bristol Limited,6551.30, 21-May-2021
169,Revenue,CAHD,CSC - Vinney Green Secure Unit,R & M by Departments,Assa Abloy Limited,906.91, 14-May-2021
170,Revenue,CAHD,CSC - Vinney Green Secure Unit,R & M by Departments,Assa Abloy Limited,906.91, 14-May-2021
171,Revenue,CAHD,South - Commissioned Services,Adults - Family Support,Ategi Limited,17042.85, 26-May-2021
172,Revenue,CAHD,Statemented Support Academies,Other Public Bodies,Athelstan Trust,825.30, 24-May-2021
173,Revenue,CAHD,Statemented Support Academies,Other Public Bodies,Athelstan Trust,1101.42, 24-May-2021
174,Revenue,CAHD,Statemented Support Academies,Other Public Bodies,Athelstan Trust,1367.64, 24-May-2021
175,Revenue,CAHD,Statemented Support Academies,Other Public Bodies,Athelstan Trust,1436.25, 24-May-2021
176,Revenue,CAHD,Statemented Support Academies,Other Public Bodies,Athelstan Trust,588.75, 24-May-2021
177,Revenue,CAHD,Statemented Support Academies,Other Public Bodies,Athelstan Trust,1155.42, 24-May-2021
178,Revenue,CAHD,Statemented Support Academies,Other Public Bodies,Athelstan Trust,1556.28, 24-May-2021
179,Revenue,CAHD,Statemented Support Academies,Other Public Bodies,Athelstan Trust,926.58, 24-May-2021
180,Revenue,CAHD,Statemented Support Academies,Other Public Bodies,Athelstan Trust,624.87, 24-May-2021
181,Revenue,CAHD,Academy Resource Base Funding,Other Public Bodies,Athelstan Trust,2547.96, 24-May-2021
182,Revenue,CAHD,Academy Resource Base Funding,Other Public Bodies,Athelstan Trust,2513.88, 24-May-2021
183,Revenue,CAHD,Academy Resource Base Funding,Other Public Bodies,Athelstan Trust,2513.88, 24-May-2021
184,Revenue,CAHD,Academy Resource Base Funding,Other Public Bodies,Athelstan Trust,2513.88, 24-May-2021
185,Revenue,CAHD,Academy Resource Base Funding,Other Public Bodies,Athelstan Trust,2513.88, 24-May-2021
186,Revenue,CAHD,Academy Resource Base Funding,Other Public Bodies,Athelstan Trust,2513.88, 24-May-2021
187,Revenue,CAHD,Academy Resource Base Funding,Other Public Bodies,Athelstan Trust,2513.88, 24-May-2021
188,Revenue,CAHD,Academy Resource Base Funding,Other Public Bodies,Athelstan Trust,2513.88, 24-May-2021
189,Revenue,CAHD,Academy Resource Base Funding,Other Public Bodies,Athelstan Trust,2513.88, 24-May-2021
190,Revenue,CAHD,Academy Resource Base Funding,Other Public Bodies,Athelstan Trust,2513.88, 24-May-2021
191,Revenue,CAHD,Academy Resource Base Funding,Other Public Bodies,Athelstan Trust,2513.88, 24-May-2021
192,Revenue,CAHD,Academy Resource Base Funding,Other Public Bodies,Athelstan Trust,2513.88, 24-May-2021
193,Revenue,CAHD,Academy Resource Base Funding,Other Public Bodies,Athelstan Trust,2513.88, 24-May-2021
194,Revenue,CAHD,Academy Resource Base Funding,Other Public Bodies,Athelstan Trust,2513.88, 24-May-2021
195,Revenue,CAHD,CSC - Vinney Green Secure Unit,R & M by Departments,Atus Systems Limited,777.68, 07-May-2021
196,Revenue,CAHD,Independent Special Placements - Pre 16,Other Private Contractors,Aurora Hedgeway School,15457.42, 06-May-2021
197,Revenue,CAHD,South - Commissioned Services,Permanent Residential,Autism Specialised Care Homes,6506.88, 04-May-2021
198,Revenue,CAHD,Younger Adult Mental Health,Health Services (Third Party Payments),Avon & Wiltshire Mental Health,1693.33, 07-May-2021
199,Revenue,CAHD,Younger Adult Mental Health,Agency Staff (Admin/Support Staff) Pay,Avon & Wiltshire Mental Health,9950.00, 17-May-2021
200,Revenue,CAHD,Younger Adult Mental Health,Health Services (Third Party Payments),Avon & Wiltshire Mental Health,1693.33, 07-May-2021
201,Revenue,CAHD,Younger Adult Mental Health,Agency Staff (Admin/Support Staff) Pay,Avon & Wiltshire Mental Health,5920.00, 19-May-2021
202,Revenue,CAHD,CSC - LAC - Counselling & Therapy,Other Supplies & Services,Avon & Wiltshire Mental Health,15000.00, 28-May-2021
203,Revenue,CAHD,South - Commissioned Services,Permanent Nursing,Avon Lodge Care Centre,4441.20, 04-May-2021
204,Revenue,CAHD,South Glos Users in South Glos Homes,Permanent Nursing,Avon Lodge Care Centre,750.40, 04-May-2021
205,Revenue,CAHD,South Glos Users in South Glos Homes,Permanent Nursing,Avon Lodge Care Centre,750.40, 04-May-2021
206,Revenue,CAHD,South Glos Users in South Glos Homes,Permanent Nursing,Avon Lodge Care Centre,750.40, 04-May-2021
207,Revenue,CAHD,South Glos Users in South Glos Homes,Permanent Nursing,Avon Lodge Care Centre,750.40, 04-May-2021
208,Revenue,CAHD,South Glos Users in South Glos Homes,Permanent Nursing,Avon Lodge Care Centre,750.40, 04-May-2021
209,Revenue,CAHD,South - Commissioned Services,Permanent Nursing,Avon Lodge Care Centre,3339.08, 04-May-2021
210,Revenue,CAHD,Covid 19- Spend on behalf of NHS,Respite Planned - Nursing,Avon Lodge Care Centre,4242.86, 04-May-2021
211,Revenue,CAHD,Covid 19- Spend on behalf of NHS,Respite Planned - Nursing,Avon Lodge Care Centre,1257.14, 04-May-2021
212,Revenue,CAHD,Covid 19- Spend on behalf of NHS,Respite Planned - Nursing,Avon Lodge Care Centre,1100.00, 04-May-2021
213,Revenue,CAHD,South Glos Users in South Glos Homes,Permanent Nursing,Avon Lodge Care Centre,750.40, 04-May-2021
214,Revenue,CAHD,South - Commissioned Services,Permanent Nursing,Avon Lodge Care Centre,4410.32, 04-May-2021
215,Revenue,CAHD,South Glos Users in South Glos Homes,Permanent Nursing,Avon Lodge Care Centre,750.40, 04-May-2021
216,Revenue,CAHD,South - Commissioned Services,Permanent Nursing,Avon Lodge Care Centre,3539.60, 04-May-2021
217,Revenue,CAHD,South - Commissioned Services,Permanent Nursing,Avon Lodge Care Centre,4447.88, 04-May-2021
218,Revenue,CAHD,South Glos Users in South Glos Homes,Permanent Nursing,Avon Lodge Care Centre,750.40, 04-May-2021
219,Revenue,CAHD,South Glos Users in South Glos Homes,Permanent Nursing,Avon Lodge Care Centre,750.40, 04-May-2021
220,Revenue,CAHD,South Glos Users in South Glos Homes,Permanent Nursing,Avon Lodge Care Centre,750.40, 04-May-2021
221,Revenue,CAHD,Covid 19- Spend on behalf of NHS,Respite Planned - Nursing,Avon Lodge Care Centre,4400.00, 04-May-2021
222,Revenue,CAHD,South - Commissioned Services,Permanent Nursing,Avon Lodge Care Centre,4505.12, 04-May-2021
223,Revenue,CAHD,South Glos Users in South Glos Homes,Permanent Nursing,Avon Lodge Care Centre,750.40, 04-May-2021
224,Revenue,CAHD,South - Commissioned Services,Permanent Nursing,Avon Lodge Care Centre,3887.40, 04-May-2021
225,Revenue,CAHD,South - Commissioned Services,Respite Planned - Nursing,Avon Lodge Care Centre,1730.00, 04-May-2021
226,Revenue,CAHD,South - Commissioned Services,Permanent Nursing,Avon Lodge Care Centre,4410.32, 04-May-2021
227,Revenue,CAHD,South Glos Users in South Glos Homes,Permanent Nursing,Avon Lodge Care Centre,750.40, 04-May-2021
228,Revenue,CAHD,South - Commissioned Services,Respite Planned - Nursing,Avon Lodge Care Centre,1900.00, 04-May-2021
229,Revenue,CAHD,South - Commissioned Services,Respite Planned - Nursing,Avon Lodge Care Centre,971.85, 04-May-2021
230,Revenue,CAHD,South Glos Users in South Glos Homes,Permanent Nursing,Avon Lodge Care Centre,750.40, 04-May-2021
231,Revenue,CAHD,Central - Commissioned Services,Permanent Nursing,Avon Lodge Care Centre,3974.16, 04-May-2021
232,Revenue,CAHD,South Glos Users in South Glos Homes,Permanent Nursing,Avon Lodge Care Centre,750.40, 04-May-2021
233,Revenue,CAHD,Central - Commissioned Services,Permanent Residential,Avon Lodge Care Centre,3478.20, 04-May-2021
234,Revenue,CAHD,Central - Commissioned Services,Fees & Charges Income - General,Avon Lodge Care Centre,623.09, 04-May-2021
235,Revenue,CAHD,South - Commissioned Services,Permanent Nursing,Avon Lodge Care Centre,3887.40, 04-May-2021
236,Revenue,CAHD,Covid 19- Spend on behalf of NHS,Respite Planned - Nursing,Avon Lodge Care Centre,507.39, 04-May-2021
237,Revenue,CAHD,North - Community based support,Permanent Nursing,Avon Lodge Care Centre,3130.40, 04-May-2021
238,Revenue,CAHD,Central - Commissioned Services,Permanent Nursing,Avon Lodge Care Centre,3887.40, 04-May-2021
239,Revenue,CAHD,North - Community based support,Permanent Residential,Avon Lodge Care Centre,3539.60, 04-May-2021
240,Revenue,CAHD,Covid 19- Spend on behalf of NHS,Respite Planned - Nursing,Avon Lodge Care Centre,4145.65, 04-May-2021
241,Revenue,CAHD,Covid 19- Spend on behalf of NHS,Respite Planned - Residential,Avon Lodge Care Centre,6600.00, 04-May-2021
242,Revenue,CAHD,Covid 19- Spend on behalf of NHS,Respite Planned - Nursing,Avon Lodge Care Centre,4085.71, 04-May-2021
243,Revenue,CAHD,Covid 19- Spend on behalf of NHS,Respite Planned - Nursing,Avon Lodge Care Centre,1414.29, 04-May-2021
244,Revenue,CAHD,Covid 19- Spend on behalf of NHS,Respite Planned - Nursing,Avon Lodge Care Centre,1100.00, 04-May-2021
245,Revenue,CAHD,Covid 19- Spend on behalf of NHS,Respite Planned - Nursing,Avon Lodge Care Centre,4400.00, 04-May-2021
246,Revenue,CAHD,Covid 19- Spend on behalf of NHS,Respite Planned - Nursing,Avon Lodge Care Centre,2042.86, 04-May-2021
247,Revenue,CAHD,South - Commissioned Services,Permanent Nursing,Avon Lodge Care Centre,4634.24, 04-May-2021
248,Revenue,CAHD,South Glos Users in South Glos Homes,Permanent Nursing,Avon Lodge Care Centre,750.40, 04-May-2021
249,Revenue,CAHD,South - S117,Permanent Nursing,Avon Lodge Care Centre,3974.84, 04-May-2021
250,Revenue,CAHD,South Glos Users in South Glos Homes,Permanent Nursing,Avon Lodge Care Centre,750.40, 04-May-2021
251,Revenue,CAHD,North - Community based support,Permanent Nursing,Avon Lodge Care Centre,3887.40, 04-May-2021
252,Revenue,CAHD,South - Commissioned Services,Permanent Residential,Avon Lodge Care Centre,3130.40, 04-May-2021
253,Revenue,CAHD,South Glos Users in South Glos Homes,Permanent Nursing,Avon Lodge Care Centre,750.40, 04-May-2021
254,Revenue,CAHD,South Glos Users in South Glos Homes,Permanent Nursing,Avon Lodge Care Centre,750.40, 04-May-2021
255,Revenue,CAHD,South - Commissioned Services,Permanent Nursing,Avon Lodge Care Centre,3800.00, 04-May-2021
256,Revenue,CAHD,South Glos Users in South Glos Homes,Permanent Nursing,Avon Lodge Care Centre,750.40, 04-May-2021
257,Revenue,CAHD,Covid - ASC - Infection Control,Grants to Voluntary Bodies,Avon Lodge Care Centre,14825.72, 17-May-2021
258,Revenue,CAHD,ASC Rapid Testing Fund,Grants to Voluntary Bodies,Avon Lodge Care Centre,11604.95, 17-May-2021
259,Revenue,CAHD,South - Commissioned Services,Fees & Charges Income - General,Avon Valley Care Home,1579.27, 04-May-2021
260,Revenue,CAHD,South - Commissioned Services,Respite Emergency - Residential,Avon Valley Care Home,5287.50, 04-May-2021
261,Revenue,CAHD,South - Commissioned Services,Respite Emergency - Residential,Avon Valley Care Home,2115.00, 04-May-2021
262,Revenue,CAHD,South - Commissioned Services,Respite Emergency - Residential,Avon Valley Care Home,1057.50, 04-May-2021
263,Revenue,CAHD,South - S117,Permanent Residential,Avon Valley Care Home,4092.00, 04-May-2021
264,Revenue,CAHD,South - Commissioned Services,Permanent Residential,Avon Valley Care Home,4051.08, 04-May-2021
265,Revenue,CAHD,South - Commissioned Services,Permanent Residential,Avon Valley Care Home,4051.08, 04-May-2021
266,Revenue,CAHD,South - Commissioned Services,Permanent Residential,Avon Valley Care Home,4092.00, 04-May-2021
267,Revenue,CAHD,South - Commissioned Services,Permanent Residential,Avon Valley Care Home,4092.00, 04-May-2021
268,Revenue,CAHD,South - Commissioned Services,Permanent Residential,Avon Valley Care Home,4910.40, 04-May-2021
269,Revenue,CAHD,South - Commissioned Services,Permanent Residential,Avon Valley Care Home,4051.08, 04-May-2021
270,Revenue,CAHD,South - Commissioned Services,Permanent Residential,Avon Valley Care Home,4092.00, 04-May-2021
271,Revenue,CAHD,South - Commissioned Services,Permanent Residential,Avon Valley Care Home,2115.00, 04-May-2021
272,Revenue,CAHD,South - Commissioned Services,Permanent Residential,Avon Valley Care Home,4051.08, 04-May-2021
273,Revenue,CAHD,Central - Commissioned Services,Permanent Residential,Avon Valley Care Home,4092.00, 04-May-2021
274,Revenue,CAHD,South - Commissioned Services,Respite Emergency - Residential,Avon Valley Care Home,2700.00, 04-May-2021
275,Revenue,CAHD,South - Commissioned Services,Respite Emergency - Residential,Avon Valley Care Home,920.70, 04-May-2021
276,Revenue,CAHD,Covid - ASC - Infection Control,Grants to Voluntary Bodies,Avon Valley Care Home,18651.71, 21-May-2021
277,Revenue,CAHD,ASC Rapid Testing Fund,Grants to Voluntary Bodies,Avon Valley Care Home,14599.77, 21-May-2021
278,Revenue,CAHD,North - Community based support,Permanent Residential,Avonmere Care Home,4680.00, 04-May-2021
279,Revenue,CAHD,North - Community based support,Permanent Residential,Avonmere Care Home,4892.00, 04-May-2021
280,Revenue,CAHD,North - Community based support,Permanent Residential,Avonmere Care Home,4521.68, 04-May-2021
281,Revenue,CAHD,North - Community based support,Permanent Residential,Avonmere Care Home,4600.00, 04-May-2021
282,Revenue,CAHD,North - Community based support,Permanent Residential,Avonmere Care Home,31354.29, 04-May-2021
283,Revenue,CAHD,North - Community based support,Permanent Residential,Avonmere Care Home,4720.00, 04-May-2021
284,Revenue,CAHD,North - Community based support,Permanent Residential,Avonmere Care Home,1180.00, 04-May-2021
285,Revenue,CAHD,North - Community based support,Permanent Residential,Avonmere Care Home,4892.00, 04-May-2021
286,Revenue,CAHD,South - Commissioned Services,Respite Planned - Residential,Avonmere Care Home,17442.86, 04-May-2021
287,Revenue,CAHD,Covid - ASC - Infection Control,Grants to Voluntary Bodies,Avonmere Care Home,18173.46, 21-May-2021
288,Revenue,CAHD,ASC Rapid Testing Fund,Grants to Voluntary Bodies,Avonmere Care Home,14225.42, 21-May-2021
289,Revenue,CAHD,Covid 19- Spend on behalf of NHS,Respite Planned - Nursing,Badminton Place,4285.71, 04-May-2021
290,Revenue,CAHD,North - Community based support,Permanent Nursing,Badminton Place,3474.51, 04-May-2021
291,Revenue,CAHD,North - Community based support,Permanent Nursing,Badminton Place,2258.43, 04-May-2021
292,Revenue,CAHD,North - Community based support,Permanent Nursing,Badminton Place,1389.81, 04-May-2021
293,Revenue,CAHD,North - Community based support,Permanent Nursing,Badminton Place,1216.08, 04-May-2021
294,Revenue,CAHD,Covid 19- Spend on behalf of NHS,Respite Planned - Residential,Badminton Place,4800.00, 04-May-2021
295,Revenue,CAHD,Covid 19- Spend on behalf of NHS,Respite Planned - Residential,Badminton Place,2228.57, 04-May-2021
296,Revenue,CAHD,Covid 19- Spend on behalf of NHS,Respite Planned - Nursing,Badminton Place,4628.57, 04-May-2021
297,Revenue,CAHD,Covid 19- Spend on behalf of NHS,Respite Planned - Nursing,Badminton Place,2742.86, 04-May-2021
298,Revenue,CAHD,Covid 19- Spend on behalf of NHS,Respite Planned - Nursing,Badminton Place,7200.00, 04-May-2021
299,Revenue,CAHD,Covid 19- Spend on behalf of NHS,Respite Planned - Residential,Badminton Place,21648.00, 04-May-2021
300,Revenue,CAHD,Covid 19- Spend on behalf of NHS,Respite Planned - Residential,Badminton Place,7200.00, 04-May-2021
301,Revenue,CAHD,Covid 19- Spend on behalf of NHS,Respite Planned - Residential,Badminton Place,4800.00, 04-May-2021
302,Revenue,CAHD,Covid 19- Spend on behalf of NHS,Respite Planned - Residential,Badminton Place,1542.86, 04-May-2021
303,Revenue,CAHD,Covid 19- Spend on behalf of NHS,Respite Planned - Nursing,Badminton Place,4457.14, 04-May-2021
304,Revenue,CAHD,Covid - ASC - Infection Control,Grants to Voluntary Bodies,Badminton Place,17216.97, 10-May-2021
305,Revenue,CAHD,ASC Rapid Testing Fund,Grants to Voluntary Bodies,Badminton Place,13476.71, 10-May-2021
306,Revenue,CAHD,Early Years High Needs Support,Other Private Contractors,Baker Street Nursery & Pre-School,1450.24, 21-May-2021
307,Revenue,CAHD,CSC - Vinney Green Secure Unit,Other Supplies & Services,Barnardo Services Limited,5980.00, 27-May-2021
308,Revenue,CAHD,Pensions - Non DSG,Annual Pension,Bath & North East Somerset Council,6633.42, 19-May-2021
309,Revenue,CAHD,South Glos Users in South Glos Homes,Permanent Nursing,Beaufort Grange Care Home,750.40, 04-May-2021
310,Revenue,CAHD,South Glos Users in South Glos Homes,Permanent Nursing,Beaufort Grange Care Home,750.40, 04-May-2021
311,Revenue,CAHD,South Glos Users in South Glos Homes,Permanent Nursing,Beaufort Grange Care Home,750.40, 04-May-2021
312,Revenue,CAHD,Covid 19- Spend on behalf of NHS,Respite Planned - Nursing,Beaufort Grange Care Home,36136.00, 04-May-2021
313,Revenue,CAHD,Covid 19- Spend on behalf of NHS,Respite Planned - Nursing,Beaufort Grange Care Home,18068.00, 04-May-2021
314,Revenue,CAHD,South Glos Users in South Glos Homes,Permanent Nursing,Beaufort Grange Care Home,750.40, 04-May-2021
315,Revenue,CAHD,South Glos Users in South Glos Homes,Permanent Nursing,Beaufort Grange Care Home,750.40, 04-May-2021
316,Revenue,CAHD,South Glos Users in South Glos Homes,Permanent Nursing,Beaufort Grange Care Home,750.40, 04-May-2021
317,Revenue,CAHD,South Glos Users in South Glos Homes,Permanent Nursing,Beaufort Grange Care Home,750.40, 04-May-2021
318,Revenue,CAHD,North - S117,Permanent Nursing,Beaufort Grange Care Home,4877.04, 04-May-2021
319,Revenue,CAHD,South Glos Users in South Glos Homes,Permanent Nursing,Beaufort Grange Care Home,750.40, 04-May-2021
320,Revenue,CAHD,Central - Commissioned Services,Permanent Nursing,Beaufort Grange Care Home,11784.00, 04-May-2021
321,Revenue,CAHD,South Glos Users in South Glos Homes,Permanent Nursing,Beaufort Grange Care Home,750.40, 04-May-2021
322,Revenue,CAHD,South Glos Users in South Glos Homes,Permanent Nursing,Beaufort Grange Care Home,750.40, 04-May-2021
323,Revenue,CAHD,Covid 19- Spend on behalf of NHS,Respite Planned - Nursing,Beaufort Grange Care Home,23768.00, 04-May-2021
324,Revenue,CAHD,Covid 19- Spend on behalf of NHS,Respite Planned - Nursing,Beaufort Grange Care Home,11884.00, 04-May-2021
325,Revenue,CAHD,Central - Commissioned Services,Permanent Nursing,Beaufort Grange Care Home,4932.32, 04-May-2021
326,Revenue,CAHD,South Glos Users in South Glos Homes,Permanent Nursing,Beaufort Grange Care Home,750.40, 04-May-2021
327,Revenue,CAHD,South Glos Users in South Glos Homes,Permanent Nursing,Beaufort Grange Care Home,750.40, 04-May-2021
328,Revenue,CAHD,Covid 19- Spend on behalf of NHS,Respite Planned - Nursing,Beaufort Grange Care Home,79342.71, 04-May-2021
329,Revenue,CAHD,Covid 19- Spend on behalf of NHS,Respite Planned - Nursing,Beaufort Grange Care Home,18988.00, 04-May-2021
330,Revenue,CAHD,Covid 19- Spend on behalf of NHS,Respite Planned - Nursing,Beaufort Grange Care Home,4747.00, 04-May-2021
331,Revenue,CAHD,South Glos Users in South Glos Homes,Permanent Nursing,Beaufort Grange Care Home,750.40, 04-May-2021
332,Revenue,CAHD,South Glos Users in South Glos Homes,Permanent Nursing,Beaufort Grange Care Home,750.40, 04-May-2021
333,Revenue,CAHD,South Glos Users in South Glos Homes,Permanent Nursing,Beaufort Grange Care Home,750.40, 04-May-2021
334,Revenue,CAHD,South Glos Users in South Glos Homes,Permanent Nursing,Beaufort Grange Care Home,750.40, 04-May-2021
335,Revenue,CAHD,South Glos Users in South Glos Homes,Permanent Nursing,Beaufort Grange Care Home,750.40, 04-May-2021
336,Revenue,CAHD,South Glos Users in South Glos Homes,Permanent Nursing,Beaufort Grange Care Home,750.40, 04-May-2021
337,Revenue,CAHD,South Glos Users in South Glos Homes,Permanent Nursing,Beaufort Grange Care Home,750.40, 04-May-2021
338,Revenue,CAHD,South Glos Users in South Glos Homes,Permanent Nursing,Beaufort Grange Care Home,750.40, 04-May-2021
339,Revenue,CAHD,South Glos Users in South Glos Homes,Permanent Nursing,Beaufort Grange Care Home,750.40, 04-May-2021
340,Revenue,CAHD,South Glos Users in South Glos Homes,Permanent Nursing,Beaufort Grange Care Home,750.40, 04-May-2021
341,Revenue,CAHD,South - Commissioned Services,Respite Emergency - Residential,Beaufort Grange Care Home,5500.00, 04-May-2021
342,Revenue,CAHD,Central - Commissioned Services,Permanent Nursing,Beaufort Grange Care Home,5500.00, 04-May-2021
343,Revenue,CAHD,South Glos Users in South Glos Homes,Permanent Nursing,Beaufort Grange Care Home,750.40, 04-May-2021
344,Revenue,CAHD,South Glos Users in South Glos Homes,Permanent Nursing,Beaufort Grange Care Home,750.40, 04-May-2021
345,Revenue,CAHD,North - Community based support,Permanent Nursing,Beaufort Grange Care Home,18975.14, 04-May-2021
346,Revenue,CAHD,North - Community based support,Permanent Nursing,Beaufort Grange Care Home,10024.00, 04-May-2021
347,Revenue,CAHD,North - Community based support,Respite Planned - Nursing,Beaufort Grange Care Home,3975.00, 04-May-2021
348,Revenue,CAHD,North - Community based support,Permanent Nursing,Beaufort Grange Care Home,2506.00, 04-May-2021
349,Revenue,CAHD,South Glos Users in South Glos Homes,Permanent Nursing,Beaufort Grange Care Home,750.40, 04-May-2021
350,Revenue,CAHD,South Glos Users in South Glos Homes,Permanent Nursing,Beaufort Grange Care Home,750.40, 04-May-2021
351,Revenue,CAHD,South Glos Users in South Glos Homes,Permanent Nursing,Beaufort Grange Care Home,750.40, 04-May-2021
352,Revenue,CAHD,South Glos Users in South Glos Homes,Permanent Nursing,Beaufort Grange Care Home,750.40, 04-May-2021
353,Revenue,CAHD,South Glos Users in South Glos Homes,Permanent Nursing,Beaufort Grange Care Home,750.40, 04-May-2021
354,Revenue,CAHD,South Glos Users in South Glos Homes,Permanent Nursing,Beaufort Grange Care Home,750.40, 04-May-2021
355,Revenue,CAHD,South Glos Users in South Glos Homes,Permanent Nursing,Beaufort Grange Care Home,750.40, 04-May-2021
356,Revenue,CAHD,South Glos Users in South Glos Homes,Permanent Nursing,Beaufort Grange Care Home,750.40, 04-May-2021
357,Revenue,CAHD,South Glos Users in South Glos Homes,Permanent Nursing,Beaufort Grange Care Home,750.40, 04-May-2021
358,Revenue,CAHD,South Glos Users in South Glos Homes,Permanent Nursing,Beaufort Grange Care Home,750.40, 04-May-2021
359,Revenue,CAHD,South Glos Users in South Glos Homes,Permanent Nursing,Beaufort Grange Care Home,750.40, 04-May-2021
360,Revenue,CAHD,South Glos Users in South Glos Homes,Permanent Nursing,Beaufort Grange Care Home,750.40, 04-May-2021
361,Revenue,CAHD,South Glos Users in South Glos Homes,Permanent Nursing,Beaufort Grange Care Home,750.40, 04-May-2021
362,Revenue,CAHD,South Glos Users in South Glos Homes,Permanent Nursing,Beaufort Grange Care Home,750.40, 04-May-2021
363,Revenue,CAHD,Central - Commissioned Services,Permanent Nursing,Beaufort Grange Care Home,761.76, 04-May-2021
364,Revenue,CAHD,Central - Commissioned Services,Permanent Nursing,Beaufort Grange Care Home,4570.56, 04-May-2021
365,Revenue,CAHD,South Glos Users in South Glos Homes,Permanent Nursing,Beaufort Grange Care Home,750.40, 04-May-2021
366,Revenue,CAHD,Central - Commissioned Services,Permanent Residential,Beaufort House,2991.84, 04-May-2021
367,Revenue,CAHD,Central - Commissioned Services,Permanent Residential,Beaufort House,2896.24, 04-May-2021
368,Revenue,CAHD,North - Community based support,Permanent Residential,Beaufort House,2683.16, 04-May-2021
369,Revenue,CAHD,South - Commissioned Services,Permanent Residential,Beaufort House,2647.08, 04-May-2021
370,Revenue,CAHD,Central - Commissioned Services,Permanent Residential,Beaufort House,3800.00, 04-May-2021
371,Revenue,CAHD,North - Community based support,Permanent Residential,Beaufort House,4000.00, 04-May-2021
372,Revenue,CAHD,North - Community based support,Permanent Residential,Beaufort House,1000.00, 04-May-2021
373,Revenue,CAHD,North - Community based support,Fees & Charges Income - General,Beaufort House,10746.39, 04-May-2021
374,Revenue,CAHD,North - Community based support,Permanent Residential,Beaufort House,2817.28, 04-May-2021
375,Revenue,CAHD,Central - Commissioned Services,Permanent Residential,Beaufort House,4000.00, 04-May-2021
376,Revenue,CAHD,Central - Commissioned Services,Permanent Residential,Beaufort House,1000.00, 04-May-2021
377,Revenue,CAHD,Central - Commissioned Services,Permanent Residential,Beaufort House,3200.00, 04-May-2021
378,Revenue,CAHD,Central - Commissioned Services,Permanent Residential,Beaufort House,3600.00, 04-May-2021
379,Revenue,CAHD,Central - Commissioned Services,Permanent Residential,Beaufort House,3600.00, 04-May-2021
380,Revenue,CAHD,Central - Commissioned Services,Permanent Residential,Beaufort House,3478.20, 04-May-2021
381,Revenue,CAHD,Covid - ASC - Infection Control,Grants to Voluntary Bodies,Beaufort House,6695.49, 10-May-2021
382,Revenue,CAHD,ASC Rapid Testing Fund,Grants to Voluntary Bodies,Beaufort House,5240.94, 10-May-2021
383,Revenue,CAHD,South - Commissioned Services,Permanent Residential,Beech House,3088.28, 04-May-2021
384,Revenue,CAHD,South Glos Users in South Glos Homes,Permanent Nursing,Beech House,750.40, 04-May-2021
385,Revenue,CAHD,South Glos Users in South Glos Homes,Permanent Nursing,Beech House,771.21, 04-May-2021
386,Revenue,CAHD,South Glos Users in South Glos Homes,Permanent Nursing,Beech House,750.40, 04-May-2021
387,Revenue,CAHD,South Glos Users in South Glos Homes,Permanent Nursing,Beech House,750.40, 04-May-2021
388,Revenue,CAHD,South Glos Users in South Glos Homes,Permanent Nursing,Beech House,750.40, 04-May-2021
389,Revenue,CAHD,South Glos Users in South Glos Homes,Permanent Nursing,Beech House,750.40, 04-May-2021
390,Revenue,CAHD,Central - Commissioned Services,Respite Planned - Residential,Beech House,5917.14, 04-May-2021
391,Revenue,CAHD,Central - Commissioned Services,Respite Planned - Residential,Beech House,637.18, 04-May-2021
392,Revenue,CAHD,South Glos Users in South Glos Homes,Permanent Nursing,Beech House,750.40, 04-May-2021
393,Revenue,CAHD,North - Community based support,Permanent Nursing,Beech House,4378.44, 04-May-2021
394,Revenue,CAHD,South Glos Users in South Glos Homes,Permanent Nursing,Beech House,750.40, 04-May-2021
395,Revenue,CAHD,North - Community based support,Permanent Nursing,Beech House,4378.44, 04-May-2021
396,Revenue,CAHD,South Glos Users in South Glos Homes,Permanent Nursing,Beech House,750.40, 04-May-2021
397,Revenue,CAHD,North - Community based support,Permanent Nursing,Beech House,4407.12, 04-May-2021
398,Revenue,CAHD,South Glos Users in South Glos Homes,Permanent Nursing,Beech House,750.40, 04-May-2021
399,Revenue,CAHD,South Glos Users in South Glos Homes,Permanent Nursing,Beech House,750.40, 04-May-2021
400,Revenue,CAHD,South Glos Users in South Glos Homes,Permanent Nursing,Beech House,750.40, 04-May-2021
401,Revenue,CAHD,North - Community based support,Permanent Nursing,Beech House,4460.28, 04-May-2021
402,Revenue,CAHD,South Glos Users in South Glos Homes,Permanent Nursing,Beech House,750.40, 04-May-2021
403,Revenue,CAHD,South Glos Users in South Glos Homes,Permanent Nursing,Beech House,750.40, 04-May-2021
404,Revenue,CAHD,South Glos Users in South Glos Homes,Permanent Nursing,Beech House,750.40, 04-May-2021
405,Revenue,CAHD,South Glos Users in South Glos Homes,Permanent Nursing,Beech House,750.40, 04-May-2021
406,Revenue,CAHD,North - Community based support,Permanent Residential,Beech House,4460.28, 04-May-2021
407,Revenue,CAHD,Covid - ASC - Infection Control,Grants to Voluntary Bodies,Beech House,13151.85, 10-May-2021
408,Revenue,CAHD,ASC Rapid Testing Fund,Grants to Voluntary Bodies,Beech House,10294.71, 10-May-2021
409,Revenue,CAHD,South Glos Users in South Glos Homes,Permanent Nursing,Beechwood Care Home,1044.00, 04-May-2021
410,Revenue,CAHD,South - S117,Permanent Residential,Bidna House,3774.24, 04-May-2021
411,Revenue,CAHD,South - S117,Permanent Residential,Bidna House,943.56, 04-May-2021
412,Revenue,CAHD,Placements OLA Special Schools and RB,Other L.A.s - General,Blaise High School,834.87, 21-May-2021
413,Revenue,CAHD,Statemented Support Payments to OLAs,Other L.A.s - General,Blaise High School,907.83, 21-May-2021
414,Revenue,CAHD,Central - Commissioned Services,Other Small Contracts,Blakehill Healthcare Ltd,5650.00, 11-May-2021
415,Revenue,CAHD,South - Commissioned Services,Other Small Contracts,Blakehill Healthcare Ltd,4551.18, 11-May-2021
416,Revenue,CAHD,North - Community based support,Other Small Contracts,Blakehill Healthcare Ltd,6120.88, 11-May-2021
417,Revenue,CAHD,Central - Commissioned Services,Other Small Contracts,Blakehill Healthcare Ltd,5431.25, 18-May-2021
418,Revenue,CAHD,South - Commissioned Services,Other Small Contracts,Blakehill Healthcare Ltd,4638.79, 18-May-2021
419,Revenue,CAHD,North - Community based support,Other Small Contracts,Blakehill Healthcare Ltd,5927.12, 18-May-2021
420,Revenue,CAHD,Central - Commissioned Services,Other Small Contracts,Blakehill Healthcare Ltd,5600.00, 11-May-2021
421,Revenue,CAHD,South - Commissioned Services,Other Small Contracts,Blakehill Healthcare Ltd,4389.25, 11-May-2021
422,Revenue,CAHD,North - Community based support,Other Small Contracts,Blakehill Healthcare Ltd,6449.00, 11-May-2021
423,Revenue,CAHD,Central - Commissioned Services,Other Small Contracts,Blakehill Healthcare Ltd,4943.75, 18-May-2021
424,Revenue,CAHD,South - Commissioned Services,Other Small Contracts,Blakehill Healthcare Ltd,4459.81, 18-May-2021
425,Revenue,CAHD,North - Community based support,Other Small Contracts,Blakehill Healthcare Ltd,7303.80, 18-May-2021
426,Revenue,CAHD,Central - Commissioned Services,Other Small Contracts,Blakehill Healthcare Ltd,4750.00, 25-May-2021
427,Revenue,CAHD,South - Commissioned Services,Other Small Contracts,Blakehill Healthcare Ltd,4503.56, 25-May-2021
428,Revenue,CAHD,North - Community based support,Other Small Contracts,Blakehill Healthcare Ltd,5387.90, 25-May-2021
429,Revenue,CAHD,Covid - ASC - Infection Control,Grants to Voluntary Bodies,Blakehill Healthcare Ltd,2443.04, 17-May-2021
430,Revenue,CAHD,South Glos Users in South Glos Homes,Permanent Nursing,Blossom Fields Nursing Home,750.40, 04-May-2021
431,Revenue,CAHD,North - Community based support,Permanent Residential,Blossom Fields Nursing Home,4132.12, 04-May-2021
432,Revenue,CAHD,South Glos Users in South Glos Homes,Permanent Nursing,Blossom Fields Nursing Home,750.40, 04-May-2021
433,Revenue,CAHD,South Glos Users in South Glos Homes,Permanent Nursing,Blossom Fields Nursing Home,750.40, 04-May-2021
434,Revenue,CAHD,South Glos Users in South Glos Homes,Permanent Nursing,Blossom Fields Nursing Home,750.40, 04-May-2021
435,Revenue,CAHD,North - Community based support,Permanent Nursing,Blossom Fields Nursing Home,4880.12, 04-May-2021
436,Revenue,CAHD,South Glos Users in South Glos Homes,Permanent Nursing,Blossom Fields Nursing Home,750.40, 04-May-2021
437,Revenue,CAHD,South Glos Users in South Glos Homes,Permanent Nursing,Blossom Fields Nursing Home,750.40, 04-May-2021
438,Revenue,CAHD,South - Commissioned Services,Permanent Nursing,Blossom Fields Nursing Home,4604.88, 04-May-2021
439,Revenue,CAHD,South Glos Users in South Glos Homes,Permanent Nursing,Blossom Fields Nursing Home,750.40, 04-May-2021
440,Revenue,CAHD,South Glos Users in South Glos Homes,Permanent Nursing,Blossom Fields Nursing Home,750.40, 04-May-2021
441,Revenue,CAHD,North - Community based support,Permanent Nursing,Blossom Fields Nursing Home,4910.28, 04-May-2021
442,Revenue,CAHD,South Glos Users in South Glos Homes,Permanent Nursing,Blossom Fields Nursing Home,750.40, 04-May-2021
443,Revenue,CAHD,South Glos Users in South Glos Homes,Permanent Nursing,Blossom Fields Nursing Home,750.40, 04-May-2021
444,Revenue,CAHD,South Glos Users in South Glos Homes,Permanent Nursing,Blossom Fields Nursing Home,750.40, 04-May-2021
445,Revenue,CAHD,North - Community based support,Permanent Nursing,Blossom Fields Nursing Home,4910.40, 04-May-2021
446,Revenue,CAHD,South Glos Users in South Glos Homes,Permanent Nursing,Blossom Fields Nursing Home,750.40, 04-May-2021
447,Revenue,CAHD,South Glos Users in South Glos Homes,Permanent Nursing,Blossom Fields Nursing Home,750.40, 04-May-2021
448,Revenue,CAHD,South Glos Users in South Glos Homes,Permanent Nursing,Blossom Fields Nursing Home,750.40, 04-May-2021
449,Revenue,CAHD,South Glos Users in South Glos Homes,Permanent Nursing,Blossom Fields Nursing Home,750.40, 04-May-2021
450,Revenue,CAHD,North - Community based support,Permanent Residential,Blossom Fields Nursing Home,4132.12, 04-May-2021
451,Revenue,CAHD,South Glos Users in South Glos Homes,Permanent Nursing,Blossom Fields Nursing Home,750.40, 04-May-2021
452,Revenue,CAHD,South Glos Users in South Glos Homes,Permanent Nursing,Blossom Fields Nursing Home,972.15, 04-May-2021
453,Revenue,CAHD,South Glos Users in South Glos Homes,Permanent Nursing,Blossom Fields Nursing Home,750.40, 04-May-2021
454,Revenue,CAHD,South Glos Users in South Glos Homes,Permanent Nursing,Blossom Fields Nursing Home,750.40, 04-May-2021
455,Revenue,CAHD,South Glos Users in South Glos Homes,Permanent Nursing,Blossom Fields Nursing Home,1366.26, 04-May-2021
456,Revenue,CAHD,South Glos Users in South Glos Homes,Permanent Nursing,Blossom Fields Nursing Home,750.40, 04-May-2021
457,Revenue,CAHD,Covid 19- Spend on behalf of NHS,Respite Planned - Nursing,Blossom Fields Nursing Home,4092.75, 04-May-2021
458,Revenue,CAHD,South Glos Users in South Glos Homes,Permanent Nursing,Blossom Fields Nursing Home,750.40, 04-May-2021
459,Revenue,CAHD,Central - Commissioned Services,Permanent Nursing,Blossom Fields Nursing Home,4132.12, 04-May-2021
460,Revenue,CAHD,South Glos Users in South Glos Homes,Permanent Nursing,Blossom Fields Nursing Home,750.40, 04-May-2021
461,Revenue,CAHD,South Glos Users in South Glos Homes,Permanent Nursing,Blossom Fields Nursing Home,750.40, 04-May-2021
462,Revenue,CAHD,South Glos Users in South Glos Homes,Permanent Nursing,Blossom Fields Nursing Home,750.40, 04-May-2021
463,Revenue,CAHD,South Glos Users in South Glos Homes,Permanent Nursing,Blossom Fields Nursing Home,750.40, 04-May-2021
464,Revenue,CAHD,South Glos Users in South Glos Homes,Permanent Nursing,Blossom Fields Nursing Home,750.40, 04-May-2021
465,Revenue,CAHD,South Glos Users in South Glos Homes,Permanent Nursing,Blossom Fields Nursing Home,630.58, 04-May-2021
466,Revenue,CAHD,South Glos Users in South Glos Homes,Permanent Nursing,Blossom Fields Nursing Home,578.03, 04-May-2021
467,Revenue,CAHD,North - Community based support,Permanent Nursing,Blossom Fields Nursing Home,4132.12, 04-May-2021
468,Revenue,CAHD,South Glos Users in South Glos Homes,Permanent Nursing,Blossom Fields Nursing Home,750.40, 04-May-2021
469,Revenue,CAHD,Central - Commissioned Services,Permanent Nursing,Blossom Fields Nursing Home,12838.89, 04-May-2021
470,Revenue,CAHD,Central - Commissioned Services,Permanent Nursing,Blossom Fields Nursing Home,4132.12, 04-May-2021
471,Revenue,CAHD,Central - Commissioned Services,Permanent Nursing,Blossom Fields Nursing Home,1033.03, 04-May-2021
472,Revenue,CAHD,South Glos Users in South Glos Homes,Permanent Nursing,Blossom Fields Nursing Home,750.40, 04-May-2021
473,Revenue,CAHD,South Glos Users in South Glos Homes,Permanent Nursing,Blossom Fields Nursing Home,750.40, 04-May-2021
474,Revenue,CAHD,North - Community based support,Permanent Nursing,Blossom Fields Nursing Home,3792.92, 04-May-2021
475,Revenue,CAHD,South Glos Users in South Glos Homes,Permanent Nursing,Blossom Fields Nursing Home,750.40, 04-May-2021
476,Revenue,CAHD,Covid - ASC - Infection Control,Grants to Voluntary Bodies,Blossom Fields Nursing Home,10282.36, 17-May-2021
477,Revenue,CAHD,ASC Rapid Testing Fund,Grants to Voluntary Bodies,Blossom Fields Nursing Home,8048.59, 17-May-2021
478,Revenue,CAHD,South - Commissioned Services,Permanent Nursing,Blossom Fields Nursing Home,4132.12, 04-May-2021
479,Revenue,CAHD,South Glos Users in South Glos Homes,Permanent Nursing,Blossom Fields Nursing Home,750.40, 04-May-2021
480,Revenue,CAHD,Covid 19- Spend on behalf of NHS,Respite Planned - Nursing,Blossom Fields Nursing Home,1705.31, 04-May-2021
481,Revenue,CAHD,South Glos Users in South Glos Homes,Permanent Nursing,Blossom Fields Nursing Home,750.40, 04-May-2021
482,Revenue,CAHD,Central - Commissioned Services,Permanent Nursing,Blossom Fields Nursing Home,4132.12, 04-May-2021
483,Revenue,CAHD,South Glos Users in South Glos Homes,Permanent Nursing,Blossom Fields Nursing Home,750.40, 04-May-2021
484,Revenue,CAHD,South Glos Users in South Glos Homes,Permanent Nursing,Blossom Fields Nursing Home,750.40, 04-May-2021
485,Revenue,CAHD,South - Commissioned Services,Permanent Nursing,Blossom Fields Nursing Home,4790.76, 04-May-2021
486,Revenue,CAHD,South Glos Users in South Glos Homes,Permanent Nursing,Blossom Fields Nursing Home,750.40, 04-May-2021
487,Revenue,CAHD,Central - Commissioned Services,Permanent Nursing,Blossom Fields Nursing Home,5123.80, 04-May-2021
488,Revenue,CAHD,South Glos Users in South Glos Homes,Permanent Nursing,Blossom Fields Nursing Home,750.40, 04-May-2021
489,Revenue,CAHD,Central - Commissioned Services,Permanent Nursing,Blossom Fields Nursing Home,4132.12, 04-May-2021
490,Revenue,CAHD,South - Commissioned Services,Permanent Nursing,Blossom Fields Nursing Home,3943.04, 04-May-2021
491,Revenue,CAHD,South Glos Users in South Glos Homes,Permanent Nursing,Blossom Fields Nursing Home,750.40, 04-May-2021
492,Revenue,CAHD,North - Community based support,Permanent Nursing,Blossom Fields Nursing Home,4132.12, 04-May-2021
493,Revenue,CAHD,South Glos Users in South Glos Homes,Permanent Nursing,Blossom Fields Nursing Home,750.40, 04-May-2021
494,Revenue,CAHD,Central - Commissioned Services,Permanent Nursing,Blossom Fields Nursing Home,32169.34, 04-May-2021
495,Revenue,CAHD,Central - Commissioned Services,Fees & Charges Income - General,Blossom Fields Nursing Home,7422.22, 04-May-2021
496,Revenue,CAHD,Central - Commissioned Services,Permanent Nursing,Blossom Fields Nursing Home,4132.12, 04-May-2021
497,Revenue,CAHD,South Glos Users in South Glos Homes,Permanent Nursing,Blossom Fields Nursing Home,750.40, 04-May-2021
498,Revenue,CAHD,Central - Commissioned Services,Permanent Nursing,Blossom Fields Nursing Home,1033.03, 04-May-2021
499,Revenue,CAHD,Central - Commissioned Services,Fees & Charges Income - General,Blossom Fields Nursing Home,19907.49, 04-May-2021
500,Revenue,CAHD,Central - Commissioned Services,Permanent Nursing,Blossom Fields Nursing Home,20051.74, 04-May-2021
501,Revenue,CAHD,Central - Commissioned Services,Fees & Charges Income - General,Blossom Fields Nursing Home,11215.12, 04-May-2021
502,Revenue,CAHD,Central - Commissioned Services,Fees & Charges Income - General,Blossom Fields Nursing Home,4720.67, 04-May-2021
503,Revenue,CAHD,Central - Commissioned Services,Permanent Nursing,Blossom Fields Nursing Home,4790.76, 04-May-2021
504,Revenue,CAHD,South Glos Users in South Glos Homes,Permanent Nursing,Blossom Fields Nursing Home,750.40, 04-May-2021
505,Revenue,CAHD,South - Commissioned Services,Permanent Residential,Blossom Fields Nursing Home,5115.00, 04-May-2021
506,Revenue,CAHD,South - Commissioned Services,Permanent Residential,Blossom Fields Nursing Home,4800.00, 04-May-2021
507,Revenue,CAHD,South - Commissioned Services,Permanent Residential,Blossom Fields Nursing Home,2857.14, 04-May-2021
508,Revenue,CAHD,South Glos Users in South Glos Homes,Permanent Nursing,Blossom Fields Nursing Home,750.40, 04-May-2021
509,Revenue,CAHD,Central - Commissioned Services,Permanent Nursing,Blossom Fields Nursing Home,4782.96, 04-May-2021
510,Revenue,CAHD,South Glos Users in South Glos Homes,Permanent Nursing,Blossom Fields Nursing Home,750.40, 04-May-2021
511,Revenue,CAHD,North - Community based support,Permanent Nursing,Blossom Fields Nursing Home,5319.60, 04-May-2021
512,Revenue,CAHD,South Glos Users in South Glos Homes,Permanent Nursing,Blossom Fields Nursing Home,750.40, 04-May-2021
513,Revenue,CAHD,South Glos Users in South Glos Homes,Permanent Nursing,Blossom Fields Nursing Home,750.40, 04-May-2021
514,Revenue,CAHD,North - S117,Permanent Residential,Blossom Fields Nursing Home,4910.40, 04-May-2021
515,Revenue,CAHD,South Glos Users in South Glos Homes,Permanent Nursing,Blossom Fields Nursing Home,750.40, 04-May-2021
516,Revenue,CAHD,South Glos Users in South Glos Homes,Permanent Nursing,Blossom Fields Nursing Home,750.40, 04-May-2021
517,Revenue,CAHD,North - S117,Permanent Residential,Blossom Fields Nursing Home,5115.00, 04-May-2021
518,Revenue,CAHD,South Glos Users in South Glos Homes,Permanent Nursing,Blossom Fields Nursing Home,750.40, 04-May-2021
519,Revenue,CAHD,South Glos Users in South Glos Homes,Permanent Nursing,Blossom Fields Nursing Home,750.40, 04-May-2021
520,Revenue,CAHD,Central - Commissioned Services,Permanent Nursing,Blossom Fields Nursing Home,4818.72, 04-May-2021
521,Revenue,CAHD,South Glos Users in South Glos Homes,Permanent Nursing,Blossom Fields Nursing Home,750.40, 04-May-2021
522,Revenue,CAHD,South Glos Users in South Glos Homes,Permanent Nursing,Blossom Fields Nursing Home,750.40, 04-May-2021
523,Revenue,CAHD,Central - Commissioned Services,Permanent Nursing,Blossom Fields Nursing Home,4132.12, 04-May-2021
524,Revenue,CAHD,South Glos Users in South Glos Homes,Permanent Nursing,Blossom Fields Nursing Home,750.40, 04-May-2021
525,Revenue,CAHD,South Glos Users in South Glos Homes,Permanent Nursing,Blossom Fields Nursing Home,750.40, 04-May-2021
526,Revenue,CAHD,South Glos Users in South Glos Homes,Permanent Nursing,Blossom Fields Nursing Home,750.40, 04-May-2021
527,Revenue,CAHD,South Glos Users in South Glos Homes,Permanent Nursing,Blossom Fields Nursing Home,750.40, 04-May-2021
528,Revenue,CAHD,South - Commissioned Services,Permanent Nursing,Blossom Fields Nursing Home,5000.00, 04-May-2021
529,Revenue,CAHD,South Glos Users in South Glos Homes,Permanent Nursing,Blossom Fields Nursing Home,750.40, 04-May-2021
530,Revenue,CAHD,Central - Commissioned Services,Permanent Residential,Blossom Fields Nursing Home,4749.64, 04-May-2021
531,Revenue,CAHD,South Glos Users in South Glos Homes,Permanent Nursing,Blossom Fields Nursing Home,750.40, 04-May-2021
532,Revenue,CAHD,Central - Commissioned Services,Permanent Nursing,Blossom Fields Nursing Home,4910.40, 04-May-2021
533,Revenue,CAHD,South Glos Users in South Glos Homes,Permanent Nursing,Blossom Fields Nursing Home,750.40, 04-May-2021
534,Revenue,CAHD,Central - Commissioned Services,Permanent Nursing,Blossom Fields Nursing Home,4132.12, 04-May-2021
535,Revenue,CAHD,South Glos Users in South Glos Homes,Permanent Nursing,Blossom Fields Nursing Home,750.40, 04-May-2021
536,Revenue,CAHD,Central - Commissioned Services,Permanent Nursing,Blossom Fields Nursing Home,5115.00, 04-May-2021
537,Revenue,CAHD,South Glos Users in South Glos Homes,Permanent Nursing,Blossom Fields Nursing Home,750.40, 04-May-2021
538,Revenue,CAHD,Central - Commissioned Services,Permanent Nursing,Blossom Fields Nursing Home,4132.12, 04-May-2021
539,Revenue,CAHD,South Glos Users in South Glos Homes,Permanent Nursing,Blossom Fields Nursing Home,750.40, 04-May-2021
540,Revenue,CAHD,Covid - ASC - Infection Control,Grants to Voluntary Bodies,Blossom Fields Nursing Home,15543.09, 17-May-2021
541,Revenue,CAHD,ASC Rapid Testing Fund,Grants to Voluntary Bodies,Blossom Fields Nursing Home,12166.48, 17-May-2021
542,Revenue,CAHD,Statemented Support Payments to OLAs,Other L.A.s - General,Blue Coat CE VA Primary School,837.09, 21-May-2021
543,Revenue,CAHD,Statemented Support Payments to OLAs,Other L.A.s - General,Blue Coat CE VA Primary School,1292.50, 21-May-2021
544,Revenue,CAHD,CSC - Agency Fostering,Foster Parent Allowances,Blue Sky Fostering Limited,6050.00, 26-May-2021
545,Revenue,CAHD,CSC - Agency Fostering,Foster Parent Allowances,Blue Sky Fostering Limited,8525.00, 26-May-2021
546,Revenue,CAHD,North - Community based support,Permanent Residential,Bluebells,3699.60, 04-May-2021
547,Revenue,CAHD,Pathway 1 - Re-Ablement Home Care,Other Small Contracts,Bluebird Care (South Gloucestershire),513.40, 20-May-2021
548,Revenue,CAHD,Central - Commissioned Services,Other Small Contracts,Bluebird Care (South Gloucestershire),11581.54, 07-May-2021
549,Revenue,CAHD,South - Commissioned Services,Other Small Contracts,Bluebird Care (South Gloucestershire),4586.69, 07-May-2021
550,Revenue,CAHD,North - Community based support,Other Small Contracts,Bluebird Care (South Gloucestershire),4375.27, 07-May-2021
551,Revenue,CAHD,Resilience Team,Other Small Contracts,Bluebird Care (South Gloucestershire),128.35, 07-May-2021
552,Revenue,CAHD,Central - Commissioned Services,Other Small Contracts,Bluebird Care (South Gloucestershire),11459.99, 07-May-2021
553,Revenue,CAHD,South - Commissioned Services,Other Small Contracts,Bluebird Care (South Gloucestershire),4556.79, 07-May-2021
554,Revenue,CAHD,North - Community based support,Other Small Contracts,Bluebird Care (South Gloucestershire),5033.32, 07-May-2021
555,Revenue,CAHD,Resilience Team,Other Small Contracts,Bluebird Care (South Gloucestershire),120.80, 07-May-2021
556,Revenue,CAHD,Central - Commissioned Services,Other Small Contracts,Bluebird Care (South Gloucestershire),11512.09, 11-May-2021
557,Revenue,CAHD,South - Commissioned Services,Other Small Contracts,Bluebird Care (South Gloucestershire),4435.54, 11-May-2021
558,Revenue,CAHD,North - Community based support,Other Small Contracts,Bluebird Care (South Gloucestershire),5009.47, 11-May-2021
559,Revenue,CAHD,Resilience Team,Other Small Contracts,Bluebird Care (South Gloucestershire),105.70, 11-May-2021
560,Revenue,CAHD,Central - Commissioned Services,Other Small Contracts,Bluebird Care (South Gloucestershire),11145.89, 20-May-2021
561,Revenue,CAHD,South - Commissioned Services,Other Small Contracts,Bluebird Care (South Gloucestershire),4685.29, 20-May-2021
562,Revenue,CAHD,North - Community based support,Other Small Contracts,Bluebird Care (South Gloucestershire),4187.57, 20-May-2021
563,Revenue,CAHD,Resilience Team,Other Small Contracts,Bluebird Care (South Gloucestershire),120.80, 20-May-2021
564,Revenue,CAHD,Central - Commissioned Services,Other Small Contracts,Bluebird Care (South Gloucestershire),11967.49, 27-May-2021
565,Revenue,CAHD,South - Commissioned Services,Other Small Contracts,Bluebird Care (South Gloucestershire),4352.79, 27-May-2021
566,Revenue,CAHD,North - Community based support,Other Small Contracts,Bluebird Care (South Gloucestershire),5183.12, 27-May-2021
567,Revenue,CAHD,Resilience Team,Other Small Contracts,Bluebird Care (South Gloucestershire),120.80, 27-May-2021
568,Revenue,CAHD,Covid - ASC - Infection Control,Grants to Voluntary Bodies,Bluebird Care (South Gloucestershire),11104.74, 21-May-2021
569,Revenue,CAHD,CSC - Fostering Carer Support,Operational Equipment,Booths Garden Studios Limited,51780.00, 06-May-2021
570,Revenue,CAHD,S28A cases,Permanent Residential,Bradbury House,6505.16, 04-May-2021
571,Revenue,CAHD,North - Community based support,Permanent Residential,Bradbury House,10016.24, 04-May-2021
572,Revenue,CAHD,Jointly Funded H&SC Packages,Permanent Residential,Bradbury House,8244.08, 04-May-2021
573,Revenue,CAHD,North - S117,Permanent Residential,Bradbury House,5969.84, 04-May-2021
574,Revenue,CAHD,South - Commissioned Services,Permanent Residential,Bradbury House,10168.08, 04-May-2021
575,Revenue,CAHD,Social Lettings Agency,Rent,Individual,822.73, 25-May-2021
576,Revenue,CAHD,Social Lettings Agency,Fees & Charges Income - General,Individual,-102.80, 25-May-2021
577,Revenue,CAHD,Placements OLA Special Schools and RB,Other L.A.s - General,Briarwood School,1268.03, 21-May-2021
578,Revenue,CAHD,Placements OLA Special Schools and RB,Other L.A.s - General,Briarwood School,2774.72, 21-May-2021
579,Revenue,CAHD,Placements OLA Special Schools and RB,Other L.A.s - General,Briarwood School,1268.03, 21-May-2021
580,Revenue,CAHD,Central - Commissioned Services,Permanent Residential,Bridge House Care Home,3000.00, 04-May-2021
581,Revenue,CAHD,North - Community based support,Permanent Residential,Bridge House Care Home,2913.52, 04-May-2021
582,Revenue,CAHD,North - Community based support,Permanent Residential,Bridge House Care Home,2739.64, 04-May-2021
583,Revenue,CAHD,Covid - ASC - Infection Control,Grants to Voluntary Bodies,Bridge House Care Home,3825.99, 17-May-2021
584,Revenue,CAHD,ASC Rapid Testing Fund,Grants to Voluntary Bodies,Bridge House Care Home,2994.83, 17-May-2021
585,Revenue,CAHD,North - Community based support,Permanent Residential,Bridgwater Court Care Home,10773.64, 04-May-2021
586,Revenue,CAHD,Early Years High Needs Support,Other Private Contractors,Bright Sparks Pre-School,910.07, 21-May-2021
587,Revenue,CAHD,Statemented Support Academies,Other Public Bodies,Bristol & South Gloucestershire UTC,635.08, 24-May-2021
588,Revenue,CAHD,Statemented Support Academies,Other Public Bodies,Bristol & South Gloucestershire UTC,907.83, 24-May-2021
589,Revenue,CAHD,Community Support - North,Preventative Assistance,Bristol Ambulance EMS Limited,1035.00, 21-May-2021
590,Revenue,CAHD,Statemented Support Payments to OLAs,Other L.A.s - General,Bristol Cathedral Choir School,942.58, 21-May-2021
591,Revenue,CAHD,Statemented Support Payments to OLAs,Other L.A.s - General,Bristol Cathedral Choir School,880.08, 21-May-2021
592,Revenue,CAHD,Transport OLA Special Schools and RB,Client Transport,Bristol City Council,2856.00, 13-May-2021
593,Revenue,CAHD,CSC - Agency Fostering,Foster Parent Allowances,Bristol City Council,3000.00, 14-May-2021
594,Revenue,CAHD,Statemented Support Payments to OLAs,Other L.A.s - General,Bristol City Council Schools General,897.42, 21-May-2021
595,Revenue,CAHD,Statemented Support Payments to OLAs,Other L.A.s - General,Bristol City Council Schools General,635.33, 21-May-2021
596,Revenue,CAHD,Placements OLA Special Schools and RB,Other L.A.s - General,Bristol Gateway School,1981.43, 21-May-2021
597,Revenue,CAHD,Placements OLA Special Schools and RB,Other L.A.s - General,Bristol Gateway School,1981.43, 21-May-2021
598,Revenue,CAHD,Placements OLA Special Schools and RB,Other L.A.s - General,Bristol Gateway School,1906.68, 21-May-2021
599,Revenue,CAHD,Placements OLA Special Schools and RB,Other L.A.s - General,Bristol Gateway School,792.40, 21-May-2021
600,Revenue,CAHD,Placements OLA Special Schools and RB,Other L.A.s - General,Bristol Gateway School,2774.72, 21-May-2021
601,Revenue,CAHD,Training - Adult Services,Training Expenses,Bristol MIND,2560.00, 18-May-2021
602,Revenue,CAHD,Training - Adult Services,Training Expenses,Bristol MIND,2560.00, 21-May-2021
603,Revenue,CAHD,Training - Adult Services,Training Expenses,Bristol MIND,2560.00, 21-May-2021
604,Revenue,CAHD,SEN High Needs - Not at School Base,Other Private Contractors,Bristol Tuition Limited,1297.50, 19-May-2021
605,Revenue,CAHD,Training - Adult Services,Training Expenses,British Red Cross,558.00, 26-May-2021
606,Revenue,CAHD,Statemented Support Payments to OLAs,Other L.A.s - General,Broadlands Academy,1332.27, 21-May-2021
607,Revenue,CAHD,Statemented Support Payments to OLAs,Other L.A.s - General,Broadlands Academy,835.17, 21-May-2021
608,Revenue,CAHD,North - Community based support,Permanent Residential,Brockhills Farm,3300.00, 04-May-2021
609,Revenue,CAHD,North - Community based support,Permanent Residential,Brockhills Farm,3200.00, 04-May-2021
610,Revenue,CAHD,Discretionary Housing Payment,Other Supplies & Services,Bromford  :  Merlin Housing Society,526.00, 06-May-2021
611,Revenue,CAHD,Parent Partnership & Disagreement Resolutions,Fees - General,Browne Jacobson,2954.50, 19-May-2021
612,Revenue,CAHD,Parent Partnership & Disagreement Resolutions,Fees - General,Browne Jacobson,4602.00, 28-May-2021
613,Revenue,CAHD,South Glos Users in South Glos Homes,Permanent Nursing,Brunelcare,804.00, 24-May-2021
614,Revenue,CAHD,South Glos Users in South Glos Homes,Permanent Nursing,Brunelcare,804.00, 24-May-2021
615,Revenue,CAHD,South Glos Users in South Glos Homes,Permanent Nursing,Brunelcare,804.00, 24-May-2021
616,Revenue,CAHD,South Glos Users in South Glos Homes,Permanent Nursing,Brunelcare,804.00, 24-May-2021
617,Revenue,CAHD,South Glos Users in South Glos Homes,Permanent Nursing,Brunelcare,804.00, 24-May-2021
618,Revenue,CAHD,South Glos Users in South Glos Homes,Permanent Nursing,Brunelcare,670.00, 24-May-2021
619,Revenue,CAHD,South Glos Users in South Glos Homes,Permanent Nursing,Brunelcare,804.00, 24-May-2021
620,Revenue,CAHD,South Glos Users in South Glos Homes,Permanent Nursing,Brunelcare,804.00, 24-May-2021
621,Revenue,CAHD,South Glos Users in South Glos Homes,Permanent Nursing,Brunelcare,804.00, 24-May-2021
622,Revenue,CAHD,South Glos Users in South Glos Homes,Permanent Nursing,Brunelcare,804.00, 24-May-2021
623,Revenue,CAHD,North - S117,Permanent Nursing,Brunelcare,3668.71, 24-May-2021
624,Revenue,CAHD,North - S117,Permanent Nursing,Brunelcare,3668.71, 24-May-2021
625,Revenue,CAHD,South - Commissioned Services,Permanent Nursing,Brunelcare,3668.71, 24-May-2021
626,Revenue,CAHD,South - Commissioned Services,Permanent Nursing,Brunelcare,2666.65, 24-May-2021
627,Revenue,CAHD,South - Commissioned Services,Permanent Nursing,Brunelcare,1399.55, 24-May-2021
628,Revenue,CAHD,South - Commissioned Services,Permanent Nursing,Brunelcare,2960.44, 24-May-2021
629,Revenue,CAHD,South - Commissioned Services,Permanent Nursing,Brunelcare,3044.14, 24-May-2021
630,Revenue,CAHD,South - Commissioned Services,Permanent Nursing,Brunelcare,2119.78, 24-May-2021
631,Revenue,CAHD,Central - Commissioned Services,Permanent Nursing,Brunelcare,2957.79, 24-May-2021
632,Revenue,CAHD,North - Community based support,Permanent Nursing,Brunelcare,3668.71, 24-May-2021
633,Revenue,CAHD,North - Community based support,Permanent Nursing,Brunelcare,2439.44, 24-May-2021
634,Revenue,CAHD,North - Community based support,Permanent Nursing,Brunelcare,751.51, 24-May-2021
635,Revenue,CAHD,Central - Commissioned Services,Respite Planned - Nursing,Brunelcare,4472.71, 24-May-2021
636,Revenue,CAHD,South - Commissioned Services,Respite Planned - Nursing,Brunelcare,3138.83, 24-May-2021
637,Revenue,CAHD,Central - Commissioned Services,Other Small Contracts,Brunelcare,375.76, 20-May-2021
638,Revenue,CAHD,South - Commissioned Services,Other Small Contracts,Brunelcare,15786.80, 20-May-2021
639,Revenue,CAHD,North - Community based support,Other Small Contracts,Brunelcare,356.24, 20-May-2021
640,Revenue,CAHD,Central - Commissioned Services,Other Small Contracts,Brunelcare,356.24, 20-May-2021
641,Revenue,CAHD,South - Commissioned Services,Other Small Contracts,Brunelcare,15415.92, 20-May-2021
642,Revenue,CAHD,North - Community based support,Other Small Contracts,Brunelcare,326.96, 20-May-2021
643,Revenue,CAHD,Central - Commissioned Services,Other Small Contracts,Brunelcare,404.32, 25-May-2021
644,Revenue,CAHD,South - Commissioned Services,Other Small Contracts,Brunelcare,17315.04, 25-May-2021
645,Revenue,CAHD,North - Community based support,Other Small Contracts,Brunelcare,388.36, 25-May-2021
646,Revenue,CAHD,Central - Commissioned Services,Other Small Contracts,Brunelcare,409.64, 25-May-2021
647,Revenue,CAHD,South - Commissioned Services,Other Small Contracts,Brunelcare,17286.56, 25-May-2021
648,Revenue,CAHD,North - Community based support,Other Small Contracts,Brunelcare,393.68, 25-May-2021
649,Revenue,CAHD,Central - Commissioned Services,Other Small Contracts,Brunelcare,409.64, 28-May-2021
650,Revenue,CAHD,South - Commissioned Services,Day Care / Social Activities,Brunelcare,42.56, 28-May-2021
651,Revenue,CAHD,South - Commissioned Services,Other Small Contracts,Brunelcare,17548.36, 28-May-2021
652,Revenue,CAHD,North - Community based support,Other Small Contracts,Brunelcare,388.36, 28-May-2021
653,Revenue,CAHD,Covid - ASC - Infection Control,Grants to Voluntary Bodies,Brunelcare,8143.47, 17-May-2021
654,Revenue,CAHD,North - S117,Permanent Residential,Buckland Care,3600.00, 04-May-2021
655,Revenue,CAHD,Early Years High Needs Support,Other Private Contractors,Busy Bees,910.07, 21-May-2021
656,Revenue,CAHD,CSC - Vinney Green Secure Unit,R & M by Departments,BWS Standfast Fire & Security Systems,512.00, 14-May-2021
657,Revenue,CAHD,CSC - Vinney Green Secure Unit,R & M by Departments,BWS Standfast Fire & Security Systems,4500.00, 28-May-2021
658,Revenue,CAHD,CSC - Vinney Green Secure Unit,R & M by Departments,BWS Standfast Fire & Security Systems,10000.00, 28-May-2021
659,Revenue,CAHD,CSC - Agency Fostering,Foster Parent Allowances,By the Bridge Ltd,4219.50, 28-May-2021
660,Revenue,CAHD,Social Lettings Agency,Rent,Individual,807.91, 26-May-2021
661,Revenue,CAHD,Social Lettings Agency,Fees & Charges Income - General,Individual,-80.79, 26-May-2021
662,Revenue,CAHD,North - Community based support,Permanent Nursing,Clevedon Court Nursing Home,3448.16, 04-May-2021
663,Revenue,CAHD,Statemented Support Payments to OLAs,Other L.A.s - General,Cabot Learning Federation,1544.49, 21-May-2021
664,Revenue,CAHD,Statemented Support Academies,Other Public Bodies,Cabot Learning Federation,918.71, 24-May-2021
665,Revenue,CAHD,Statemented Support Academies,Other Public Bodies,Cabot Learning Federation,1202.39, 24-May-2021
666,Revenue,CAHD,Statemented Support Academies,Other Public Bodies,Cabot Learning Federation,908.00, 24-May-2021
667,Revenue,CAHD,Statemented Support Academies,Other Public Bodies,Cabot Learning Federation,1103.25, 24-May-2021
668,Revenue,CAHD,Statemented Support Academies,Other Public Bodies,Cabot Learning Federation,907.83, 24-May-2021
669,Revenue,CAHD,Statemented Support Academies,Other Public Bodies,Cabot Learning Federation,1899.58, 24-May-2021
670,Revenue,CAHD,Statemented Support Academies,Other Public Bodies,Cabot Learning Federation,788.22, 24-May-2021
671,Revenue,CAHD,Statemented Support Academies,Other Public Bodies,Cabot Learning Federation,957.92, 24-May-2021
672,Revenue,CAHD,Statemented Support Academies,Other Public Bodies,Cabot Learning Federation,1654.33, 24-May-2021
673,Revenue,CAHD,Statemented Support Academies,Other Public Bodies,Cabot Learning Federation,2206.25, 24-May-2021
674,Revenue,CAHD,Statemented Support Payments to OLAs,Other L.A.s - General,Cabot Learning Federation,1013.94, 21-May-2021
675,Revenue,CAHD,Statemented Support Academies,Other Public Bodies,Cabot Learning Federation,658.75, 24-May-2021
676,Revenue,CAHD,Statemented Support Academies,Other Public Bodies,Cabot Learning Federation,1854.42, 24-May-2021
677,Revenue,CAHD,Statemented Support Academies,Other Public Bodies,Cabot Learning Federation,632.67, 24-May-2021
678,Revenue,CAHD,Statemented Support Academies,Other Public Bodies,Cabot Learning Federation,695.61, 24-May-2021
679,Revenue,CAHD,Statemented Support Academies,Other Public Bodies,Cabot Learning Federation,918.75, 24-May-2021
680,Revenue,CAHD,Statemented Support Academies,Other Public Bodies,Cabot Learning Federation,975.58, 24-May-2021
681,Revenue,CAHD,Statemented Support Academies,Other Public Bodies,Cabot Learning Federation,1052.92, 24-May-2021
682,Revenue,CAHD,Academy Resource Base Funding,Other Public Bodies,Cabot Learning Federation,5945.24, 24-May-2021
683,Revenue,CAHD,Academy Resource Base Funding,Other Public Bodies,Cabot Learning Federation,1175.87, 24-May-2021
684,Revenue,CAHD,Academy Resource Base Funding,Other Public Bodies,Cabot Learning Federation,1702.96, 24-May-2021
685,Revenue,CAHD,Academy Resource Base Funding,Other Public Bodies,Cabot Learning Federation,1540.83, 24-May-2021
686,Revenue,CAHD,Academy Resource Base Funding,Other Public Bodies,Cabot Learning Federation,1175.87, 24-May-2021
687,Revenue,CAHD,Academy Resource Base Funding,Other Public Bodies,Cabot Learning Federation,1175.87, 24-May-2021
688,Revenue,CAHD,Academy Resource Base Funding,Other Public Bodies,Cabot Learning Federation,1540.83, 24-May-2021
689,Revenue,CAHD,Academy Resource Base Funding,Other Public Bodies,Cabot Learning Federation,1175.87, 24-May-2021
690,Revenue,CAHD,Academy Resource Base Funding,Other Public Bodies,Cabot Learning Federation,1175.87, 24-May-2021
691,Revenue,CAHD,Academy Resource Base Funding,Other Public Bodies,Cabot Learning Federation,1702.96, 24-May-2021
692,Revenue,CAHD,Academy Resource Base Funding,Other Public Bodies,Cabot Learning Federation,648.70, 24-May-2021
693,Revenue,CAHD,Academy Resource Base Funding,Other Public Bodies,Cabot Learning Federation,1013.74, 24-May-2021
694,Revenue,CAHD,Academy Resource Base Funding,Other Public Bodies,Cabot Learning Federation,648.70, 24-May-2021
695,Revenue,CAHD,Academy Resource Base Funding,Other Public Bodies,Cabot Learning Federation,1540.83, 24-May-2021
696,Revenue,CAHD,Academy Resource Base Funding,Other Public Bodies,Cabot Learning Federation,2189.53, 24-May-2021
697,Revenue,CAHD,Academy Resource Base Funding,Other Public Bodies,Cabot Learning Federation,1175.87, 24-May-2021
698,Revenue,CAHD,Academy Resource Base Funding,Other Public Bodies,Cabot Learning Federation,1175.87, 24-May-2021
699,Revenue,CAHD,Academy Resource Base Funding,Other Public Bodies,Cabot Learning Federation,1175.87, 24-May-2021
700,Revenue,CAHD,Academy Resource Base Funding,Other Public Bodies,Cabot Learning Federation,1175.87, 24-May-2021
701,Revenue,CAHD,Academy Resource Base Funding,Other Public Bodies,Cabot Learning Federation,1702.96, 24-May-2021
702,Revenue,CAHD,Academy Resource Base Funding,Other Public Bodies,Cabot Learning Federation,1702.96, 24-May-2021
703,Revenue,CAHD,Academy Resource Base Funding,Other Public Bodies,Cabot Learning Federation,1702.96, 24-May-2021
704,Revenue,CAHD,Academy Resource Base Funding,Other Public Bodies,Cabot Learning Federation,1702.96, 24-May-2021
705,Revenue,CAHD,Statemented Support Payments to OLAs,Other L.A.s - General,Cabot Learning Federation,872.46, 21-May-2021
706,Revenue,CAHD,Statemented Support Academies,Other Public Bodies,Cabot Learning Federation,1626.67, 24-May-2021
707,Revenue,CAHD,Statemented Support Academies,Other Public Bodies,Cabot Learning Federation,710.58, 24-May-2021
708,Revenue,CAHD,Statemented Support Academies,Other Public Bodies,Cabot Learning Federation,804.08, 24-May-2021
709,Revenue,CAHD,Statemented Support Academies,Other Public Bodies,Cabot Learning Federation,554.13, 24-May-2021
710,Revenue,CAHD,Statemented Support Academies,Other Public Bodies,Cabot Learning Federation,742.77, 24-May-2021
711,Revenue,CAHD,Statemented Support Academies,Other Public Bodies,Cabot Learning Federation,778.14, 24-May-2021
712,Revenue,CAHD,Statemented Support Academies,Other Public Bodies,Cabot Learning Federation,813.51, 24-May-2021
713,Revenue,CAHD,Statemented Support Payments to OLAs,Other L.A.s - General,Cabot Learning Federation,601.29, 21-May-2021
714,Revenue,CAHD,Statemented Support Academies,Other Public Bodies,Cabot Learning Federation,1131.84, 24-May-2021
715,Revenue,CAHD,Statemented Support Academies,Other Public Bodies,Cabot Learning Federation,589.50, 24-May-2021
716,Revenue,CAHD,Statemented Support Academies,Other Public Bodies,Cabot Learning Federation,554.13, 24-May-2021
717,Revenue,CAHD,Statemented Support Academies,Other Public Bodies,Cabot Learning Federation,801.72, 24-May-2021
718,Revenue,CAHD,Statemented Support Academies,Other Public Bodies,Cabot Learning Federation,1096.47, 24-May-2021
719,Revenue,CAHD,Statemented Support Academies,Other Public Bodies,Cabot Learning Federation,730.98, 24-May-2021
720,Revenue,CAHD,Statemented Support Academies,Other Public Bodies,Cabot Learning Federation,907.83, 24-May-2021
721,Revenue,CAHD,Statemented Support Academies,Other Public Bodies,Cabot Learning Federation,1150.25, 24-May-2021
722,Revenue,CAHD,Statemented Support Academies,Other Public Bodies,Cabot Learning Federation,801.92, 24-May-2021
723,Revenue,CAHD,Statemented Support Academies,Other Public Bodies,Cabot Learning Federation,530.55, 24-May-2021
724,Revenue,CAHD,Statemented Support Academies,Other Public Bodies,Cabot Learning Federation,931.41, 24-May-2021
725,Revenue,CAHD,Statemented Support Payments to OLAs,Other L.A.s - General,Cabot Learning Federation,1062.33, 21-May-2021
726,Revenue,CAHD,Statemented Support Payments to OLAs,Other L.A.s - General,Cabot Learning Federation,888.33, 21-May-2021
727,Revenue,CAHD,Statemented Support Academies,Other Public Bodies,Cabot Learning Federation,577.50, 24-May-2021
728,Revenue,CAHD,Statemented Support Academies,Other Public Bodies,Cabot Learning Federation,1297.08, 24-May-2021
729,Revenue,CAHD,Statemented Support Academies,Other Public Bodies,Cabot Learning Federation,966.83, 24-May-2021
730,Revenue,CAHD,Statemented Support Academies,Other Public Bodies,Cabot Learning Federation,872.46, 24-May-2021
731,Revenue,CAHD,Statemented Support Payments to OLAs,Other L.A.s - General,Cabot Learning Federation,665.33, 21-May-2021
732,Revenue,CAHD,Early Years Inclusion Fund,Other Public Bodies,Caerleon Childcare,1550.00, 04-May-2021
733,Revenue,CAHD,Early Years High Needs Support,Other Private Contractors,Caerleon Childcare,515.71, 21-May-2021
734,Revenue,CAHD,North - Community based support,Permanent Nursing,Caernarvon House,4710.40, 04-May-2021
735,Revenue,CAHD,North - S117,Permanent Nursing,Caernarvon House,3990.24, 04-May-2021
736,Revenue,CAHD,South - Commissioned Services,Permanent Nursing,Caernarvon House,4915.20, 04-May-2021
737,Revenue,CAHD,South - S117,Permanent Nursing,Caernarvon House,4915.20, 04-May-2021
738,Revenue,CAHD,South - Commissioned Services,Permanent Nursing,Caernarvon House,2960.00, 04-May-2021
739,Revenue,CAHD,South - Commissioned Services,Permanent Nursing,Caernarvon House,4800.00, 04-May-2021
740,Revenue,CAHD,Telecare,Other Supplies & Services,CAIR (UK) Ltd,440.00, 26-May-2021
741,Revenue,CAHD,North - Community based support,Day Care / Social Activities,Camphill Communities Thornbury Limited,381.57, 07-May-2021
742,Revenue,CAHD,North - Community based support,Other Small Contracts,Camphill Communities Thornbury Limited,536.13, 07-May-2021
743,Revenue,CAHD,North - Community based support,Supported Living,Camphill Communities Thornbury Limited,994.98, 07-May-2021
744,Revenue,CAHD,North - Community based support,Other Small Contracts,Camphill Communities Thornbury Limited,101.43, 14-May-2021
745,Revenue,CAHD,North - Community based support,Supported Living,Camphill Communities Thornbury Limited,676.20, 14-May-2021
746,Revenue,CAHD,North - Community based support,Day Care / Social Activities,Camphill Communities Thornbury Limited,963.30, 21-May-2021
747,Revenue,CAHD,North - Community based support,Other Small Contracts,Camphill Communities Thornbury Limited,1407.90, 21-May-2021
748,Revenue,CAHD,North - Community based support,Supported Living,Camphill Communities Thornbury Limited,992.94, 21-May-2021
749,Revenue,CAHD,North - Community based support,Day Care / Social Activities,Camphill Communities Thornbury Limited,1215.24, 28-May-2021
750,Revenue,CAHD,North - Community based support,Other Small Contracts,Camphill Communities Thornbury Limited,1635.14, 28-May-2021
751,Revenue,CAHD,North - Community based support,Supported Living,Camphill Communities Thornbury Limited,1111.50, 28-May-2021
752,Revenue,CAHD,CSC - Agency Fostering,Foster Parent Allowances,Capstone Foster Care (South West) Limited,3552.90, 12-May-2021
753,Revenue,CAHD,CSC - Agency Fostering,Foster Parent Allowances,Capstone Foster Care (South West) Limited,3552.90, 12-May-2021
754,Revenue,CAHD,CSC - Agency Fostering,Foster Parent Allowances,Capstone Foster Care (South West) Limited,3671.33, 28-May-2021
755,Revenue,CAHD,CSC - Agency Fostering,Foster Parent Allowances,Capstone Foster Care (South West) Limited,3498.66, 28-May-2021
756,Revenue,CAHD,CSC - Agency Fostering,Foster Parent Allowances,Capstone Foster Care (South West) Limited,3498.66, 28-May-2021
757,Revenue,CAHD,CSC - Agency Fostering,Foster Parent Allowances,Capstone Foster Care (South West) Limited,3671.33, 28-May-2021
758,Revenue,CAHD,Central - Commissioned Services,Other Small Contracts,Care 1st Homecare,3012.65, 04-May-2021
759,Revenue,CAHD,Central - Commissioned Services,Other Small Contracts,Care 1st Homecare,2999.30, 04-May-2021
760,Revenue,CAHD,Central - Commissioned Services,Other Small Contracts,Care 1st Homecare,3003.75, 04-May-2021
761,Revenue,CAHD,Central - Commissioned Services,Other Small Contracts,Care 1st Homecare,3075.80, 07-May-2021
762,Revenue,CAHD,Central - Commissioned Services,Other Small Contracts,Care 1st Homecare,3062.15, 07-May-2021
763,Revenue,CAHD,Central - Commissioned Services,Other Small Contracts,Care 1st Homecare,3066.70, 13-May-2021
764,Revenue,CAHD,Central - Commissioned Services,Other Small Contracts,Care 1st Homecare,3071.25, 20-May-2021
765,Revenue,CAHD,South - Commissioned Services,Other Small Contracts,Care 1st Homecare,677.92, 17-May-2021
766,Revenue,CAHD,South - Commissioned Services,Other Small Contracts,Care 1st Homecare,2096.24, 17-May-2021
767,Revenue,CAHD,South - Commissioned Services,Other Small Contracts,Care 1st Homecare,4406.08, 17-May-2021
768,Revenue,CAHD,South - Commissioned Services,Other Small Contracts,Care 1st Homecare,2096.24, 17-May-2021
769,Revenue,CAHD,South - Commissioned Services,Other Small Contracts,Care 1st Homecare,2096.24, 17-May-2021
770,Revenue,CAHD,North - Community based support,Supported Living,Care Horizons,5560.28, 04-May-2021
771,Revenue,CAHD,North - Community based support,Supported Living,Care Horizons,5560.28, 04-May-2021
772,Revenue,CAHD,Central - Commissioned Services,Other Small Contracts,Care Horizons Limited,5034.95, 13-May-2021
773,Revenue,CAHD,South - Commissioned Services,Other Small Contracts,Care Horizons Limited,749.36, 13-May-2021
774,Revenue,CAHD,North - Community based support,Day Care / Social Activities,Care Horizons Limited,414.12, 13-May-2021
775,Revenue,CAHD,North - Community based support,Other Small Contracts,Care Horizons Limited,335.24, 13-May-2021
776,Revenue,CAHD,Younger MH non-res purchasing,Other Small Contracts,Care Horizons Limited,236.64, 13-May-2021
777,Revenue,CAHD,Central - Commissioned Services,Other Small Contracts,Care Horizons Limited,4896.91, 18-May-2021
778,Revenue,CAHD,South - Commissioned Services,Other Small Contracts,Care Horizons Limited,749.36, 18-May-2021
779,Revenue,CAHD,North - Community based support,Day Care / Social Activities,Care Horizons Limited,414.12, 18-May-2021
780,Revenue,CAHD,North - Community based support,Other Small Contracts,Care Horizons Limited,335.24, 18-May-2021
781,Revenue,CAHD,Younger MH non-res purchasing,Other Small Contracts,Care Horizons Limited,256.36, 18-May-2021
782,Revenue,CAHD,18-25 Year Olds,Other Small Contracts,Care Horizons Limited,141.12, 18-May-2021
783,Revenue,CAHD,Central - Commissioned Services,Other Small Contracts,Care Horizons Limited,5274.60, 18-May-2021
784,Revenue,CAHD,South - Commissioned Services,Other Small Contracts,Care Horizons Limited,650.16, 18-May-2021
785,Revenue,CAHD,North - Community based support,Day Care / Social Activities,Care Horizons Limited,423.36, 18-May-2021
786,Revenue,CAHD,North - Community based support,Other Small Contracts,Care Horizons Limited,357.84, 18-May-2021
787,Revenue,CAHD,Younger MH non-res purchasing,Other Small Contracts,Care Horizons Limited,262.08, 18-May-2021
788,Revenue,CAHD,18-25 Year Olds,Other Small Contracts,Care Horizons Limited,161.28, 27-May-2021
789,Revenue,CAHD,Central - Commissioned Services,Other Small Contracts,Care Horizons Limited,5175.52, 27-May-2021
790,Revenue,CAHD,South - Commissioned Services,Other Small Contracts,Care Horizons Limited,806.40, 27-May-2021
791,Revenue,CAHD,North - Community based support,Day Care / Social Activities,Care Horizons Limited,423.36, 27-May-2021
792,Revenue,CAHD,North - Community based support,Other Small Contracts,Care Horizons Limited,267.12, 27-May-2021
793,Revenue,CAHD,North - Community based support,Mentoring,Care Horizons Limited,60.48, 27-May-2021
794,Revenue,CAHD,Younger MH non-res purchasing,Other Small Contracts,Care Horizons Limited,262.08, 27-May-2021
795,Revenue,CAHD,18-25 Year Olds,Other Small Contracts,Care Horizons Limited,161.28, 27-May-2021
796,Revenue,CAHD,Central - Commissioned Services,Other Small Contracts,Care Horizons Limited,4973.92, 27-May-2021
797,Revenue,CAHD,South - Commissioned Services,Other Small Contracts,Care Horizons Limited,806.40, 27-May-2021
798,Revenue,CAHD,South - Commissioned Services,Mentoring,Care Horizons Limited,80.64, 27-May-2021
799,Revenue,CAHD,North - Community based support,Day Care / Social Activities,Care Horizons Limited,398.16, 27-May-2021
800,Revenue,CAHD,North - Community based support,Other Small Contracts,Care Horizons Limited,660.24, 27-May-2021
801,Revenue,CAHD,North - Community based support,Mentoring,Care Horizons Limited,120.96, 27-May-2021
802,Revenue,CAHD,Younger MH non-res purchasing,Other Small Contracts,Care Horizons Limited,262.08, 27-May-2021
803,Revenue,CAHD,Covid - ASC - Infection Control,Grants to Voluntary Bodies,Care Horizons Limited,3479.48, 21-May-2021
804,Revenue,CAHD,Central - Commissioned Services,Other Small Contracts,Care Horizons Limited,1570.58, 14-May-2021
805,Revenue,CAHD,Central - Commissioned Services,Other Small Contracts,Care Horizons Limited,987.84, 14-May-2021
806,Revenue,CAHD,ASC Rapid Testing Fund,Grants to Voluntary Bodies,Care Horizons Limited,748.72, 21-May-2021
807,Revenue,CAHD,South - Commissioned Services,Other Small Contracts,Care Unite Ltd t/a Home Instead Senior Care,1024.43, 20-May-2021
808,Revenue,CAHD,South - Commissioned Services,Other Small Contracts,Care Unite Ltd t/a Home Instead Senior Care,1024.43, 19-May-2021
809,Revenue,CAHD,Covid - ASC - Infection Control,Grants to Voluntary Bodies,Care Unite Ltd t/a Home Instead Senior Care,2369.01, 10-May-2021
810,Revenue,CAHD,Covid - ASC - Infection Control,Grants to Voluntary Bodies,Caremark (Bristol & South Gloucestershire),1110.47, 17-May-2021
811,Revenue,CAHD,Central - Commissioned Services,Other Small Contracts,Carepride Ltd,766.08, 25-May-2021
812,Revenue,CAHD,South - Commissioned Services,Other Small Contracts,Carepride Ltd,70.56, 25-May-2021
813,Revenue,CAHD,North - Community based support,Other Small Contracts,Carepride Ltd,241.92, 25-May-2021
814,Revenue,CAHD,Central - Commissioned Services,Other Small Contracts,Carepride Ltd,735.84, 11-May-2021
815,Revenue,CAHD,South - Commissioned Services,Other Small Contracts,Carepride Ltd,75.60, 11-May-2021
816,Revenue,CAHD,North - Community based support,Other Small Contracts,Carepride Ltd,221.76, 11-May-2021
817,Revenue,CAHD,Central - Commissioned Services,Other Small Contracts,Carepride Ltd,493.92, 25-May-2021
818,Revenue,CAHD,South - Commissioned Services,Other Small Contracts,Carepride Ltd,90.72, 25-May-2021
819,Revenue,CAHD,North - Community based support,Other Small Contracts,Carepride Ltd,226.80, 25-May-2021
820,Revenue,CAHD,Central - Commissioned Services,Other Small Contracts,Carepride Ltd,493.92, 25-May-2021
821,Revenue,CAHD,South - Commissioned Services,Other Small Contracts,Carepride Ltd,95.76, 25-May-2021
822,Revenue,CAHD,North - Community based support,Other Small Contracts,Carepride Ltd,231.84, 25-May-2021
823,Revenue,CAHD,Covid - ASC - Infection Control,Grants to Voluntary Bodies,Caring Comes 1st Limited,4515.93, 10-May-2021
824,Revenue,CAHD,Supporting People Programme,Grants to Voluntary Bodies,Caring for Communities and People,12849.00, 04-May-2021
825,Revenue,CAHD,CSC - Vinney Green Secure Unit,R & M by Departments,Carlton Services UK Limited,422.00, 13-May-2021
826,Revenue,CAHD,Social Lettings Agency,Rent,Individual,822.73, 21-May-2021
827,Revenue,CAHD,Social Lettings Agency,Fees & Charges Income - General,Individual,-102.84, 21-May-2021
828,Revenue,CAHD,Statemented Support Academies,Other Public Bodies,Castle School Education Trust,530.55, 24-May-2021
829,Revenue,CAHD,Statemented Support Academies,Other Public Bodies,Castle School Education Trust,778.14, 24-May-2021
830,Revenue,CAHD,Statemented Support Academies,Other Public Bodies,Castle School Education Trust,821.50, 24-May-2021
831,Revenue,CAHD,Statemented Support Academies,Other Public Bodies,Castle School Education Trust,672.03, 24-May-2021
832,Revenue,CAHD,Statemented Support Academies,Other Public Bodies,Castle School Education Trust,577.71, 24-May-2021
833,Revenue,CAHD,Statemented Support Academies,Other Public Bodies,Castle School Education Trust,505.08, 24-May-2021
834,Revenue,CAHD,Statemented Support Academies,Other Public Bodies,Castle School Education Trust,613.08, 24-May-2021
835,Revenue,CAHD,Statemented Support Academies,Other Public Bodies,Castle School Education Trust,672.03, 24-May-2021
836,Revenue,CAHD,Statemented Support Academies,Other Public Bodies,Castle School Education Trust,1120.05, 24-May-2021
837,Revenue,CAHD,Statemented Support Academies,Other Public Bodies,Castle School Education Trust,636.66, 24-May-2021
838,Revenue,CAHD,Statemented Support Academies,Other Public Bodies,Castle School Education Trust,589.08, 24-May-2021
839,Revenue,CAHD,Statemented Support Academies,Other Public Bodies,Castle School Education Trust,954.99, 24-May-2021
840,Revenue,CAHD,Statemented Support Academies,Other Public Bodies,Castle School Education Trust,577.71, 24-May-2021
841,Revenue,CAHD,Statemented Support Academies,Other Public Bodies,Castle School Education Trust,1248.33, 24-May-2021
842,Revenue,CAHD,Statemented Support Academies,Other Public Bodies,Castle School Education Trust,624.87, 24-May-2021
843,Revenue,CAHD,Statemented Support Academies,Other Public Bodies,Castle School Education Trust,1190.79, 24-May-2021
844,Revenue,CAHD,Statemented Support Academies,Other Public Bodies,Castle School Education Trust,841.00, 24-May-2021
845,Revenue,CAHD,Statemented Support Academies,Other Public Bodies,Castle School Education Trust,1237.95, 24-May-2021
846,Revenue,CAHD,Statemented Support Academies,Other Public Bodies,Castle School Education Trust,1061.10, 24-May-2021
847,Revenue,CAHD,Statemented Support Academies,Other Public Bodies,Castle School Education Trust,518.76, 24-May-2021
848,Revenue,CAHD,Statemented Support Academies,Other Public Bodies,Castle School Education Trust,577.71, 24-May-2021
849,Revenue,CAHD,Statemented Support Academies,Other Public Bodies,Castle School Education Trust,1143.63, 24-May-2021
850,Revenue,CAHD,Statemented Support Academies,Other Public Bodies,Castle School Education Trust,943.33, 24-May-2021
851,Revenue,CAHD,Statemented Support Academies,Other Public Bodies,Castle School Education Trust,754.25, 24-May-2021
852,Revenue,CAHD,Statemented Support Academies,Other Public Bodies,Castle School Education Trust,1485.54, 24-May-2021
853,Revenue,CAHD,Statemented Support Academies,Other Public Bodies,Castle School Education Trust,1177.50, 24-May-2021
854,Revenue,CAHD,Statemented Support Academies,Other Public Bodies,Castle School Education Trust,888.75, 24-May-2021
855,Revenue,CAHD,Statemented Support Academies,Other Public Bodies,Castle School Education Trust,1261.75, 24-May-2021
856,Revenue,CAHD,Statemented Support Academies,Other Public Bodies,Castle School Education Trust,1322.75, 24-May-2021
857,Revenue,CAHD,Statemented Support Academies,Other Public Bodies,Castle School Education Trust,801.92, 24-May-2021
858,Revenue,CAHD,Statemented Support Academies,Other Public Bodies,Castle School Education Trust,943.17, 24-May-2021
859,Revenue,CAHD,Statemented Support Academies,Other Public Bodies,Castle School Education Trust,1267.50, 24-May-2021
860,Revenue,CAHD,Academy Resource Base Funding,Other Public Bodies,Castle School Education Trust,3397.28, 24-May-2021
861,Revenue,CAHD,Academy Resource Base Funding,Other Public Bodies,Castle School Education Trust,1702.96, 24-May-2021
862,Revenue,CAHD,Academy Resource Base Funding,Other Public Bodies,Castle School Education Trust,1702.96, 24-May-2021
863,Revenue,CAHD,Academy Resource Base Funding,Other Public Bodies,Castle School Education Trust,1702.96, 24-May-2021
864,Revenue,CAHD,Academy Resource Base Funding,Other Public Bodies,Castle School Education Trust,1702.96, 24-May-2021
865,Revenue,CAHD,Academy Resource Base Funding,Other Public Bodies,Castle School Education Trust,1702.96, 24-May-2021
866,Revenue,CAHD,Academy Resource Base Funding,Other Public Bodies,Castle School Education Trust,1702.96, 24-May-2021
867,Revenue,CAHD,Academy Resource Base Funding,Other Public Bodies,Castle School Education Trust,2189.53, 24-May-2021
868,Revenue,CAHD,Academy Resource Base Funding,Other Public Bodies,Castle School Education Trust,1702.96, 24-May-2021
869,Revenue,CAHD,Academy Resource Base Funding,Other Public Bodies,Castle School Education Trust,1702.96, 24-May-2021
870,Revenue,CAHD,Academy Resource Base Funding,Other Public Bodies,Castle School Education Trust,1702.96, 24-May-2021
871,Revenue,CAHD,Academy Resource Base Funding,Other Public Bodies,Castle School Education Trust,2513.88, 24-May-2021
872,Revenue,CAHD,Academy Resource Base Funding,Other Public Bodies,Castle School Education Trust,1702.96, 24-May-2021
873,Revenue,CAHD,Academy Resource Base Funding,Other Public Bodies,Castle School Education Trust,2513.88, 24-May-2021
874,Revenue,CAHD,Academy Resource Base Funding,Other Public Bodies,Castle School Education Trust,2513.88, 24-May-2021
875,Revenue,CAHD,Academy Resource Base Funding,Other Public Bodies,Castle School Education Trust,2513.88, 24-May-2021
876,Revenue,CAHD,Statemented Support Academies,Other Public Bodies,Castle School Education Trust,672.03, 24-May-2021
877,Revenue,CAHD,Statemented Support Academies,Other Public Bodies,Castle School Education Trust,822.50, 24-May-2021
878,Revenue,CAHD,Statemented Support Academies,Other Public Bodies,Castle School Education Trust,872.46, 24-May-2021
879,Revenue,CAHD,Statemented Support Academies,Other Public Bodies,Castle School Education Trust,848.88, 24-May-2021
880,Revenue,CAHD,Statemented Support Academies,Other Public Bodies,Castle School Education Trust,541.58, 24-May-2021
881,Revenue,CAHD,Statemented Support Academies,Other Public Bodies,Castle School Education Trust,723.17, 24-May-2021
882,Revenue,CAHD,Statemented Support Academies,Other Public Bodies,Castle School Education Trust,956.00, 24-May-2021
883,Revenue,CAHD,Statemented Support Academies,Other Public Bodies,Castle School Education Trust,1628.42, 24-May-2021
884,Revenue,CAHD,Statemented Support Academies,Other Public Bodies,Castle School Education Trust,560.17, 24-May-2021
885,Revenue,CAHD,Statemented Support Academies,Other Public Bodies,Castle School Education Trust,630.58, 24-May-2021
886,Revenue,CAHD,Statemented Support Academies,Other Public Bodies,Castle School Education Trust,778.14, 24-May-2021
887,Revenue,CAHD,Statemented Support Academies,Other Public Bodies,Castle School Education Trust,941.58, 24-May-2021
888,Revenue,CAHD,Statemented Support Academies,Other Public Bodies,Castle School Education Trust,613.08, 24-May-2021
889,Revenue,CAHD,Statemented Support Academies,Other Public Bodies,Castle School Educational Turust,1129.92, 24-May-2021
890,Revenue,CAHD,Statemented Support Academies,Other Public Bodies,Castle School Educational Turust,854.00, 24-May-2021
891,Revenue,CAHD,Statemented Support Academies,Other Public Bodies,Castle School Educational Turust,790.58, 24-May-2021
892,Revenue,CAHD,Statemented Support Academies,Other Public Bodies,Castle School Educational Turust,508.67, 24-May-2021
893,Revenue,CAHD,Statemented Support Academies,Other Public Bodies,Castle School Educational Turust,1148.20, 24-May-2021
894,Revenue,CAHD,Statemented Support Academies,Other Public Bodies,Castle School Educational Turust,1097.25, 24-May-2021
895,Revenue,CAHD,Statemented Support Academies,Other Public Bodies,Castle School Educational Turust,580.67, 24-May-2021
896,Revenue,CAHD,Statemented Support Academies,Other Public Bodies,Castle School Educational Turust,925.08, 24-May-2021
897,Revenue,CAHD,North - Community based support,Day Care / Social Activities,Causeway House,2226.72, 04-May-2021
898,Revenue,CAHD,South - Commissioned Services,Day Care / Social Activities,Causeway House,5481.44, 04-May-2021
899,Revenue,CAHD,18-25 Year Olds,Day Care / Social Activities,Causeway House,4606.48, 04-May-2021
900,Revenue,CAHD,Central - Commissioned Services,Day Care / Social Activities,Causeway House,3755.80, 04-May-2021
901,Revenue,CAHD,Central - Commissioned Services,Day Care / Social Activities,Causeway House,4060.72, 04-May-2021
902,Revenue,CAHD,North - Community based support,Day Care / Social Activities,Causeway House,3366.40, 04-May-2021
903,Revenue,CAHD,North - Community based support,Day Care / Social Activities,Causeway House,5015.32, 04-May-2021
904,Revenue,CAHD,Central - Commissioned Services,Day Care / Social Activities,Causeway House,3810.84, 04-May-2021
905,Revenue,CAHD,North - Community based support,Day Care / Social Activities,Causeway House,3285.96, 04-May-2021
906,Revenue,CAHD,North - Community based support,Day Care / Social Activities,Causeway House,593.04, 04-May-2021
907,Revenue,CAHD,Central - Commissioned Services,Permanent Residential,Cepen Lodge,2741.48, 04-May-2021
908,Revenue,CAHD,South - Commissioned Services,Permanent Residential,Challenge House,2894.80, 04-May-2021
909,Revenue,CAHD,South - Commissioned Services,Permanent Residential,Challenge House,620.31, 04-May-2021
910,Revenue,CAHD,North - S117,Permanent Residential,Challenge House,2626.16, 04-May-2021
911,Revenue,CAHD,North - S117,Permanent Residential,Challenge House,656.54, 04-May-2021
912,Revenue,CAHD,North - Community based support,Permanent Residential,Challenge House,2314.96, 04-May-2021
913,Revenue,CAHD,North - Community based support,Permanent Residential,Challenge House,2902.76, 04-May-2021
914,Revenue,CAHD,Covid 19- Spend on behalf of NHS,Respite Planned - Residential,Challenge House,1400.00, 04-May-2021
915,Revenue,CAHD,North - Community based support,Permanent Residential,Challenge House,725.69, 04-May-2021
916,Revenue,CAHD,Central - Commissioned Services,Permanent Residential,Challenge House,2452.44, 04-May-2021
917,Revenue,CAHD,Central - Commissioned Services,Permanent Residential,Challenge House,525.52, 04-May-2021
918,Revenue,CAHD,Central - Commissioned Services,Permanent Residential,Challenge House,2819.84, 04-May-2021
919,Revenue,CAHD,Central - Commissioned Services,Permanent Residential,Challenge House,604.25, 04-May-2021
920,Revenue,CAHD,North - Community based support,Permanent Residential,Challenge House,2894.76, 04-May-2021
921,Revenue,CAHD,North - Community based support,Permanent Residential,Challenge House,620.31, 04-May-2021
922,Revenue,CAHD,North - S117,Permanent Nursing,Challenge House,2505.52, 04-May-2021
923,Revenue,CAHD,North - S117,Permanent Nursing,Challenge House,626.38, 04-May-2021
924,Revenue,CAHD,North - Community based support,Permanent Nursing,Challenge House,2505.52, 04-May-2021
925,Revenue,CAHD,North - Community based support,Permanent Nursing,Challenge House,536.90, 04-May-2021
926,Revenue,CAHD,North - Community based support,Permanent Nursing,Challenge House,3205.48, 04-May-2021
927,Revenue,CAHD,South Glos Users in South Glos Homes,Permanent Nursing,Challenge House,750.40, 04-May-2021
928,Revenue,CAHD,North - Community based support,Permanent Nursing,Challenge House,3478.20, 04-May-2021
929,Revenue,CAHD,South Glos Users in South Glos Homes,Permanent Nursing,Challenge House,750.40, 04-May-2021
930,Revenue,CAHD,South Glos Users in South Glos Homes,Permanent Nursing,Challenge House,750.40, 04-May-2021
931,Revenue,CAHD,North - Community based support,Permanent Nursing,Challenge House,3478.20, 04-May-2021
932,Revenue,CAHD,South Glos Users in South Glos Homes,Permanent Nursing,Challenge House,750.40, 04-May-2021
933,Revenue,CAHD,South - Commissioned Services,Permanent Nursing,Challenge House,3009.56, 04-May-2021
934,Revenue,CAHD,South Glos Users in South Glos Homes,Permanent Nursing,Challenge House,750.40, 04-May-2021
935,Revenue,CAHD,Covid 19- Spend on behalf of NHS,Respite Planned - Nursing,Challenge House,3406.86, 04-May-2021
936,Revenue,CAHD,Covid 19- Spend on behalf of NHS,Respite Planned - Nursing,Challenge House,3252.00, 04-May-2021
937,Revenue,CAHD,North - Community based support,Permanent Nursing,Challenge House,3347.92, 04-May-2021
938,Revenue,CAHD,South Glos Users in South Glos Homes,Permanent Nursing,Challenge House,750.40, 04-May-2021
939,Revenue,CAHD,Covid 19- Spend on behalf of NHS,Respite Planned - Residential,Challenge House,6814.29, 04-May-2021
940,Revenue,CAHD,Covid 19- Spend on behalf of NHS,Respite Planned - Residential,Challenge House,1028.57, 04-May-2021
941,Revenue,CAHD,North - Community based support,Respite Planned - Residential,Challenge House,5100.00, 04-May-2021
942,Revenue,CAHD,North - Community based support,Permanent Residential,Challenge House,1987.54, 04-May-2021
943,Revenue,CAHD,North - Community based support,Permanent Residential,Challenge House,1490.66, 04-May-2021
944,Revenue,CAHD,South - Commissioned Services,Permanent Residential,Challenge House,3130.40, 04-May-2021
945,Revenue,CAHD,South Glos Users in South Glos Homes,Permanent Nursing,Challenge House,750.40, 04-May-2021
946,Revenue,CAHD,South Glos Users in South Glos Homes,Permanent Nursing,Challenge House,750.40, 04-May-2021
947,Revenue,CAHD,South Glos Users in South Glos Homes,Permanent Nursing,Challenge House,750.40, 04-May-2021
948,Revenue,CAHD,South Glos Users in South Glos Homes,Permanent Nursing,Challenge House,750.40, 04-May-2021
949,Revenue,CAHD,South Glos Users in South Glos Homes,Permanent Nursing,Challenge House,750.40, 04-May-2021
950,Revenue,CAHD,South Glos Users in South Glos Homes,Permanent Nursing,Challenge House,750.40, 04-May-2021
951,Revenue,CAHD,North - Community based support,Fees & Charges Income - General,Challenge House,701.72, 04-May-2021
952,Revenue,CAHD,South Glos Users in South Glos Homes,Permanent Nursing,Challenge House,750.40, 04-May-2021
953,Revenue,CAHD,South Glos Users in South Glos Homes,Permanent Nursing,Challenge House,750.40, 04-May-2021
954,Revenue,CAHD,Covid 19- Spend on behalf of NHS,Respite Planned - Residential,Challenge House,3471.43, 04-May-2021
955,Revenue,CAHD,Covid 19- Spend on behalf of NHS,Respite Planned - Residential,Challenge House,514.29, 04-May-2021
956,Revenue,CAHD,South Glos Users in South Glos Homes,Permanent Nursing,Challenge House,750.40, 04-May-2021
957,Revenue,CAHD,Covid 19- Spend on behalf of NHS,Respite Planned - Nursing,Challenge House,619.43, 04-May-2021
958,Revenue,CAHD,North - Community based support,Permanent Nursing,Challenge House,2950.40, 04-May-2021
959,Revenue,CAHD,South Glos Users in South Glos Homes,Permanent Nursing,Challenge House,750.40, 04-May-2021
960,Revenue,CAHD,North - Community based support,Permanent Nursing,Challenge House,3318.20, 04-May-2021
961,Revenue,CAHD,South Glos Users in South Glos Homes,Permanent Nursing,Challenge House,750.40, 04-May-2021
962,Revenue,CAHD,North - Community based support,Permanent Nursing,Challenge House,3483.92, 04-May-2021
963,Revenue,CAHD,South Glos Users in South Glos Homes,Permanent Nursing,Challenge House,750.40, 04-May-2021
964,Revenue,CAHD,Covid 19- Spend on behalf of NHS,Respite Planned - Residential,Challenge House,3471.43, 04-May-2021
965,Revenue,CAHD,North - Community based support,Permanent Residential,Challenge House,3193.00, 04-May-2021
966,Revenue,CAHD,South Glos Users in South Glos Homes,Permanent Nursing,Challenge House,750.40, 04-May-2021
967,Revenue,CAHD,North - Community based support,Permanent Nursing,Challenge House,2950.40, 04-May-2021
968,Revenue,CAHD,South Glos Users in South Glos Homes,Permanent Nursing,Challenge House,750.40, 04-May-2021
969,Revenue,CAHD,South Glos Users in South Glos Homes,Permanent Nursing,Challenge House,750.40, 04-May-2021
970,Revenue,CAHD,Covid - ASC - Infection Control,Grants to Voluntary Bodies,Challenge House,9564.98, 17-May-2021
971,Revenue,CAHD,ASC Rapid Testing Fund,Grants to Voluntary Bodies,Challenge House,7487.06, 17-May-2021
972,Revenue,CAHD,Central - Commissioned Services,Permanent Nursing,Challenge House,2490.00, 04-May-2021
973,Revenue,CAHD,Central - Commissioned Services,Permanent Nursing,Challenge House,533.57, 04-May-2021
974,Revenue,CAHD,North - Community based support,Permanent Residential,Challenge House,2254.00, 04-May-2021
975,Revenue,CAHD,CSC - Vinney Green Secure Unit,External Lecturers Fees,Changing Tunes,2917.00, 27-May-2021
976,Revenue,CAHD,Early Years High Needs Support,Other Private Contractors,Charfield Pre-School,637.05, 21-May-2021
977,Revenue,CAHD,Alexandra Way,"Provisions (Food, etc)",Charles Saunders Limited,521.07, 12-May-2021
978,Revenue,CAHD,Mental Capacity Act / DOLS,Legal Fees,Individual,500.00, 28-May-2021
979,Revenue,CAHD,Statemented Support Academies,Other Public Bodies,Charlton Wood Primary Academy,702.17, 24-May-2021
980,Revenue,CAHD,Hospital Tuition,Other Private Contractors,Cheadle Royal School Priory,5980.00, 19-May-2021
981,Revenue,CAHD,Central - Commissioned Services,Other Small Contracts,Cherish Able Care Limited,3614.20, 21-May-2021
982,Revenue,CAHD,Pathway 1 - Re-Ablement Home Care,Other Small Contracts,Cherish Able Care Limited,621.18, 21-May-2021
983,Revenue,CAHD,Pathway 1 - Re-Ablement Home Care,Other Small Contracts,Cherish Able Care Limited,621.18, 20-May-2021
984,Revenue,CAHD,Central - Commissioned Services,Other Small Contracts,Cherish Able Care Limited,2311.92, 11-May-2021
985,Revenue,CAHD,South - Commissioned Services,Other Small Contracts,Cherish Able Care Limited,5069.62, 11-May-2021
986,Revenue,CAHD,North - Community based support,Other Small Contracts,Cherish Able Care Limited,691.60, 11-May-2021
987,Revenue,CAHD,Central - Commissioned Services,Other Small Contracts,Cherish Able Care Limited,2302.04, 11-May-2021
988,Revenue,CAHD,South - Commissioned Services,Other Small Contracts,Cherish Able Care Limited,6211.58, 11-May-2021
989,Revenue,CAHD,North - Community based support,Other Small Contracts,Cherish Able Care Limited,676.78, 11-May-2021
990,Revenue,CAHD,Central - Commissioned Services,Other Small Contracts,Cherish Able Care Limited,2331.68, 18-May-2021
991,Revenue,CAHD,South - Commissioned Services,Other Small Contracts,Cherish Able Care Limited,6981.12, 18-May-2021
992,Revenue,CAHD,North - Community based support,Other Small Contracts,Cherish Able Care Limited,657.02, 18-May-2021
993,Revenue,CAHD,Central - Commissioned Services,Other Small Contracts,Cherish Able Care Limited,6607.90, 21-May-2021
994,Revenue,CAHD,South - Commissioned Services,Other Small Contracts,Cherish Able Care Limited,6897.14, 21-May-2021
995,Revenue,CAHD,North - Community based support,Other Small Contracts,Cherish Able Care Limited,652.08, 21-May-2021
996,Revenue,CAHD,Covid - ASC - Infection Control,Grants to Voluntary Bodies,Cherish Able Care Limited,3627.55, 10-May-2021
997,Revenue,CAHD,South - Commissioned Services,Other Small Contracts,Cherry Orchards,6602.40, 26-May-2021
998,Revenue,CAHD,Central - Commissioned Services,Other Small Contracts,Cherry Orchards,1748.30, 25-May-2021
999,Revenue,CAHD,Younger MH non-res purchasing,Supported Living,Cherry Orchards,1958.12, 04-May-2021
1000,Revenue,CAHD,Central - Commissioned Services,Supported Living,Cherry Orchards,2367.92, 04-May-2021
1001,Revenue,CAHD,18-25 Year Olds,Supported Living,Cherry Orchards,2077.24, 04-May-2021
1002,Revenue,CAHD,North - Community based support,Supported Living,Cherry Orchards,1066.96, 04-May-2021
1003,Revenue,CAHD,S28A cases,Permanent Residential,Chescombe Trust Ltd,10188.80, 04-May-2021
1004,Revenue,CAHD,Covid - ASC - Infection Control,Grants to Voluntary Bodies,Chescombe Trust Ltd,4543.37, 10-May-2021
1005,Revenue,CAHD,ASC Rapid Testing Fund,Grants to Voluntary Bodies,Chescombe Trust Ltd,3556.36, 10-May-2021
1006,Revenue,CAHD,Statemented Support Payments to OLAs,Other L.A.s - General,Chester Park Junior School,1625.17, 21-May-2021
1007,Revenue,CAHD,SEN High Needs - Not at School Base,Other Private Contractors,Children`s Specialist Therapy Ltd,1345.00, 11-May-2021
1008,Revenue,CAHD,CSC - Emergency Duty Team,Preventative Assistance,Childrens Contact Services Ltd,1524.40, 27-May-2021
1009,Revenue,CAHD,Early Years High Needs Support,Other Private Contractors,Chipping Sodbury Pre School,910.07, 21-May-2021
1010,Revenue,CAHD,18-25 Year Olds,Other Small Contracts,Cintre,896.40, 21-May-2021
1011,Revenue,CAHD,Central - Commissioned Services,Other Small Contracts,Cintre,199.20, 21-May-2021
1012,Revenue,CAHD,South - Commissioned Services,Other Small Contracts,Cintre,1245.00, 21-May-2021
1013,Revenue,CAHD,18-25 Year Olds,Other Small Contracts,Cintre,916.20, 11-May-2021
1014,Revenue,CAHD,Central - Commissioned Services,Other Small Contracts,Cintre,244.32, 11-May-2021
1015,Revenue,CAHD,South - Commissioned Services,Other Small Contracts,Cintre,1241.96, 11-May-2021
1016,Revenue,CAHD,18-25 Year Olds,Other Small Contracts,Cintre,916.20, 11-May-2021
1017,Revenue,CAHD,Central - Commissioned Services,Other Small Contracts,Cintre,122.16, 11-May-2021
1018,Revenue,CAHD,South - Commissioned Services,Other Small Contracts,Cintre,1364.12, 11-May-2021
1019,Revenue,CAHD,18-25 Year Olds,Other Small Contracts,Cintre,916.20, 18-May-2021
1020,Revenue,CAHD,Central - Commissioned Services,Other Small Contracts,Cintre,122.16, 18-May-2021
1021,Revenue,CAHD,South - Commissioned Services,Other Small Contracts,Cintre,1313.22, 18-May-2021
1022,Revenue,CAHD,Post 16 High Needs Placements,Other Private Contractors,City of Bath College,111319.30, 20-May-2021
1023,Revenue,CAHD,Placements OLA Special Schools and RB,Other L.A.s - General,Claremont School,1981.43, 21-May-2021
1024,Revenue,CAHD,Placements OLA Special Schools and RB,Other L.A.s - General,Claremont School,646.00, 21-May-2021
1025,Revenue,CAHD,Placements OLA Special Schools and RB,Other L.A.s - General,Claremont School,2774.72, 21-May-2021
1026,Revenue,CAHD,Placements OLA Special Schools and RB,Other L.A.s - General,Claremont School,646.00, 21-May-2021
1027,Revenue,CAHD,Placements OLA Special Schools and RB,Other L.A.s - General,Claremont School,1981.43, 21-May-2021
1028,Revenue,CAHD,Placements OLA Special Schools and RB,Other L.A.s - General,Claremont School,646.00, 21-May-2021
1029,Revenue,CAHD,Placements OLA Special Schools and RB,Other L.A.s - General,Claremont School,1981.43, 21-May-2021
1030,Revenue,CAHD,Placements OLA Special Schools and RB,Other L.A.s - General,Claremont School,646.00, 21-May-2021
1031,Revenue,CAHD,Placements OLA Special Schools and RB,Other L.A.s - General,Claremont School,792.58, 21-May-2021
1032,Revenue,CAHD,Placements OLA Special Schools and RB,Other L.A.s - General,Claremont School,2774.72, 21-May-2021
1033,Revenue,CAHD,Placements OLA Special Schools and RB,Other L.A.s - General,Claremont School,1981.43, 21-May-2021
1034,Revenue,CAHD,Placements OLA Special Schools and RB,Other L.A.s - General,Claremont School,646.00, 21-May-2021
1035,Revenue,CAHD,Placements OLA Special Schools and RB,Other L.A.s - General,Claremont School,2774.72, 21-May-2021
1036,Revenue,CAHD,Placements OLA Special Schools and RB,Other L.A.s - General,Claremont School,646.00, 21-May-2021
1037,Revenue,CAHD,Placements OLA Special Schools and RB,Other L.A.s - General,Claremont School,1585.16, 21-May-2021
1038,Revenue,CAHD,Placements OLA Special Schools and RB,Other L.A.s - General,Claremont School,516.77, 21-May-2021
1039,Revenue,CAHD,Placements OLA Special Schools and RB,Other L.A.s - General,Claremont School,1981.43, 21-May-2021
1040,Revenue,CAHD,Placements OLA Special Schools and RB,Other L.A.s - General,Claremont School,646.00, 21-May-2021
1041,Revenue,CAHD,South - Commissioned Services,Permanent Residential,Cleeve Lodge,3846.60, 04-May-2021
1042,Revenue,CAHD,South - Commissioned Services,Permanent Residential,Cleeve Lodge,1365.28, 04-May-2021
1043,Revenue,CAHD,North - S117,Permanent Residential,Cleeve Lodge,3273.60, 04-May-2021
1044,Revenue,CAHD,Central - Commissioned Services,Permanent Residential,Cleeve Lodge,3273.60, 04-May-2021
1045,Revenue,CAHD,South - Commissioned Services,Permanent Residential,Cleeve Lodge,4501.20, 04-May-2021
1046,Revenue,CAHD,Covid 19- Spend on behalf of NHS,Respite Planned - Residential,Cleeve Lodge,3000.00, 04-May-2021
1047,Revenue,CAHD,Covid 19- Spend on behalf of NHS,Respite Planned - Residential,Cleeve Lodge,3000.00, 04-May-2021
1048,Revenue,CAHD,North - Community based support,Permanent Residential,Cleeve Lodge,4400.00, 04-May-2021
1049,Revenue,CAHD,South - Commissioned Services,Permanent Residential,Cleeve Lodge,4092.00, 04-May-2021
1050,Revenue,CAHD,Covid 19- Spend on behalf of NHS,Respite Planned - Residential,Cleeve Lodge,3000.00, 04-May-2021
1051,Revenue,CAHD,South - Commissioned Services,Permanent Nursing,Cleeve Lodge,3273.60, 04-May-2021
1052,Revenue,CAHD,South - Commissioned Services,Respite Planned - Residential,Cleeve Lodge,2285.71, 04-May-2021
1053,Revenue,CAHD,South - Commissioned Services,Respite Planned - Residential,Cleeve Lodge,1753.71, 04-May-2021
1054,Revenue,CAHD,South - Commissioned Services,Respite Planned - Residential,Cleeve Lodge,818.40, 04-May-2021
1055,Revenue,CAHD,South - Commissioned Services,Permanent Residential,Cleeve Lodge,3018.76, 04-May-2021
1056,Revenue,CAHD,South - Commissioned Services,Permanent Residential,Cleeve Lodge,4092.00, 04-May-2021
1057,Revenue,CAHD,South - Commissioned Services,Permanent Residential,Cleeve Lodge,3069.00, 04-May-2021
1058,Revenue,CAHD,South - Commissioned Services,Permanent Residential,Cleeve Lodge,4910.40, 04-May-2021
1059,Revenue,CAHD,Covid - ASC - Infection Control,Grants to Voluntary Bodies,Cleeve Lodge,7891.11, 10-May-2021
1060,Revenue,CAHD,ASC Rapid Testing Fund,Grants to Voluntary Bodies,Cleeve Lodge,6176.83, 10-May-2021
1061,Revenue,CAHD,Central - Commissioned Services,Other Small Contracts,Clover Health and Home Care Ltd,1051.38, 24-May-2021
1062,Revenue,CAHD,Central - Commissioned Services,Other Small Contracts,Clover Health and Home Care Ltd,1200.06, 24-May-2021
1063,Revenue,CAHD,Central - Commissioned Services,Other Small Contracts,Clover Health and Home Care Ltd,892.08, 21-May-2021
1064,Revenue,CAHD,North - Community based support,Permanent Residential,Collingwood Care Home,3069.00, 04-May-2021
1065,Revenue,CAHD,Covid - ASC - Infection Control,Grants to Voluntary Bodies,Collingwood Care Home,6217.24, 10-May-2021
1066,Revenue,CAHD,ASC Rapid Testing Fund,Grants to Voluntary Bodies,Collingwood Care Home,4866.59, 10-May-2021
1067,Revenue,CAHD,South - Commissioned Services,Permanent Residential,Community Theraputic Services,7893.40, 04-May-2021
1068,Revenue,CAHD,Jointly Funded H&SC Packages,Permanent Residential,Community Theraputic Services,4875.84, 04-May-2021
1069,Revenue,CAHD,North - Community based support,Permanent Residential,Community Theraputic Services,8119.76, 04-May-2021
1070,Revenue,CAHD,Jointly Funded H&SC Packages,Permanent Residential,Community Theraputic Services,2027.52, 04-May-2021
1071,Revenue,CAHD,Bed and Breakfast,Bed & Breakfast,Connolly & Callaghan Limited,422.80, 07-May-2021
1072,Revenue,CAHD,Bed and Breakfast,Bed & Breakfast,Connolly & Callaghan Limited,686.70, 07-May-2021
1073,Revenue,CAHD,Bed and Breakfast,Bed & Breakfast,Connolly & Callaghan Limited,719.60, 07-May-2021
1074,Revenue,CAHD,Bed and Breakfast,Bed & Breakfast,Connolly & Callaghan Limited,593.60, 07-May-2021
1075,Revenue,CAHD,Bed and Breakfast,Bed & Breakfast,Connolly & Callaghan Limited,422.80, 07-May-2021
1076,Revenue,CAHD,Bed and Breakfast,Bed & Breakfast,Connolly & Callaghan Limited,422.80, 07-May-2021
1077,Revenue,CAHD,Bed and Breakfast,Bed & Breakfast,Connolly & Callaghan Limited,807.10, 07-May-2021
1078,Revenue,CAHD,Bed and Breakfast,Bed & Breakfast,Connolly & Callaghan Limited,508.20, 25-May-2021
1079,Revenue,CAHD,Bed and Breakfast,Bed & Breakfast,Connolly & Callaghan Limited,422.80, 13-May-2021
1080,Revenue,CAHD,Bed and Breakfast,Bed & Breakfast,Connolly & Callaghan Limited,686.70, 13-May-2021
1081,Revenue,CAHD,Bed and Breakfast,Bed & Breakfast,Connolly & Callaghan Limited,719.60, 13-May-2021
1082,Revenue,CAHD,Bed and Breakfast,Bed & Breakfast,Connolly & Callaghan Limited,593.60, 13-May-2021
1083,Revenue,CAHD,Bed and Breakfast,Bed & Breakfast,Connolly & Callaghan Limited,422.80, 13-May-2021
1084,Revenue,CAHD,Bed and Breakfast,Bed & Breakfast,Connolly & Callaghan Limited,807.10, 13-May-2021
1085,Revenue,CAHD,Bed and Breakfast,Bed & Breakfast,Connolly & Callaghan Limited,508.20, 25-May-2021
1086,Revenue,CAHD,Bed and Breakfast,Bed & Breakfast,Connolly & Callaghan Limited,422.80, 20-May-2021
1087,Revenue,CAHD,Bed and Breakfast,Bed & Breakfast,Connolly & Callaghan Limited,686.70, 20-May-2021
1088,Revenue,CAHD,Bed and Breakfast,Bed & Breakfast,Connolly & Callaghan Limited,719.60, 20-May-2021
1089,Revenue,CAHD,Bed and Breakfast,Bed & Breakfast,Connolly & Callaghan Limited,422.80, 24-May-2021
1090,Revenue,CAHD,Bed and Breakfast,Bed & Breakfast,Connolly & Callaghan Limited,593.60, 24-May-2021
1091,Revenue,CAHD,Bed and Breakfast,Bed & Breakfast,Connolly & Callaghan Limited,807.10, 20-May-2021
1092,Revenue,CAHD,CSC - Fostering Carer Support,Care Mgt/Asesmnt Staff Pay,Core Assets Expert Services Ltd T/A Carter Brown,2600.00, 13-May-2021
1093,Revenue,CAHD,CSC - Fostering Carer Support,Care Mgt/Asesmnt Staff Pay,Core Assets Expert Services Ltd T/A Carter Brown,2600.00, 17-May-2021
1094,Revenue,CAHD,Independent Special Placements - Post 16,Other Private Contractors,Cotswold Chine School,40078.35, 06-May-2021
1095,Revenue,CAHD,Post 16 High Needs Placements,Other Private Contractors,Cotswold Chine School,51333.75, 14-May-2021
1096,Revenue,CAHD,Independent Special Placements - Pre 16,Other Private Contractors,Cotswold Chine School,24434.87, 06-May-2021
1097,Revenue,CAHD,Independent Special Placements - Pre 16,Other Private Contractors,Cotswold Chine School,25727.72, 06-May-2021
1098,Revenue,CAHD,Independent Special Placements - Pre 16,Other Private Contractors,Cotswold Chine School,25793.63, 06-May-2021
1099,Revenue,CAHD,Central - Commissioned Services,Permanent Nursing,Cotswold House Care Home,3484.32, 04-May-2021
1100,Revenue,CAHD,Alexandra Way,Cleaning & Domestic Services,Countrywide Healthcare Supplies Ltd,3986.06, 12-May-2021
1101,Revenue,CAHD,Alexandra Way,Cleaning & Domestic Services,Countrywide Healthcare Supplies Ltd,485.48, 12-May-2021
1102,Revenue,CAHD,North - Community based support,Permanent Residential,Court House Residential C.H.,3400.00, 04-May-2021
1103,Revenue,CAHD,Covid - ASC - Infection Control,Grants to Voluntary Bodies,Courtfield Healthcare Ltd,1184.51, 17-May-2021
1104,Revenue,CAHD,S28A cases,Permanent Residential,Creedy Court,10597.96, 04-May-2021
1105,Revenue,CAHD,S28A cases,Permanent Residential,Creedy Court,8904.92, 04-May-2021
1106,Revenue,CAHD,North - Community based support,Permanent Residential,Creedy Court,14054.00, 04-May-2021
1107,Revenue,CAHD,Central - Commissioned Services,Supported Living,Cygnet Healthcare Limited,3380.00, 04-May-2021
1108,Revenue,CAHD,South - Commissioned Services,Permanent Residential,Daneswood,12759.56, 04-May-2021
1109,Revenue,CAHD,South - Commissioned Services,Day Care / Social Activities,Daneswood,1474.72, 04-May-2021
1110,Revenue,CAHD,North - Community based support,Permanent Residential,Daneswood,13579.68, 04-May-2021
1111,Revenue,CAHD,South - S117,Permanent Nursing,Danshell Healthcare Group,11437.64, 04-May-2021
1112,Revenue,CAHD,Jointly Funded H&SC Packages,Permanent Nursing,Danshell Healthcare Group,1697.16, 04-May-2021
1113,Revenue,CAHD,Learning Difficulties PSL,Rent,Individual,2400.00, 21-May-2021
1114,Revenue,CAHD,CSC - Care Leavers Support Costs,Furniture & Fittings Loose,Individual,1844.00, 28-May-2021
1115,Revenue,CAHD,South - Commissioned Services,Day Care / Social Activities,Deafblind Uk,985.56, 21-May-2021
1116,Revenue,CAHD,North - Community based support,Day Care / Social Activities,Deafblind Uk,779.28, 28-May-2021
1117,Revenue,CAHD,South - Commissioned Services,Day Care / Social Activities,Deafblind Uk,1117.35, 28-May-2021
1118,Revenue,CAHD,Central - Commissioned Services,Permanent Residential,Debt Recovery,4326.88, 04-May-2021
1119,Revenue,CAHD,Central - Commissioned Services,Permanent Residential,Debt Recovery,927.19, 04-May-2021
1120,Revenue,CAHD,South - Commissioned Services,Permanent Residential,Debt Recovery,4422.88, 04-May-2021
1121,Revenue,CAHD,South - Commissioned Services,Permanent Residential,Debt Recovery,947.76, 04-May-2021
1122,Revenue,CAHD,North - Community based support,Permanent Nursing,Debt Recovery,4642.48, 04-May-2021
1123,Revenue,CAHD,North - Community based support,Permanent Nursing,Debt Recovery,994.82, 04-May-2021
1124,Revenue,CAHD,North - Community based support,Permanent Nursing,Debt Recovery,3822.52, 04-May-2021
1125,Revenue,CAHD,North - Community based support,Permanent Nursing,Debt Recovery,819.11, 04-May-2021
1126,Revenue,CAHD,Central - Commissioned Services,Permanent Residential,Debt Recovery,4786.48, 04-May-2021
1127,Revenue,CAHD,Central - Commissioned Services,Permanent Residential,Debt Recovery,1025.67, 04-May-2021
1128,Revenue,CAHD,North - Community based support,Permanent Nursing,Debt Recovery,5724.36, 04-May-2021
1129,Revenue,CAHD,North - Community based support,Permanent Nursing,Debt Recovery,1226.65, 04-May-2021
1130,Revenue,CAHD,North - Community based support,Permanent Nursing,Debt Recovery,3586.16, 04-May-2021
1131,Revenue,CAHD,Central - Commissioned Services,Permanent Nursing,Debt Recovery,5735.40, 04-May-2021
1132,Revenue,CAHD,Central - Commissioned Services,Permanent Nursing,Debt Recovery,1229.01, 04-May-2021
1133,Revenue,CAHD,North - Community based support,Permanent Residential,Debt Recovery,3643.92, 04-May-2021
1134,Revenue,CAHD,North - Community based support,Permanent Nursing,Debt Recovery,4121.24, 04-May-2021
1135,Revenue,CAHD,South - Commissioned Services,Permanent Nursing,Debt Recovery,6566.48, 04-May-2021
1136,Revenue,CAHD,South - Commissioned Services,Permanent Nursing,Debt Recovery,1407.10, 04-May-2021
1137,Revenue,CAHD,South - Commissioned Services,Permanent Nursing,Deerhurst Nursing Home,3970.68, 04-May-2021
1138,Revenue,CAHD,South Glos Users in South Glos Homes,Permanent Nursing,Deerhurst Nursing Home,750.40, 04-May-2021
1139,Revenue,CAHD,South - Commissioned Services,Permanent Nursing,Deerhurst Nursing Home,4192.80, 04-May-2021
1140,Revenue,CAHD,South - Commissioned Services,Permanent Nursing,Deerhurst Nursing Home,4501.20, 04-May-2021
1141,Revenue,CAHD,South Glos Users in South Glos Homes,Permanent Nursing,Deerhurst Nursing Home,750.40, 04-May-2021
1142,Revenue,CAHD,South - Commissioned Services,Day Care / Social Activities,Deerhurst Nursing Home,581.28, 04-May-2021
1143,Revenue,CAHD,South Glos Users in South Glos Homes,Permanent Nursing,Deerhurst Nursing Home,750.40, 04-May-2021
1144,Revenue,CAHD,South Glos Users in South Glos Homes,Permanent Nursing,Deerhurst Nursing Home,750.40, 04-May-2021
1145,Revenue,CAHD,South - Commissioned Services,Permanent Nursing,Deerhurst Nursing Home,4006.00, 04-May-2021
1146,Revenue,CAHD,South Glos Users in South Glos Homes,Permanent Nursing,Deerhurst Nursing Home,750.40, 04-May-2021
1147,Revenue,CAHD,North - Community based support,Permanent Nursing,Deerhurst Nursing Home,3891.20, 04-May-2021
1148,Revenue,CAHD,South - Commissioned Services,Permanent Nursing,Deerhurst Nursing Home,3965.12, 04-May-2021
1149,Revenue,CAHD,South Glos Users in South Glos Homes,Permanent Nursing,Deerhurst Nursing Home,750.40, 04-May-2021
1150,Revenue,CAHD,North - Community based support,Permanent Nursing,Deerhurst Nursing Home,4140.00, 04-May-2021
1151,Revenue,CAHD,South - Commissioned Services,Permanent Nursing,Deerhurst Nursing Home,4129.40, 04-May-2021
1152,Revenue,CAHD,South - Commissioned Services,Permanent Nursing,Deerhurst Nursing Home,4182.12, 04-May-2021
1153,Revenue,CAHD,South Glos Users in South Glos Homes,Permanent Nursing,Deerhurst Nursing Home,750.40, 04-May-2021
1154,Revenue,CAHD,South Glos Users in South Glos Homes,Permanent Nursing,Deerhurst Nursing Home,750.40, 04-May-2021
1155,Revenue,CAHD,South Glos Users in South Glos Homes,Permanent Nursing,Deerhurst Nursing Home,750.40, 04-May-2021
1156,Revenue,CAHD,North - Community based support,Permanent Nursing,Deerhurst Nursing Home,4182.12, 04-May-2021
1157,Revenue,CAHD,South Glos Users in South Glos Homes,Permanent Nursing,Deerhurst Nursing Home,750.40, 04-May-2021
1158,Revenue,CAHD,South - Commissioned Services,Permanent Nursing,Deerhurst Nursing Home,4180.04, 04-May-2021
1159,Revenue,CAHD,South Glos Users in South Glos Homes,Permanent Nursing,Deerhurst Nursing Home,750.40, 04-May-2021
1160,Revenue,CAHD,South Glos Users in South Glos Homes,Permanent Nursing,Deerhurst Nursing Home,750.40, 04-May-2021
1161,Revenue,CAHD,South - Commissioned Services,Permanent Nursing,Deerhurst Nursing Home,4060.32, 04-May-2021
1162,Revenue,CAHD,South Glos Users in South Glos Homes,Permanent Nursing,Deerhurst Nursing Home,750.40, 04-May-2021
1163,Revenue,CAHD,Central - Commissioned Services,Permanent Nursing,Deerhurst Nursing Home,4535.08, 04-May-2021
1164,Revenue,CAHD,South Glos Users in South Glos Homes,Permanent Nursing,Deerhurst Nursing Home,750.40, 04-May-2021
1165,Revenue,CAHD,South Glos Users in South Glos Homes,Permanent Nursing,Deerhurst Nursing Home,750.40, 04-May-2021
1166,Revenue,CAHD,South Glos Users in South Glos Homes,Permanent Nursing,Deerhurst Nursing Home,750.40, 04-May-2021
1167,Revenue,CAHD,South Glos Users in South Glos Homes,Permanent Nursing,Deerhurst Nursing Home,750.40, 04-May-2021
1168,Revenue,CAHD,South - Commissioned Services,Permanent Nursing,Deerhurst Nursing Home,4640.32, 04-May-2021
1169,Revenue,CAHD,South Glos Users in South Glos Homes,Permanent Nursing,Deerhurst Nursing Home,750.40, 04-May-2021
1170,Revenue,CAHD,South Glos Users in South Glos Homes,Permanent Nursing,Deerhurst Nursing Home,750.40, 04-May-2021
1171,Revenue,CAHD,South - Commissioned Services,Permanent Nursing,Deerhurst Nursing Home,4179.32, 04-May-2021
1172,Revenue,CAHD,South Glos Users in South Glos Homes,Permanent Nursing,Deerhurst Nursing Home,750.40, 04-May-2021
1173,Revenue,CAHD,South Glos Users in South Glos Homes,Permanent Nursing,Deerhurst Nursing Home,750.40, 04-May-2021
1174,Revenue,CAHD,South Glos Users in South Glos Homes,Permanent Nursing,Deerhurst Nursing Home,750.40, 04-May-2021
1175,Revenue,CAHD,South - Commissioned Services,Permanent Nursing,Deerhurst Nursing Home,4006.00, 04-May-2021
1176,Revenue,CAHD,South Glos Users in South Glos Homes,Permanent Nursing,Deerhurst Nursing Home,750.40, 04-May-2021
1177,Revenue,CAHD,South - Commissioned Services,Permanent Residential,Deerhurst Nursing Home,4129.00, 04-May-2021
1178,Revenue,CAHD,South Glos Users in South Glos Homes,Permanent Nursing,Deerhurst Nursing Home,750.40, 04-May-2021
1179,Revenue,CAHD,South Glos Users in South Glos Homes,Permanent Nursing,Deerhurst Nursing Home,750.40, 04-May-2021
1180,Revenue,CAHD,South Glos Users in South Glos Homes,Permanent Nursing,Deerhurst Nursing Home,750.40, 04-May-2021
1181,Revenue,CAHD,South - Commissioned Services,Permanent Nursing,Deerhurst Nursing Home,4006.00, 04-May-2021
1182,Revenue,CAHD,South - Commissioned Services,Permanent Residential,Deerhurst Nursing Home,3891.20, 04-May-2021
1183,Revenue,CAHD,South Glos Users in South Glos Homes,Permanent Nursing,Deerhurst Nursing Home,750.40, 04-May-2021
1184,Revenue,CAHD,South Glos Users in South Glos Homes,Permanent Nursing,Deerhurst Nursing Home,750.40, 04-May-2021
1185,Revenue,CAHD,South Glos Users in South Glos Homes,Permanent Nursing,Deerhurst Nursing Home,750.40, 04-May-2021
1186,Revenue,CAHD,South Glos Users in South Glos Homes,Permanent Nursing,Deerhurst Nursing Home,750.40, 04-May-2021
1187,Revenue,CAHD,South Glos Users in South Glos Homes,Permanent Nursing,Deerhurst Nursing Home,750.40, 04-May-2021
1188,Revenue,CAHD,South - Commissioned Services,Permanent Nursing,Deerhurst Nursing Home,4129.00, 04-May-2021
1189,Revenue,CAHD,Covid - ASC - Infection Control,Grants to Voluntary Bodies,Deerhurst Nursing Home,15782.22, 10-May-2021
1190,Revenue,CAHD,ASC Rapid Testing Fund,Grants to Voluntary Bodies,Deerhurst Nursing Home,12353.65, 10-May-2021
1191,Revenue,CAHD,South - Commissioned Services,Supported Living,Design House,2776.88, 04-May-2021
1192,Revenue,CAHD,South - Commissioned Services,Supported Living,Design House,3196.12, 04-May-2021
1193,Revenue,CAHD,South - Commissioned Services,Supported Living,Design House,3035.39, 04-May-2021
1194,Revenue,CAHD,South - Commissioned Services,Supported Living,Design House,3123.40, 04-May-2021
1195,Revenue,CAHD,South - Commissioned Services,Day Care / Social Activities,Design House,538.88, 04-May-2021
1196,Revenue,CAHD,18-25 Year Olds,Supported Living,Design House,3083.24, 04-May-2021
1197,Revenue,CAHD,18-25 Year Olds,Supported Living,Design House,1023.69, 04-May-2021
1198,Revenue,CAHD,Central - Commissioned Services,Day Care / Social Activities,Design House,3060.24, 04-May-2021
1199,Revenue,CAHD,South - Commissioned Services,Day Care / Social Activities,Design House,1347.32, 04-May-2021
1200,Revenue,CAHD,18-25 Year Olds,Supported Living,Design House,1023.69, 04-May-2021
1201,Revenue,CAHD,South - Commissioned Services,Supported Living,Design House,2753.28, 04-May-2021
1202,Revenue,CAHD,South - Commissioned Services,Supported Living,Design House,2753.28, 04-May-2021
1203,Revenue,CAHD,South - Commissioned Services,Supported Living,Design House,2242.76, 04-May-2021
1204,Revenue,CAHD,South - Commissioned Services,Supported Living,Design House,1978.92, 04-May-2021
1205,Revenue,CAHD,South - Commissioned Services,Day Care / Social Activities,Design House,538.88, 04-May-2021
1206,Revenue,CAHD,South - Commissioned Services,Supported Living,Design House,2625.96, 04-May-2021
1207,Revenue,CAHD,South - Commissioned Services,Supported Living,Design House,4494.32, 04-May-2021
1208,Revenue,CAHD,North - Community based support,Supported Living,Design House,3186.96, 04-May-2021
1209,Revenue,CAHD,South - Commissioned Services,Day Care / Social Activities,Design House,1571.40, 04-May-2021
1210,Revenue,CAHD,South - Commissioned Services,Supported Living,Design House,3051.76, 04-May-2021
1211,Revenue,CAHD,South - Commissioned Services,Supported Living,Design House,2653.28, 04-May-2021
1212,Revenue,CAHD,South - Commissioned Services,Supported Living,Design House,2355.60, 04-May-2021
1213,Revenue,CAHD,South - Commissioned Services,Supported Living,Design House,2355.60, 04-May-2021
1214,Revenue,CAHD,Central - Commissioned Services,Other Small Contracts,Dhek Bhal,247.76, 11-May-2021
1215,Revenue,CAHD,South - Commissioned Services,Other Small Contracts,Dhek Bhal,257.28, 11-May-2021
1216,Revenue,CAHD,Central - Commissioned Services,Other Small Contracts,Dhek Bhal,247.76, 18-May-2021
1217,Revenue,CAHD,South - Commissioned Services,Other Small Contracts,Dhek Bhal,257.28, 18-May-2021
1218,Revenue,CAHD,Central - Commissioned Services,Other Small Contracts,Dhek Bhal,247.76, 21-May-2021
1219,Revenue,CAHD,South - Commissioned Services,Other Small Contracts,Dhek Bhal,257.28, 21-May-2021
1220,Revenue,CAHD,Community Support - North,Preventative Assistance,Direct Healthcare Group,1267.00, 13-May-2021
1221,Revenue,CAHD,North - Community based support,Permanent Nursing,Douglas House,3599.80, 04-May-2021
1222,Revenue,CAHD,Statemented Support Academies,Other Public Bodies,Downend School,978.57, 24-May-2021
1223,Revenue,CAHD,Statemented Support Academies,Other Public Bodies,Downend School,660.24, 24-May-2021
1224,Revenue,CAHD,Statemented Support Academies,Other Public Bodies,Downend School,1025.73, 24-May-2021
1225,Revenue,CAHD,Statemented Support Academies,Other Public Bodies,Downend School,1013.94, 24-May-2021
1226,Revenue,CAHD,Statemented Support Academies,Other Public Bodies,Downend School,801.72, 24-May-2021
1227,Revenue,CAHD,Statemented Support Academies,Other Public Bodies,Downend School,530.67, 24-May-2021
1228,Revenue,CAHD,Statemented Support Academies,Other Public Bodies,Downend School,1108.26, 24-May-2021
1229,Revenue,CAHD,Statemented Support Academies,Other Public Bodies,Downend School,554.13, 24-May-2021
1230,Revenue,CAHD,Statemented Support Academies,Other Public Bodies,Downend School,666.00, 24-May-2021
1231,Revenue,CAHD,Statemented Support Academies,Other Public Bodies,Downend School,1079.67, 24-May-2021
1232,Revenue,CAHD,Statemented Support Academies,Other Public Bodies,Downend School,1438.38, 24-May-2021
1233,Revenue,CAHD,Statemented Support Academies,Other Public Bodies,Downend School,1709.55, 24-May-2021
1234,Revenue,CAHD,Statemented Support Academies,Other Public Bodies,Downend School,1192.50, 24-May-2021
1235,Revenue,CAHD,Statemented Support Academies,Other Public Bodies,Downend School,1544.49, 24-May-2021
1236,Revenue,CAHD,Social Lettings Agency,Rent,Individual,822.73, 21-May-2021
1237,Revenue,CAHD,Social Lettings Agency,Fees & Charges Income - General,Individual,-65.82, 21-May-2021
1238,Revenue,CAHD,Adult & Community Learning - Growth Funding,Computer Equipment - Purchase,DSG Retail Limited,10637.60, 05-May-2021
1239,Revenue,CAHD,Adult & Community Learning - Growth Funding,Computer Equipment - Purchase,DSG Retail Limited,1666.60, 05-May-2021
1240,Revenue,CAHD,Adult & Community Learning - Growth Funding,Computer Equipment - Purchase,DSG Retail Limited,1666.60, 05-May-2021
1241,Revenue,CAHD,CSC - Professional Fees Foster Carers,Therapeutic Fostering Fee,Individual,577.00, 07-May-2021
1242,Revenue,CAHD,CSC - Professional Fees Foster Carers,Therapeutic Fostering Fee,Individual,577.00, 14-May-2021
1243,Revenue,CAHD,CSC - Professional Fees Foster Carers,Therapeutic Fostering Fee,Individual,577.00, 21-May-2021
1244,Revenue,CAHD,CSC - Professional Fees Foster Carers,Therapeutic Fostering Fee,Individual,577.00, 28-May-2021
1245,Revenue,CAHD,CSC - Share The Care,Children - Family Support,Individual,1210.00, 21-May-2021
1246,Revenue,CAHD,North - Community based support,Permanent Residential,East Court,2763.56, 04-May-2021
1247,Revenue,CAHD,Central - Commissioned Services,Permanent Residential,Edendale Lodge,3000.00, 04-May-2021
1248,Revenue,CAHD,South - Commissioned Services,Fees & Charges Income - General,Edgemont House Ltd,6421.95, 04-May-2021
1249,Revenue,CAHD,South - Commissioned Services,Permanent Residential,Edgemont House Ltd,3273.60, 04-May-2021
1250,Revenue,CAHD,South - Commissioned Services,Permanent Residential,Edgemont House Ltd,818.40, 04-May-2021
1251,Revenue,CAHD,South - Commissioned Services,Fees & Charges Income - General,Edgemont House Ltd,3999.14, 04-May-2021
1252,Revenue,CAHD,South - Commissioned Services,Permanent Residential,Edgemont House Ltd,3339.08, 04-May-2021
1253,Revenue,CAHD,South - Commissioned Services,Permanent Residential,Edgemont House Ltd,3130.40, 04-May-2021
1254,Revenue,CAHD,Covid - ASC - Infection Control,Grants to Voluntary Bodies,Edgemont House Ltd,3347.74, 17-May-2021
1255,Revenue,CAHD,ASC Rapid Testing Fund,Grants to Voluntary Bodies,Edgemont House Ltd,2620.47, 17-May-2021
1256,Revenue,CAHD,South - Commissioned Services,Permanent Nursing,Edgemont View Ltd,3580.52, 04-May-2021
1257,Revenue,CAHD,South Glos Users in South Glos Homes,Permanent Nursing,Edgemont View Ltd,750.40, 04-May-2021
1258,Revenue,CAHD,South - Commissioned Services,Permanent Nursing,Edgemont View Ltd,3580.52, 04-May-2021
1259,Revenue,CAHD,South Glos Users in South Glos Homes,Permanent Nursing,Edgemont View Ltd,750.40, 04-May-2021
1260,Revenue,CAHD,South - Commissioned Services,Permanent Nursing,Edgemont View Ltd,3478.20, 04-May-2021
1261,Revenue,CAHD,South Glos Users in South Glos Homes,Permanent Nursing,Edgemont View Ltd,2469.78, 04-May-2021
1262,Revenue,CAHD,South Glos Users in South Glos Homes,Permanent Nursing,Edgemont View Ltd,750.40, 04-May-2021
1263,Revenue,CAHD,Covid 19- Spend on behalf of NHS,Respite Planned - Nursing,Edgemont View Ltd,1357.14, 04-May-2021
1264,Revenue,CAHD,South Glos Users in South Glos Homes,Permanent Nursing,Edgemont View Ltd,750.40, 04-May-2021
1265,Revenue,CAHD,South - Commissioned Services,Permanent Nursing,Edgemont View Ltd,3478.20, 04-May-2021
1266,Revenue,CAHD,South Glos Users in South Glos Homes,Permanent Nursing,Edgemont View Ltd,750.40, 04-May-2021
1267,Revenue,CAHD,Covid 19- Spend on behalf of NHS,Respite Planned - Nursing,Edgemont View Ltd,6800.00, 04-May-2021
1268,Revenue,CAHD,South - Commissioned Services,Permanent Nursing,Edgemont View Ltd,5100.00, 04-May-2021
1269,Revenue,CAHD,South - Commissioned Services,Permanent Nursing,Edgemont View Ltd,3478.20, 04-May-2021
1270,Revenue,CAHD,South - Commissioned Services,Permanent Nursing,Edgemont View Ltd,869.55, 04-May-2021
1271,Revenue,CAHD,South - Commissioned Services,Fees & Charges Income - General,Edgemont View Ltd,871.84, 04-May-2021
1272,Revenue,CAHD,South Glos Users in South Glos Homes,Permanent Nursing,Edgemont View Ltd,750.40, 04-May-2021
1273,Revenue,CAHD,South - Commissioned Services,Permanent Nursing,Edgemont View Ltd,3682.80, 04-May-2021
1274,Revenue,CAHD,South Glos Users in South Glos Homes,Permanent Nursing,Edgemont View Ltd,750.40, 04-May-2021
1275,Revenue,CAHD,South - Commissioned Services,Permanent Nursing,Edgemont View Ltd,3580.52, 04-May-2021
1276,Revenue,CAHD,South Glos Users in South Glos Homes,Permanent Nursing,Edgemont View Ltd,750.40, 04-May-2021
1277,Revenue,CAHD,South - Commissioned Services,Fees & Charges Income - General,Edgemont View Ltd,1096.72, 04-May-2021
1278,Revenue,CAHD,South Glos Users in South Glos Homes,Permanent Nursing,Edgemont View Ltd,750.40, 04-May-2021
1279,Revenue,CAHD,South - Commissioned Services,Permanent Nursing,Edgemont View Ltd,3989.72, 04-May-2021
1280,Revenue,CAHD,South Glos Users in South Glos Homes,Permanent Nursing,Edgemont View Ltd,750.40, 04-May-2021
1281,Revenue,CAHD,South Glos Users in South Glos Homes,Permanent Nursing,Edgemont View Ltd,750.40, 04-May-2021
1282,Revenue,CAHD,Covid 19- Spend on behalf of NHS,Respite Planned - Nursing,Edgemont View Ltd,3400.00, 04-May-2021
1283,Revenue,CAHD,South Glos Users in South Glos Homes,Permanent Nursing,Edgemont View Ltd,750.40, 04-May-2021
1284,Revenue,CAHD,South - Commissioned Services,Permanent Nursing,Edgemont View Ltd,3739.76, 04-May-2021
1285,Revenue,CAHD,South Glos Users in South Glos Homes,Permanent Nursing,Edgemont View Ltd,750.40, 04-May-2021
1286,Revenue,CAHD,Covid - ASC - Infection Control,Grants to Voluntary Bodies,Edgemont View Ltd,5021.62, 17-May-2021
1287,Revenue,CAHD,ASC Rapid Testing Fund,Grants to Voluntary Bodies,Edgemont View Ltd,3930.71, 17-May-2021
1288,Revenue,CAHD,LOMP Local Outbreak Mgmt Plan,Other Supplies & Services,Efeedback Research Ltd t/a Cognisant Research,3025.00, 28-May-2021
1289,Revenue,CAHD,Planning and Partnerships Procurement,Other Supplies & Services,Eldercare,2663.50, 28-May-2021
1290,Revenue,CAHD,Planning and Partnerships Procurement,Other Supplies & Services,Eldercare,450.00, 28-May-2021
1291,Revenue,CAHD,Planning and Partnerships Procurement,Other Supplies & Services,Eldercare,2542.70, 28-May-2021
1292,Revenue,CAHD,Social Lettings Agency,Rent,Individual,1321.36, 13-May-2021
1293,Revenue,CAHD,Social Lettings Agency,Fees & Charges Income - General,Individual,-79.30, 13-May-2021
1294,Revenue,CAHD,Placements OLA Special Schools and RB,Other L.A.s - General,Elmfield School for Deaf Children,1268.03, 21-May-2021
1295,Revenue,CAHD,Placements OLA Special Schools and RB,Other L.A.s - General,Elmfield School for Deaf Children,792.40, 21-May-2021
1296,Revenue,CAHD,Placements OLA Special Schools and RB,Other L.A.s - General,Elmfield School for Deaf Children,1268.03, 21-May-2021
1297,Revenue,CAHD,Placements OLA Special Schools and RB,Other L.A.s - General,Elmfield School for Deaf Children,1268.03, 21-May-2021
1298,Revenue,CAHD,Placements OLA Special Schools and RB,Other L.A.s - General,Elmfield School for Deaf Children,1268.03, 21-May-2021
1299,Revenue,CAHD,Placements OLA Special Schools and RB,Other L.A.s - General,Elmfield School for Deaf Children,792.40, 21-May-2021
1300,Revenue,CAHD,Placements OLA Special Schools and RB,Other L.A.s - General,Elmfield School for Deaf Children,1268.03, 21-May-2021
1301,Revenue,CAHD,Special ISB,Other Public Bodies,Enable Trust,6794.56, 24-May-2021
1302,Revenue,CAHD,Special ISB,Other Public Bodies,Enable Trust,1540.83, 24-May-2021
1303,Revenue,CAHD,Special ISB,Other Public Bodies,Enable Trust,1175.87, 24-May-2021
1304,Revenue,CAHD,Special ISB,Other Public Bodies,Enable Trust,1175.87, 24-May-2021
1305,Revenue,CAHD,Special ISB,Other Public Bodies,Enable Trust,892.05, 24-May-2021
1306,Revenue,CAHD,Special ISB,Other Public Bodies,Enable Trust,1540.83, 24-May-2021
1307,Revenue,CAHD,Special ISB,Other Public Bodies,Enable Trust,1540.83, 24-May-2021
1308,Revenue,CAHD,Special ISB,Other Public Bodies,Enable Trust,1175.87, 24-May-2021
1309,Revenue,CAHD,Special ISB,Other Public Bodies,Enable Trust,1175.87, 24-May-2021
1310,Revenue,CAHD,Special ISB,Other Public Bodies,Enable Trust,1175.87, 24-May-2021
1311,Revenue,CAHD,Special ISB,Other Public Bodies,Enable Trust,1540.83, 24-May-2021
1312,Revenue,CAHD,Special ISB,Other Public Bodies,Enable Trust,648.70, 24-May-2021
1313,Revenue,CAHD,Special ISB,Other Public Bodies,Enable Trust,892.05, 24-May-2021
1314,Revenue,CAHD,Special ISB,Other Public Bodies,Enable Trust,892.05, 24-May-2021
1315,Revenue,CAHD,Special ISB,Other Public Bodies,Enable Trust,1175.87, 24-May-2021
1316,Revenue,CAHD,Special ISB,Other Public Bodies,Enable Trust,1175.87, 24-May-2021
1317,Revenue,CAHD,Special ISB,Other Public Bodies,Enable Trust,1175.87, 24-May-2021
1318,Revenue,CAHD,Special ISB,Other Public Bodies,Enable Trust,1540.83, 24-May-2021
1319,Revenue,CAHD,Special ISB,Other Public Bodies,Enable Trust,648.70, 24-May-2021
1320,Revenue,CAHD,Special ISB,Other Public Bodies,Enable Trust,1702.96, 24-May-2021
1321,Revenue,CAHD,Special ISB,Other Public Bodies,Enable Trust,1540.83, 24-May-2021
1322,Revenue,CAHD,Special ISB,Other Public Bodies,Enable Trust,1175.87, 24-May-2021
1323,Revenue,CAHD,Special ISB,Other Public Bodies,Enable Trust,1175.87, 24-May-2021
1324,Revenue,CAHD,Special ISB,Other Public Bodies,Enable Trust,892.05, 24-May-2021
1325,Revenue,CAHD,Special ISB,Other Public Bodies,Enable Trust,1175.87, 24-May-2021
1326,Revenue,CAHD,Special ISB,Other Public Bodies,Enable Trust,892.05, 24-May-2021
1327,Revenue,CAHD,Special ISB,Other Public Bodies,Enable Trust,2189.53, 24-May-2021
1328,Revenue,CAHD,Special ISB,Other Public Bodies,Enable Trust,1175.87, 24-May-2021
1329,Revenue,CAHD,Special ISB,Other Public Bodies,Enable Trust,1175.87, 24-May-2021
1330,Revenue,CAHD,Special ISB,Other Public Bodies,Enable Trust,1175.87, 24-May-2021
1331,Revenue,CAHD,Special ISB,Other Public Bodies,Enable Trust,1175.87, 24-May-2021
1332,Revenue,CAHD,Special ISB,Other Public Bodies,Enable Trust,2189.53, 24-May-2021
1333,Revenue,CAHD,Special ISB,Other Public Bodies,Enable Trust,1175.87, 24-May-2021
1334,Revenue,CAHD,Special ISB,Other Public Bodies,Enable Trust,1540.83, 24-May-2021
1335,Revenue,CAHD,Special ISB,Other Public Bodies,Enable Trust,892.05, 24-May-2021
1336,Revenue,CAHD,Special ISB,Other Public Bodies,Enable Trust,1540.83, 24-May-2021
1337,Revenue,CAHD,Special ISB,Other Public Bodies,Enable Trust,1175.87, 24-May-2021
1338,Revenue,CAHD,Special ISB,Other Public Bodies,Enable Trust,1540.83, 24-May-2021
1339,Revenue,CAHD,Special ISB,Other Public Bodies,Enable Trust,1175.87, 24-May-2021
1340,Revenue,CAHD,Special ISB,Other Public Bodies,Enable Trust,1540.83, 24-May-2021
1341,Revenue,CAHD,Special ISB,Other Public Bodies,Enable Trust,1175.87, 24-May-2021
1342,Revenue,CAHD,Special ISB,Other Public Bodies,Enable Trust,1175.87, 24-May-2021
1343,Revenue,CAHD,Special ISB,Other Public Bodies,Enable Trust,1175.87, 24-May-2021
1344,Revenue,CAHD,Special ISB,Other Public Bodies,Enable Trust,1175.87, 24-May-2021
1345,Revenue,CAHD,Special ISB,Other Public Bodies,Enable Trust,2189.53, 24-May-2021
1346,Revenue,CAHD,Special ISB,Other Public Bodies,Enable Trust,1540.83, 24-May-2021
1347,Revenue,CAHD,Special ISB,Other Public Bodies,Enable Trust,892.05, 24-May-2021
1348,Revenue,CAHD,Special ISB,Other Public Bodies,Enable Trust,892.05, 24-May-2021
1349,Revenue,CAHD,Special ISB,Other Public Bodies,Enable Trust,1540.83, 24-May-2021
1350,Revenue,CAHD,Special ISB,Other Public Bodies,Enable Trust,1540.83, 24-May-2021
1351,Revenue,CAHD,Special ISB,Other Public Bodies,Enable Trust,1175.87, 24-May-2021
1352,Revenue,CAHD,Special ISB,Other Public Bodies,Enable Trust,1175.87, 24-May-2021
1353,Revenue,CAHD,Special ISB,Other Public Bodies,Enable Trust,1540.83, 24-May-2021
1354,Revenue,CAHD,Special ISB,Other Public Bodies,Enable Trust,1540.83, 24-May-2021
1355,Revenue,CAHD,Special ISB,Other Public Bodies,Enable Trust,1175.87, 24-May-2021
1356,Revenue,CAHD,Special ISB,Other Public Bodies,Enable Trust,1175.87, 24-May-2021
1357,Revenue,CAHD,Special ISB,Other Public Bodies,Enable Trust,1175.87, 24-May-2021
1358,Revenue,CAHD,Special ISB,Other Public Bodies,Enable Trust,1175.87, 24-May-2021
1359,Revenue,CAHD,Special ISB,Other Public Bodies,Enable Trust,1175.87, 24-May-2021
1360,Revenue,CAHD,Special ISB,Other Public Bodies,Enable Trust,1540.83, 24-May-2021
1361,Revenue,CAHD,Special ISB,Other Public Bodies,Enable Trust,2189.53, 24-May-2021
1362,Revenue,CAHD,Special ISB,Other Public Bodies,Enable Trust,2189.53, 24-May-2021
1363,Revenue,CAHD,Special ISB,Other Public Bodies,Enable Trust,1175.87, 24-May-2021
1364,Revenue,CAHD,Special ISB,Other Public Bodies,Enable Trust,648.70, 24-May-2021
1365,Revenue,CAHD,Special ISB,Other Public Bodies,Enable Trust,1175.87, 24-May-2021
1366,Revenue,CAHD,Special ISB,Other Public Bodies,Enable Trust,1175.87, 24-May-2021
1367,Revenue,CAHD,Special ISB,Other Public Bodies,Enable Trust,892.05, 24-May-2021
1368,Revenue,CAHD,Special ISB,Other Public Bodies,Enable Trust,1175.87, 24-May-2021
1369,Revenue,CAHD,Special ISB,Other Public Bodies,Enable Trust,892.05, 24-May-2021
1370,Revenue,CAHD,Special ISB,Other Public Bodies,Enable Trust,1540.83, 24-May-2021
1371,Revenue,CAHD,Special ISB,Other Public Bodies,Enable Trust,1175.87, 24-May-2021
1372,Revenue,CAHD,Special ISB,Other Public Bodies,Enable Trust,892.05, 24-May-2021
1373,Revenue,CAHD,Special ISB,Other Public Bodies,Enable Trust,1540.83, 24-May-2021
1374,Revenue,CAHD,Special ISB,Other Public Bodies,Enable Trust,1540.83, 24-May-2021
1375,Revenue,CAHD,Special ISB,Other Public Bodies,Enable Trust,1175.87, 24-May-2021
1376,Revenue,CAHD,Special ISB,Other Public Bodies,Enable Trust,2189.53, 24-May-2021
1377,Revenue,CAHD,Special ISB,Other Public Bodies,Enable Trust,2189.53, 24-May-2021
1378,Revenue,CAHD,Special ISB,Other Public Bodies,Enable Trust,2189.53, 24-May-2021
1379,Revenue,CAHD,Special ISB,Other Public Bodies,Enable Trust,892.05, 24-May-2021
1380,Revenue,CAHD,Special ISB,Other Public Bodies,Enable Trust,892.05, 24-May-2021
1381,Revenue,CAHD,Special ISB,Other Public Bodies,Enable Trust,1702.96, 24-May-2021
1382,Revenue,CAHD,Special ISB,Other Public Bodies,Enable Trust,1175.87, 24-May-2021
1383,Revenue,CAHD,Special ISB,Other Public Bodies,Enable Trust,1698.64, 24-May-2021
1384,Revenue,CAHD,Special ISB,Other Public Bodies,Enable Trust,1175.87, 24-May-2021
1385,Revenue,CAHD,Special ISB,Other Public Bodies,Enable Trust,1702.96, 24-May-2021
1386,Revenue,CAHD,Special ISB,Other Public Bodies,Enable Trust,892.05, 24-May-2021
1387,Revenue,CAHD,Special ISB,Other Public Bodies,Enable Trust,1702.96, 24-May-2021
1388,Revenue,CAHD,Special ISB,Other Public Bodies,Enable Trust,1175.87, 24-May-2021
1389,Revenue,CAHD,Special ISB,Other Public Bodies,Enable Trust,2189.53, 24-May-2021
1390,Revenue,CAHD,Special ISB,Other Public Bodies,Enable Trust,2189.53, 24-May-2021
1391,Revenue,CAHD,Special ISB,Other Public Bodies,Enable Trust,1508.33, 24-May-2021
1392,Revenue,CAHD,Special ISB,Other Public Bodies,Enable Trust,892.05, 24-May-2021
1393,Revenue,CAHD,Special ISB,Other Public Bodies,Enable Trust,892.05, 24-May-2021
1394,Revenue,CAHD,Special ISB,Other Public Bodies,Enable Trust,2513.88, 24-May-2021
1395,Revenue,CAHD,Special ISB,Other Public Bodies,Enable Trust,892.05, 24-May-2021
1396,Revenue,CAHD,Special ISB,Other Public Bodies,Enable Trust,892.05, 24-May-2021
1397,Revenue,CAHD,Special ISB,Other Public Bodies,Enable Trust,1702.96, 24-May-2021
1398,Revenue,CAHD,Special ISB,Other Public Bodies,Enable Trust,1702.96, 24-May-2021
1399,Revenue,CAHD,Special ISB,Other Public Bodies,Enable Trust,1702.96, 24-May-2021
1400,Revenue,CAHD,Special ISB,Other Public Bodies,Enable Trust,1702.96, 24-May-2021
1401,Revenue,CAHD,Special ISB,Other Public Bodies,Enable Trust,1175.87, 24-May-2021
1402,Revenue,CAHD,Special ISB,Other Public Bodies,Enable Trust,1175.87, 24-May-2021
1403,Revenue,CAHD,Special ISB,Other Public Bodies,Enable Trust,1702.96, 24-May-2021
1404,Revenue,CAHD,Special ISB,Other Public Bodies,Enable Trust,1175.87, 24-May-2021
1405,Revenue,CAHD,Special ISB,Other Public Bodies,Enable Trust,1702.96, 24-May-2021
1406,Revenue,CAHD,Special ISB,Other Public Bodies,Enable Trust,1175.87, 24-May-2021
1407,Revenue,CAHD,Special ISB,Other Public Bodies,Enable Trust,1702.96, 24-May-2021
1408,Revenue,CAHD,Special ISB,Other Public Bodies,Enable Trust,1175.87, 24-May-2021
1409,Revenue,CAHD,Special ISB,Other Public Bodies,Enable Trust,1175.87, 24-May-2021
1410,Revenue,CAHD,Special ISB,Other Public Bodies,Enable Trust,1175.87, 24-May-2021
1411,Revenue,CAHD,Special ISB,Other Public Bodies,Enable Trust,1175.87, 24-May-2021
1412,Revenue,CAHD,Special ISB,Other Public Bodies,Enable Trust,1175.87, 24-May-2021
1413,Revenue,CAHD,Special ISB,Other Public Bodies,Enable Trust,1175.87, 24-May-2021
1414,Revenue,CAHD,Special ISB,Other Public Bodies,Enable Trust,2189.53, 24-May-2021
1415,Revenue,CAHD,Special ISB,Other Public Bodies,Enable Trust,1702.96, 24-May-2021
1416,Revenue,CAHD,Special ISB,Other Public Bodies,Enable Trust,1702.96, 24-May-2021
1417,Revenue,CAHD,Special ISB,Other Public Bodies,Enable Trust,892.05, 24-May-2021
1418,Revenue,CAHD,Special ISB,Other Public Bodies,Enable Trust,648.70, 24-May-2021
1419,Revenue,CAHD,Special ISB,Other Public Bodies,Enable Trust,1175.87, 24-May-2021
1420,Revenue,CAHD,Special ISB,Other Public Bodies,Enable Trust,892.05, 24-May-2021
1421,Revenue,CAHD,Special ISB,Other Public Bodies,Enable Trust,1175.87, 24-May-2021
1422,Revenue,CAHD,Special ISB,Other Public Bodies,Enable Trust,1702.96, 24-May-2021
1423,Revenue,CAHD,Special ISB,Other Public Bodies,Enable Trust,1540.83, 24-May-2021
1424,Revenue,CAHD,Special ISB,Other Public Bodies,Enable Trust,892.05, 24-May-2021
1425,Revenue,CAHD,Special ISB,Other Public Bodies,Enable Trust,1702.96, 24-May-2021
1426,Revenue,CAHD,Special ISB,Other Public Bodies,Enable Trust,1175.87, 24-May-2021
1427,Revenue,CAHD,Special ISB,Other Public Bodies,Enable Trust,1175.87, 24-May-2021
1428,Revenue,CAHD,Special ISB,Other Public Bodies,Enable Trust,1175.87, 24-May-2021
1429,Revenue,CAHD,Special ISB,Other Public Bodies,Enable Trust,892.05, 24-May-2021
1430,Revenue,CAHD,Special ISB,Other Public Bodies,Enable Trust,892.05, 24-May-2021
1431,Revenue,CAHD,Special ISB,Other Public Bodies,Enable Trust,892.05, 24-May-2021
1432,Revenue,CAHD,Special ISB,Other Public Bodies,Enable Trust,1175.87, 24-May-2021
1433,Revenue,CAHD,Special ISB,Other Public Bodies,Enable Trust,892.05, 24-May-2021
1434,Revenue,CAHD,Special ISB,Other Public Bodies,Enable Trust,892.05, 24-May-2021
1435,Revenue,CAHD,Special ISB,Other Public Bodies,Enable Trust,1175.87, 24-May-2021
1436,Revenue,CAHD,Special ISB,Other Public Bodies,Enable Trust,1175.87, 24-May-2021
1437,Revenue,CAHD,Special ISB,Other Public Bodies,Enable Trust,892.05, 24-May-2021
1438,Revenue,CAHD,Special ISB,Other Public Bodies,Enable Trust,892.05, 24-May-2021
1439,Revenue,CAHD,Special ISB,Other Public Bodies,Enable Trust,1175.87, 24-May-2021
1440,Revenue,CAHD,Special ISB,Other Public Bodies,Enable Trust,1175.87, 24-May-2021
1441,Revenue,CAHD,Special ISB,Other Public Bodies,Enable Trust,1175.87, 24-May-2021
1442,Revenue,CAHD,Special ISB,Other Public Bodies,Enable Trust,1702.96, 24-May-2021
1443,Revenue,CAHD,Special ISB,Other Public Bodies,Enable Trust,1175.87, 24-May-2021
1444,Revenue,CAHD,Special ISB,Other Public Bodies,Enable Trust,892.05, 24-May-2021
1445,Revenue,CAHD,Special ISB,Other Public Bodies,Enable Trust,892.05, 24-May-2021
1446,Revenue,CAHD,Special ISB,Other Public Bodies,Enable Trust,2189.53, 24-May-2021
1447,Revenue,CAHD,Special ISB,Other Public Bodies,Enable Trust,1175.87, 24-May-2021
1448,Revenue,CAHD,Special ISB,Other Public Bodies,Enable Trust,892.05, 24-May-2021
1449,Revenue,CAHD,Special ISB,Other Public Bodies,Enable Trust,2189.53, 24-May-2021
1450,Revenue,CAHD,Special ISB,Other Public Bodies,Enable Trust,1540.83, 24-May-2021
1451,Revenue,CAHD,Special ISB,Other Public Bodies,Enable Trust,648.70, 24-May-2021
1452,Revenue,CAHD,Special ISB,Other Public Bodies,Enable Trust,1175.87, 24-May-2021
1453,Revenue,CAHD,Special ISB,Other Public Bodies,Enable Trust,2189.53, 24-May-2021
1454,Revenue,CAHD,Special ISB,Other Public Bodies,Enable Trust,1175.87, 24-May-2021
1455,Revenue,CAHD,Special ISB,Other Public Bodies,Enable Trust,2189.53, 24-May-2021
1456,Revenue,CAHD,Special ISB,Other Public Bodies,Enable Trust,1021.76, 24-May-2021
1457,Revenue,CAHD,Special ISB,Other Public Bodies,Enable Trust,1702.96, 24-May-2021
1458,Revenue,CAHD,Special ISB,Other Public Bodies,Enable Trust,1702.96, 24-May-2021
1459,Revenue,CAHD,Special ISB,Other Public Bodies,Enable Trust,1702.96, 24-May-2021
1460,Revenue,CAHD,Special ISB,Other Public Bodies,Enable Trust,2513.88, 24-May-2021
1461,Revenue,CAHD,Special ISB,Other Public Bodies,Enable Trust,2189.53, 24-May-2021
1462,Revenue,CAHD,Special ISB,Other Public Bodies,Enable Trust,1702.96, 24-May-2021
1463,Revenue,CAHD,Special ISB,Other Public Bodies,Enable Trust,1702.96, 24-May-2021
1464,Revenue,CAHD,Special ISB,Other Public Bodies,Enable Trust,1175.87, 24-May-2021
1465,Revenue,CAHD,Special ISB,Other Public Bodies,Enable Trust,1702.96, 24-May-2021
1466,Revenue,CAHD,Special ISB,Other Public Bodies,Enable Trust,2513.88, 24-May-2021
1467,Revenue,CAHD,Special ISB,Other Public Bodies,Enable Trust,2513.88, 24-May-2021
1468,Revenue,CAHD,Special ISB,Other Public Bodies,Enable Trust,1313.74, 24-May-2021
1469,Revenue,CAHD,Special ISB,Other Public Bodies,Enable Trust,1175.87, 24-May-2021
1470,Revenue,CAHD,Special ISB,Other Public Bodies,Enable Trust,2189.53, 24-May-2021
1471,Revenue,CAHD,Special ISB,Other Public Bodies,Enable Trust,1175.87, 24-May-2021
1472,Revenue,CAHD,Special ISB,Other Public Bodies,Enable Trust,1540.83, 24-May-2021
1473,Revenue,CAHD,Special ISB,Other Public Bodies,Enable Trust,1702.96, 24-May-2021
1474,Revenue,CAHD,Special ISB,Other Public Bodies,Enable Trust,1702.96, 24-May-2021
1475,Revenue,CAHD,South - Commissioned Services,Other Small Contracts,Epiphany In Care,539.55, 28-May-2021
1476,Revenue,CAHD,Central - Commissioned Services,Other Small Contracts,Epiphany In Care,5076.00, 04-May-2021
1477,Revenue,CAHD,North - Community based support,Other Small Contracts,Epiphany In Care,4164.16, 21-May-2021
1478,Revenue,CAHD,South - Commissioned Services,Other Small Contracts,Epiphany In Care,1730.96, 21-May-2021
1479,Revenue,CAHD,Central - Commissioned Services,Other Small Contracts,Epiphany In Care,1208.24, 28-May-2021
1480,Revenue,CAHD,North - S117,Permanent Residential,Evolve House,3276.80, 04-May-2021
1481,Revenue,CAHD,Placements OLA Special Schools and RB,Other L.A.s - General,Excalibur Academies Trust T/A,2238.78, 21-May-2021
1482,Revenue,CAHD,Social Lettings Agency,Prop.Serv. General Repairs,Express Property Services Limited,39.00, 27-May-2021
1483,Revenue,CAHD,Social Lettings Agency,Prop.Serv. General Repairs,Express Property Services Limited,60.00, 27-May-2021
1484,Revenue,CAHD,Social Lettings Agency,Prop.Serv. General Repairs,Express Property Services Limited,93.00, 27-May-2021
1485,Revenue,CAHD,Social Lettings Agency,Prop.Serv. General Repairs,Express Property Services Limited,106.00, 27-May-2021
1486,Revenue,CAHD,Social Lettings Agency,Prop.Serv. General Repairs,Express Property Services Limited,2008.00, 27-May-2021
1487,Revenue,CAHD,Social Lettings Agency,Prop.Serv. General Repairs,Express Property Services Limited,135.00, 27-May-2021
1488,Revenue,CAHD,Social Lettings Agency,Prop.Serv. General Repairs,Express Property Services Limited,135.00, 27-May-2021
1489,Revenue,CAHD,Social Lettings Agency,Prop.Serv. General Repairs,Express Property Services Limited,74.50, 27-May-2021
1490,Revenue,CAHD,Social Lettings Agency,Prop.Serv. General Repairs,Express Property Services Limited,1574.00, 27-May-2021
1491,Revenue,CAHD,Social Lettings Agency,Prop.Serv. General Repairs,Express Property Services Limited,135.00, 27-May-2021
1492,Revenue,CAHD,Social Lettings Agency,Prop.Serv. General Repairs,Express Property Services Limited,398.00, 27-May-2021
1493,Revenue,CAHD,Social Lettings Agency,Prop.Serv. General Repairs,Express Property Services Limited,205.00, 27-May-2021
1494,Revenue,CAHD,Social Lettings Agency,Prop.Serv. General Repairs,Express Property Services Limited,50.50, 27-May-2021
1495,Revenue,CAHD,Social Lettings Agency,Prop.Serv. General Repairs,Express Property Services Limited,289.00, 27-May-2021
1496,Revenue,CAHD,Social Lettings Agency,Prop.Serv. General Repairs,Express Property Services Limited,195.00, 27-May-2021
1497,Revenue,CAHD,Learning Difficulties PSL,Prop.Serv. General Repairs,Express Property Services Limited,88.34, 27-May-2021
1498,Revenue,CAHD,Homeless - Private Sector Leasing,Prop.Serv. General Repairs,Express Property Services Limited,60.00, 27-May-2021
1499,Revenue,CAHD,Homeless - Private Sector Leasing,Prop.Serv. General Repairs,Express Property Services Limited,81.98, 27-May-2021
1500,Revenue,CAHD,Extra Care Housing,Private & Voluntary Home Care,Extra Care Charitable Trust,27505.67, 12-May-2021
1501,Revenue,CAHD,North - Community based support,Permanent Residential,Eyre Court,37221.43, 04-May-2021
1502,Revenue,CAHD,North - Community based support,Permanent Residential,Eyre Court,5785.71, 04-May-2021
1503,Revenue,CAHD,North - Community based support,Permanent Residential,Eyre Court,5400.00, 04-May-2021
1504,Revenue,CAHD,North - Community based support,Permanent Residential,Eyre Court,4212.00, 04-May-2021
1505,Revenue,CAHD,North - Community based support,Permanent Residential,Eyre Court,1350.00, 04-May-2021
1506,Revenue,CAHD,North - Community based support,Permanent Residential,Eyre Court,1350.00, 04-May-2021
1507,Revenue,CAHD,North - Community based support,Permanent Residential,Eyre Court,1018.29, 04-May-2021
1508,Revenue,CAHD,North - Community based support,Fees & Charges Income - General,Eyre Court,4104.01, 04-May-2021
1509,Revenue,CAHD,North - Community based support,Permanent Residential,Eyre Court,6787.50, 04-May-2021
1510,Revenue,CAHD,North - Community based support,Permanent Residential,Eyre Court,5430.00, 04-May-2021
1511,Revenue,CAHD,North - Community based support,Permanent Residential,Eyre Court,1357.50, 04-May-2021
1512,Revenue,CAHD,Covid - ASC - Infection Control,Grants to Voluntary Bodies,Eyre Court,12195.35, 10-May-2021
1513,Revenue,CAHD,ASC Rapid Testing Fund,Grants to Voluntary Bodies,Eyre Court,9546.01, 10-May-2021
1514,Revenue,CAHD,Post 16 High Needs Placements,Other Private Contractors,Fairfield Farm Trust,21099.13, 17-May-2021
1515,Revenue,CAHD,Post 16 High Needs Placements,Other Private Contractors,Fairfield Farm Trust,12494.66, 19-May-2021
1516,Revenue,CAHD,South - Commissioned Services,Permanent Nursing,Fairview Court,3976.16, 04-May-2021
1517,Revenue,CAHD,South Glos Users in South Glos Homes,Permanent Nursing,Fairview Court,750.40, 04-May-2021
1518,Revenue,CAHD,South Glos Users in South Glos Homes,Permanent Nursing,Fairview Court,750.40, 04-May-2021
1519,Revenue,CAHD,South - Commissioned Services,Permanent Nursing,Fairview Court,4800.00, 04-May-2021
1520,Revenue,CAHD,South Glos Users in South Glos Homes,Permanent Nursing,Fairview Court,750.40, 04-May-2021
1521,Revenue,CAHD,South - Commissioned Services,Permanent Nursing,Fairview Court,4232.92, 04-May-2021
1522,Revenue,CAHD,South Glos Users in South Glos Homes,Permanent Nursing,Fairview Court,750.40, 04-May-2021
1523,Revenue,CAHD,South Glos Users in South Glos Homes,Permanent Nursing,Fairview Court,750.40, 04-May-2021
1524,Revenue,CAHD,South Glos Users in South Glos Homes,Permanent Nursing,Fairview Court,750.40, 04-May-2021
1525,Revenue,CAHD,Central - Commissioned Services,Permanent Nursing,Fairview Court,4800.00, 04-May-2021
1526,Revenue,CAHD,South Glos Users in South Glos Homes,Permanent Nursing,Fairview Court,750.40, 04-May-2021
1527,Revenue,CAHD,South Glos Users in South Glos Homes,Permanent Nursing,Fairview Court,750.40, 04-May-2021
1528,Revenue,CAHD,South - Commissioned Services,Permanent Nursing,Fairview Court,4910.40, 04-May-2021
1529,Revenue,CAHD,South Glos Users in South Glos Homes,Permanent Nursing,Fairview Court,750.40, 04-May-2021
1530,Revenue,CAHD,South - S117,Permanent Nursing,Fairview Court,4355.24, 04-May-2021
1531,Revenue,CAHD,South Glos Users in South Glos Homes,Permanent Nursing,Fairview Court,750.40, 04-May-2021
1532,Revenue,CAHD,South - Commissioned Services,Permanent Nursing,Fairview Court,4078.24, 04-May-2021
1533,Revenue,CAHD,South Glos Users in South Glos Homes,Permanent Nursing,Fairview Court,750.40, 04-May-2021
1534,Revenue,CAHD,South Glos Users in South Glos Homes,Permanent Nursing,Fairview Court,750.40, 04-May-2021
1535,Revenue,CAHD,South - Commissioned Services,Permanent Nursing,Fairview Court,4800.00, 04-May-2021
1536,Revenue,CAHD,South Glos Users in South Glos Homes,Permanent Nursing,Fairview Court,750.40, 04-May-2021
1537,Revenue,CAHD,South Glos Users in South Glos Homes,Permanent Nursing,Fairview Court,750.40, 04-May-2021
1538,Revenue,CAHD,South Glos Users in South Glos Homes,Permanent Nursing,Fairview Court,750.40, 04-May-2021
1539,Revenue,CAHD,South - Commissioned Services,Permanent Residential,Fairview Court,4141.76, 04-May-2021
1540,Revenue,CAHD,South Glos Users in South Glos Homes,Permanent Nursing,Fairview Court,750.40, 04-May-2021
1541,Revenue,CAHD,South - Commissioned Services,Permanent Nursing,Fairview Court,4910.40, 04-May-2021
1542,Revenue,CAHD,South Glos Users in South Glos Homes,Permanent Nursing,Fairview Court,1390.96, 04-May-2021
1543,Revenue,CAHD,South Glos Users in South Glos Homes,Permanent Nursing,Fairview Court,750.40, 04-May-2021
1544,Revenue,CAHD,Covid 19- Spend on behalf of NHS,Respite Planned - Nursing,Fairview Court,2963.57, 04-May-2021
1545,Revenue,CAHD,South - Commissioned Services,Permanent Nursing,Fairview Court,3887.40, 04-May-2021
1546,Revenue,CAHD,South Glos Users in South Glos Homes,Permanent Nursing,Fairview Court,750.40, 04-May-2021
1547,Revenue,CAHD,South - Commissioned Services,Permanent Nursing,Fairview Court,971.85, 04-May-2021
1548,Revenue,CAHD,North - Community based support,Permanent Residential,Fairview Court,3397.84, 04-May-2021
1549,Revenue,CAHD,South - Commissioned Services,Permanent Nursing,Fairview Court,4232.92, 04-May-2021
1550,Revenue,CAHD,South Glos Users in South Glos Homes,Permanent Nursing,Fairview Court,750.40, 04-May-2021
1551,Revenue,CAHD,South Glos Users in South Glos Homes,Permanent Nursing,Fairview Court,750.40, 04-May-2021
1552,Revenue,CAHD,South - Commissioned Services,Permanent Nursing,Fairview Court,4800.00, 04-May-2021
1553,Revenue,CAHD,South Glos Users in South Glos Homes,Permanent Nursing,Fairview Court,750.40, 04-May-2021
1554,Revenue,CAHD,South Glos Users in South Glos Homes,Permanent Nursing,Fairview Court,750.40, 04-May-2021
1555,Revenue,CAHD,South - Commissioned Services,Permanent Nursing,Fairview Court,5237.76, 04-May-2021
1556,Revenue,CAHD,South Glos Users in South Glos Homes,Permanent Nursing,Fairview Court,750.40, 04-May-2021
1557,Revenue,CAHD,South Glos Users in South Glos Homes,Permanent Nursing,Fairview Court,1865.47, 04-May-2021
1558,Revenue,CAHD,South Glos Users in South Glos Homes,Permanent Nursing,Fairview Court,750.40, 04-May-2021
1559,Revenue,CAHD,South - Commissioned Services,Permanent Nursing,Fairview Court,3635.08, 04-May-2021
1560,Revenue,CAHD,South Glos Users in South Glos Homes,Permanent Nursing,Fairview Court,750.40, 04-May-2021
1561,Revenue,CAHD,North - Community based support,Permanent Nursing,Fairview Court,3976.16, 04-May-2021
1562,Revenue,CAHD,South Glos Users in South Glos Homes,Permanent Nursing,Fairview Court,750.40, 04-May-2021
1563,Revenue,CAHD,Covid 19- Spend on behalf of NHS,Respite Planned - Nursing,Fairview Court,1975.71, 04-May-2021
1564,Revenue,CAHD,South - Commissioned Services,Permanent Nursing,Fairview Court,3701.96, 04-May-2021
1565,Revenue,CAHD,South Glos Users in South Glos Homes,Permanent Nursing,Fairview Court,750.40, 04-May-2021
1566,Revenue,CAHD,South - Commissioned Services,Permanent Nursing,Fairview Court,4120.64, 04-May-2021
1567,Revenue,CAHD,South Glos Users in South Glos Homes,Permanent Nursing,Fairview Court,750.40, 04-May-2021
1568,Revenue,CAHD,South - Commissioned Services,Permanent Nursing,Fairview Court,4232.92, 04-May-2021
1569,Revenue,CAHD,South Glos Users in South Glos Homes,Permanent Nursing,Fairview Court,750.40, 04-May-2021
1570,Revenue,CAHD,Covid - ASC - Infection Control,Grants to Voluntary Bodies,Fairview Court,11717.10, 10-May-2021
1571,Revenue,CAHD,ASC Rapid Testing Fund,Grants to Voluntary Bodies,Fairview Court,9171.65, 10-May-2021
1572,Revenue,CAHD,South - Commissioned Services,Permanent Residential,Fairview House,3800.00, 04-May-2021
1573,Revenue,CAHD,South - Commissioned Services,Permanent Residential,Fairview House,3257.14, 04-May-2021
1574,Revenue,CAHD,South - Commissioned Services,Permanent Residential,Fairview House,950.00, 04-May-2021
1575,Revenue,CAHD,South - Commissioned Services,Permanent Residential,Fairview House,2403.64, 04-May-2021
1576,Revenue,CAHD,South - Commissioned Services,Permanent Residential,Fairview House,3478.20, 04-May-2021
1577,Revenue,CAHD,South - Commissioned Services,Permanent Residential,Fairview House,3600.00, 04-May-2021
1578,Revenue,CAHD,South - Commissioned Services,Permanent Residential,Fairview House,3800.00, 04-May-2021
1579,Revenue,CAHD,Covid 19- Spend on behalf of NHS,Respite Planned - Residential,Fairview House,6107.14, 04-May-2021
1580,Revenue,CAHD,Central - Commissioned Services,Permanent Residential,Fairview House,4478.57, 04-May-2021
1581,Revenue,CAHD,Central - Commissioned Services,Permanent Residential,Fairview House,3800.00, 04-May-2021
1582,Revenue,CAHD,Central - Commissioned Services,Permanent Residential,Fairview House,950.00, 04-May-2021
1583,Revenue,CAHD,Covid - ASC - Infection Control,Grants to Voluntary Bodies,Fairview House,5738.99, 10-May-2021
1584,Revenue,CAHD,ASC Rapid Testing Fund,Grants to Voluntary Bodies,Fairview House,4492.24, 10-May-2021
1585,Revenue,CAHD,North - Community based support,Permanent Residential,Faith House,3682.80, 04-May-2021
1586,Revenue,CAHD,North - Community based support,Permanent Residential,Faith House,2927.72, 04-May-2021
1587,Revenue,CAHD,Central - Commissioned Services,Permanent Residential,Faith House,3128.00, 04-May-2021
1588,Revenue,CAHD,North - Community based support,Permanent Residential,Faith House,3109.52, 04-May-2021
1589,Revenue,CAHD,South - Commissioned Services,Permanent Residential,Faith House,3026.04, 04-May-2021
1590,Revenue,CAHD,Covid - ASC - Infection Control,Grants to Voluntary Bodies,Faith House,2391.25, 21-May-2021
1591,Revenue,CAHD,ASC Rapid Testing Fund,Grants to Voluntary Bodies,Faith House,1871.77, 21-May-2021
1592,Revenue,CAHD,CSC - Asylum Seekers - Unaccompanied,Leaving Care,Individual,900.00, 28-May-2021
1593,Revenue,CAHD,"Education, Learning and Skills",Fees - General,FFT Education Ltd,12549.35, 27-May-2021
1594,Revenue,CAHD,"Education, Learning and Skills",Fees - General,FFT Education Ltd,1863.75, 14-May-2021
1595,Revenue,CAHD,North - Community based support,Permanent Nursing,Field House Care Home,3403.60, 04-May-2021
1596,Revenue,CAHD,North - Community based support,Permanent Nursing,Field House Care Home,3589.48, 04-May-2021
1597,Revenue,CAHD,Central - Commissioned Services,Permanent Nursing,Field House Care Home,3760.00, 04-May-2021
1598,Revenue,CAHD,North - Community based support,Permanent Nursing,Field House Care Home,14105.52, 04-May-2021
1599,Revenue,CAHD,Central - Commissioned Services,Permanent Nursing,Field House Care Home,3740.00, 04-May-2021
1600,Revenue,CAHD,North - Community based support,Permanent Nursing,Field House Care Home,2271.72, 04-May-2021
1601,Revenue,CAHD,Central - Commissioned Services,Permanent Nursing,Field House Care Home,3740.00, 04-May-2021
1602,Revenue,CAHD,North - Community based support,Permanent Nursing,Field House Care Home,2271.72, 04-May-2021
1603,Revenue,CAHD,North - Community based support,Permanent Nursing,Field House Care Home,3506.00, 04-May-2021
1604,Revenue,CAHD,Statemented Support Payments to OLAs,Other L.A.s - General,Filton Avenue Primary School,1131.84, 21-May-2021
1605,Revenue,CAHD,Schools Specific Grant Income,Other Public Bodies,Filton Avenue Primary School,630.00, 14-May-2021
1606,Revenue,CAHD,Statemented Support Payments to OLAs,Other L.A.s - General,Filton Avenue Primary School,1332.27, 21-May-2021
1607,Revenue,CAHD,South - Commissioned Services,Respite Emergency - Residential,First Floor  Lingfield House,11491.20, 04-May-2021
1608,Revenue,CAHD,South Glos Users in South Glos Homes,Permanent Nursing,First Floor  Lingfield House,5044.66, 04-May-2021
1609,Revenue,CAHD,South - Commissioned Services,Permanent Nursing,First Floor  Lingfield House,3846.48, 04-May-2021
1610,Revenue,CAHD,South Glos Users in South Glos Homes,Permanent Nursing,First Floor  Lingfield House,750.40, 04-May-2021
1611,Revenue,CAHD,South - Commissioned Services,Permanent Nursing,First Floor  Lingfield House,3480.00, 04-May-2021
1612,Revenue,CAHD,South - Commissioned Services,Permanent Residential,First Floor  Lingfield House,4958.57, 04-May-2021
1613,Revenue,CAHD,South - Commissioned Services,Permanent Residential,First Floor  Lingfield House,3560.00, 04-May-2021
1614,Revenue,CAHD,South - Commissioned Services,Permanent Residential,First Floor  Lingfield House,890.00, 04-May-2021
1615,Revenue,CAHD,Covid 19- Spend on behalf of NHS,Respite Planned - Nursing,First Floor  Lingfield House,3800.00, 04-May-2021
1616,Revenue,CAHD,Covid 19- Spend on behalf of NHS,Respite Planned - Nursing,First Floor  Lingfield House,1628.57, 04-May-2021
1617,Revenue,CAHD,Covid 19- Spend on behalf of NHS,Respite Planned - Nursing,First Floor  Lingfield House,5700.00, 04-May-2021
1618,Revenue,CAHD,South - Commissioned Services,Permanent Nursing,First Floor  Lingfield House,2613.12, 04-May-2021
1619,Revenue,CAHD,South Glos Users in South Glos Homes,Permanent Nursing,First Floor  Lingfield House,750.40, 04-May-2021
1620,Revenue,CAHD,South Glos Users in South Glos Homes,Permanent Nursing,First Floor  Lingfield House,750.40, 04-May-2021
1621,Revenue,CAHD,Covid 19- Spend on behalf of NHS,Respite Planned - Nursing,First Floor  Lingfield House,5564.29, 04-May-2021
1622,Revenue,CAHD,South - Commissioned Services,Permanent Residential,First Floor  Lingfield House,3160.00, 04-May-2021
1623,Revenue,CAHD,Covid 19- Spend on behalf of NHS,Respite Planned - Nursing,First Floor  Lingfield House,1900.00, 04-May-2021
1624,Revenue,CAHD,Covid 19- Spend on behalf of NHS,Respite Planned - Nursing,First Floor  Lingfield House,3528.57, 04-May-2021
1625,Revenue,CAHD,Covid 19- Spend on behalf of NHS,Respite Planned - Nursing,First Floor  Lingfield House,2171.43, 04-May-2021
1626,Revenue,CAHD,Covid 19- Spend on behalf of NHS,Respite Planned - Nursing,First Floor  Lingfield House,2985.71, 04-May-2021
1627,Revenue,CAHD,Covid 19- Spend on behalf of NHS,Respite Planned - Nursing,First Floor  Lingfield House,1764.29, 04-May-2021
1628,Revenue,CAHD,Covid 19- Spend on behalf of NHS,Respite Planned - Nursing,First Floor  Lingfield House,950.00, 04-May-2021
1629,Revenue,CAHD,South - Commissioned Services,Permanent Nursing,First Floor  Lingfield House,3357.14, 04-May-2021
1630,Revenue,CAHD,South - Commissioned Services,Fees & Charges Income - General,First Floor  Lingfield House,595.71, 04-May-2021
1631,Revenue,CAHD,South - Commissioned Services,Permanent Residential,First Floor  Lingfield House,3360.00, 04-May-2021
1632,Revenue,CAHD,South - Commissioned Services,Permanent Residential,First Floor  Lingfield House,3480.00, 04-May-2021
1633,Revenue,CAHD,Covid - ASC - Infection Control,Grants to Voluntary Bodies,First Floor  Lingfield House,5738.99, 21-May-2021
1634,Revenue,CAHD,ASC Rapid Testing Fund,Grants to Voluntary Bodies,First Floor  Lingfield House,4492.24, 21-May-2021
1635,Revenue,CAHD,North - Community based support,Permanent Residential,First Floor  Q4  The Square,8810.20, 04-May-2021
1636,Revenue,CAHD,Jointly Funded H&SC Packages,Permanent Residential,First Floor  Q4  The Square,5594.24, 04-May-2021
1637,Revenue,CAHD,North - Community based support,Permanent Residential,First Floor  Q4  The Square,8531.24, 04-May-2021
1638,Revenue,CAHD,Jointly Funded H&SC Packages,Permanent Residential,First Floor  Q4  The Square,2577.68, 04-May-2021
1639,Revenue,CAHD,Early Years High Needs Support,Other Private Contractors,First Steps Day Nursery,910.07, 21-May-2021
1640,Revenue,CAHD,Homeless - Private Sector Leasing,Prop.Serv. General Repairs,Fishponds Property Maintenance,1695.00, 12-May-2021
1641,Revenue,CAHD,CSC - Agency Fostering,Foster Parent Allowances,Five Rivers Child Care Limited,2223.76, 28-May-2021
1642,Revenue,CAHD,CSC - Agency Fostering,Foster Parent Allowances,Five Rivers Child Care Limited,3554.46, 28-May-2021
1643,Revenue,CAHD,CSC - Agency Fostering,Foster Parent Allowances,Five Rivers Child Care Limited,3439.80, 24-May-2021
1644,Revenue,CAHD,CSC - Agency Fostering,Foster Parent Allowances,Five Rivers Child Care Limited,3510.00, 11-May-2021
1645,Revenue,CAHD,CSC - Agency Fostering,Foster Parent Allowances,Five Rivers Child Care Limited,3481.80, 24-May-2021
1646,Revenue,CAHD,CSC - Agency Fostering,Foster Parent Allowances,Five Rivers Child Care Limited,2152.03, 24-May-2021
1647,Revenue,CAHD,CSC - Agency Fostering,Foster Parent Allowances,Five Rivers Child Care Limited,3510.00, 11-May-2021
1648,Revenue,CAHD,CSC - Residential Placements,Permanent Residential,Five Rivers Child Care Limited,17537.14, 19-May-2021
1649,Revenue,CAHD,CSC - Agency Fostering,Foster Parent Allowances,Five Rivers Child Care Limited,2223.76, 28-May-2021
1650,Revenue,CAHD,CSC - Agency Fostering,Foster Parent Allowances,Five Rivers Child Care Limited,3627.00, 28-May-2021
1651,Revenue,CAHD,CSC - Agency Fostering,Foster Parent Allowances,Foster Care Associates Limited,3733.80, 17-May-2021
1652,Revenue,CAHD,CSC - Agency Fostering,Foster Parent Allowances,Foster Care Associates Limited,3648.30, 14-May-2021
1653,Revenue,CAHD,CSC - Agency Fostering,Foster Parent Allowances,Foster Care Associates Limited,3810.00, 14-May-2021
1654,Revenue,CAHD,CSC - Agency Fostering,Foster Parent Allowances,Fostering Matters Ltd,3407.10, 17-May-2021
1655,Revenue,CAHD,CSC - Agency Fostering,Foster Parent Allowances,Fostering Matters Ltd,3407.10, 17-May-2021
1656,Revenue,CAHD,Covid-19 Free School Meals,Grant Income - Government Depts,Four Towns Play Association,731.73, 19-May-2021
1657,Revenue,CAHD,Central - Commissioned Services,Other Small Contracts,Fourways Care Limited,582.68, 11-May-2021
1658,Revenue,CAHD,South - Commissioned Services,Other Small Contracts,Fourways Care Limited,727.16, 11-May-2021
1659,Revenue,CAHD,North - Community based support,Other Small Contracts,Fourways Care Limited,9516.60, 11-May-2021
1660,Revenue,CAHD,Central - Commissioned Services,Other Small Contracts,Fourways Care Limited,592.86, 14-May-2021
1661,Revenue,CAHD,South - Commissioned Services,Other Small Contracts,Fourways Care Limited,890.04, 14-May-2021
1662,Revenue,CAHD,North - Community based support,Other Small Contracts,Fourways Care Limited,8800.73, 14-May-2021
1663,Revenue,CAHD,Central - Commissioned Services,Other Small Contracts,Fourways Care Limited,597.95, 20-May-2021
1664,Revenue,CAHD,South - Commissioned Services,Other Small Contracts,Fourways Care Limited,996.93, 20-May-2021
1665,Revenue,CAHD,North - Community based support,Other Small Contracts,Fourways Care Limited,8922.89, 20-May-2021
1666,Revenue,CAHD,Central - Commissioned Services,Other Small Contracts,Fourways Care Limited,592.86, 27-May-2021
1667,Revenue,CAHD,South - Commissioned Services,Other Small Contracts,Fourways Care Limited,945.12, 27-May-2021
1668,Revenue,CAHD,North - Community based support,Other Small Contracts,Fourways Care Limited,9153.19, 27-May-2021
1669,Revenue,CAHD,Covid - ASC - Infection Control,Grants to Voluntary Bodies,Fourways Care Limited,5552.37, 17-May-2021
1670,Revenue,CAHD,North - Community based support,Other Small Contracts,Freeways Trust Limited,869.00, 19-May-2021
1671,Revenue,CAHD,North - Community based support,Other Small Contracts,Freeways Trust Limited,553.00, 19-May-2021
1672,Revenue,CAHD,North - Community based support,Other Small Contracts,Freeways Trust Limited,714.96, 19-May-2021
1673,Revenue,CAHD,Central - Commissioned Services,Permanent Residential,Freeways Trust Ltd,4059.28, 04-May-2021
1674,Revenue,CAHD,Central - Commissioned Services,Permanent Residential,Freeways Trust Ltd,4098.72, 04-May-2021
1675,Revenue,CAHD,Central - Commissioned Services,Permanent Residential,Freeways Trust Ltd,4564.92, 04-May-2021
1676,Revenue,CAHD,Central - Commissioned Services,Permanent Residential,Freeways Trust Ltd,5270.84, 04-May-2021
1677,Revenue,CAHD,North - Community based support,Permanent Residential,Freeways Trust Ltd,4101.56, 04-May-2021
1678,Revenue,CAHD,Central - Commissioned Services,Permanent Residential,Freeways Trust Ltd,4379.80, 04-May-2021
1679,Revenue,CAHD,South - Commissioned Services,Permanent Residential,Freeways Trust Ltd,4533.88, 04-May-2021
1680,Revenue,CAHD,Central - Commissioned Services,Permanent Residential,Freeways Trust Ltd,4098.72, 04-May-2021
1681,Revenue,CAHD,Central - Commissioned Services,Permanent Residential,Freeways Trust Ltd,4098.72, 04-May-2021
1682,Revenue,CAHD,North - Community based support,Permanent Residential,Freeways Trust Ltd,4101.56, 04-May-2021
1683,Revenue,CAHD,Central - Commissioned Services,Permanent Residential,Freeways Trust Ltd,6129.72, 04-May-2021
1684,Revenue,CAHD,Covid - ASC - Infection Control,Grants to Voluntary Bodies,Freeways Trust Ltd,3825.99, 17-May-2021
1685,Revenue,CAHD,ASC Rapid Testing Fund,Grants to Voluntary Bodies,Freeways Trust Ltd,2994.83, 17-May-2021
1686,Revenue,CAHD,North - Community based support,Supported Living,Freeways Trust Ltd,882.28, 04-May-2021
1687,Revenue,CAHD,S28A cases,Permanent Residential,Freeways Trust Ltd,5210.44, 04-May-2021
1688,Revenue,CAHD,North - Community based support,Permanent Residential,Freeways Trust Ltd,3853.72, 04-May-2021
1689,Revenue,CAHD,North - Community based support,Permanent Residential,Freeways Trust Ltd,3380.28, 04-May-2021
1690,Revenue,CAHD,North - Community based support,Permanent Residential,Freeways Trust Ltd,3792.12, 04-May-2021
1691,Revenue,CAHD,North - Community based support,Permanent Residential,Freeways Trust Ltd,3768.80, 04-May-2021
1692,Revenue,CAHD,Section 117 Placements MH Younger,Permanent Residential,Freeways Trust Ltd,3419.16, 04-May-2021
1693,Revenue,CAHD,Central - Commissioned Services,Day Care / Social Activities,Frenchay Beckspool Building,1978.00, 04-May-2021
1694,Revenue,CAHD,South - Commissioned Services,Day Care / Social Activities,Frenchay Beckspool Building,941.60, 04-May-2021
1695,Revenue,CAHD,South - Commissioned Services,Day Care / Social Activities,Frenchay Beckspool Building,667.88, 04-May-2021
1696,Revenue,CAHD,North - Community based support,Day Care / Social Activities,Frenchay Beckspool Building,570.61, 04-May-2021
1697,Revenue,CAHD,North - Community based support,Permanent Nursing,Frenchay Park Nursing Home,3400.00, 04-May-2021
1698,Revenue,CAHD,Early Years High Needs Support,Other Private Contractors,Frenchay Pre School Playgroup,637.05, 21-May-2021
1699,Revenue,CAHD,Drug and Alcohol Programme,Other Supplies & Services,Frontier NX Ltd,1800.00, 25-May-2021
1700,Revenue,CAHD,CSC - Social Work Team - CENTRAL,Agency Staff (Admin/Support Staff) Pay,Frontline Staffing Ltd,1733.93, 04-May-2021
1701,Revenue,CAHD,CSC - Through & Leaving Care Team,Agency Staff (Admin/Support Staff) Pay,Frontline Staffing Ltd,1871.60, 07-May-2021
1702,Revenue,CAHD,CSC - Through & Leaving Care Team,Agency Staff (Admin/Support Staff) Pay,Frontline Staffing Ltd,1614.26, 07-May-2021
1703,Revenue,CAHD,CSC - Through & Leaving Care Team,Agency Staff (Admin/Support Staff) Pay,Frontline Staffing Ltd,1871.60, 20-May-2021
1704,Revenue,CAHD,CSC - Through & Leaving Care Team,Agency Staff (Admin/Support Staff) Pay,Frontline Staffing Ltd,1766.32, 20-May-2021
1705,Revenue,CAHD,CSC - Through & Leaving Care Team,Agency Staff (Admin/Support Staff) Pay,Frontline Staffing Ltd,1450.49, 28-May-2021
1706,Revenue,CAHD,CSC - Parent & Child Assessments,Foster Parent Allowances,Fusion Fostering Ltd,2192.86, 26-May-2021
1707,Revenue,CAHD,CSC - Parent & Child Assessments,Foster Parent Allowances,Fusion Fostering Ltd,2192.86, 26-May-2021
1708,Revenue,CAHD,CSC - Parent & Child Assessments,Foster Parent Allowances,Fusion Fostering Ltd,6578.57, 26-May-2021
1709,Revenue,CAHD,CSC - Parent & Child Assessments,Foster Parent Allowances,Fusion Fostering Ltd,2278.57, 26-May-2021
1710,Revenue,CAHD,CSC - Parent & Child Assessments,Foster Parent Allowances,Fusion Fostering Ltd,6835.71, 27-May-2021
1711,Revenue,CAHD,CSC - Section 17 0-25,Preventative Assistance,Future Sports Development,560.00, 07-May-2021
1712,Revenue,CAHD,North - Community based support,Supported Living,Gladstone House,3312.12, 04-May-2021
1713,Revenue,CAHD,18-25 Year Olds,Supported Living,Gladstone House,3312.12, 04-May-2021
1714,Revenue,CAHD,South - Commissioned Services,Permanent Residential,Gladstone House,5999.84, 04-May-2021
1715,Revenue,CAHD,MH Purchasing - Younger,Permanent Residential,Gladstone House,3135.90, 04-May-2021
1716,Revenue,CAHD,Jointly Funded H&SC Packages,Permanent Residential,Gladstone House,783.98, 04-May-2021
1717,Revenue,CAHD,North - Community based support,Permanent Residential,Glan Y Felin,6803.40, 04-May-2021
1718,Revenue,CAHD,South - Commissioned Services,Permanent Residential,Glasallt Fawr,5550.16, 04-May-2021
1719,Revenue,CAHD,North - Community based support,Permanent Nursing,Glebe House Nursing Home,3823.40, 04-May-2021
1720,Revenue,CAHD,South Glos Users in South Glos Homes,Permanent Nursing,Glebe House Nursing Home,750.40, 04-May-2021
1721,Revenue,CAHD,North - Community based support,Permanent Nursing,Glebe House Nursing Home,4145.80, 04-May-2021
1722,Revenue,CAHD,South Glos Users in South Glos Homes,Permanent Nursing,Glebe House Nursing Home,750.40, 04-May-2021
1723,Revenue,CAHD,South Glos Users in South Glos Homes,Permanent Nursing,Glebe House Nursing Home,750.40, 04-May-2021
1724,Revenue,CAHD,South Glos Users in South Glos Homes,Permanent Nursing,Glebe House Nursing Home,750.40, 04-May-2021
1725,Revenue,CAHD,North - Community based support,Permanent Residential,Glebe House Nursing Home,3531.43, 04-May-2021
1726,Revenue,CAHD,North - Community based support,Permanent Residential,Glebe House Nursing Home,2501.43, 04-May-2021
1727,Revenue,CAHD,North - Community based support,Permanent Residential,Glebe House Nursing Home,1030.00, 04-May-2021
1728,Revenue,CAHD,North - Community based support,Permanent Residential,Glebe House Nursing Home,588.57, 04-May-2021
1729,Revenue,CAHD,North - Community based support,Permanent Nursing,Glebe House Nursing Home,4090.36, 04-May-2021
1730,Revenue,CAHD,South Glos Users in South Glos Homes,Permanent Nursing,Glebe House Nursing Home,750.40, 04-May-2021
1731,Revenue,CAHD,North - Community based support,Permanent Residential,Glebe House Nursing Home,4000.48, 04-May-2021
1732,Revenue,CAHD,South Glos Users in South Glos Homes,Permanent Nursing,Glebe House Nursing Home,750.40, 04-May-2021
1733,Revenue,CAHD,North - Community based support,Permanent Nursing,Glebe House Nursing Home,4141.72, 04-May-2021
1734,Revenue,CAHD,South Glos Users in South Glos Homes,Permanent Nursing,Glebe House Nursing Home,750.40, 04-May-2021
1735,Revenue,CAHD,Central - Commissioned Services,Permanent Residential,Glebe House Nursing Home,4071.56, 04-May-2021
1736,Revenue,CAHD,South Glos Users in South Glos Homes,Permanent Nursing,Glebe House Nursing Home,750.40, 04-May-2021
1737,Revenue,CAHD,Central - Commissioned Services,Permanent Nursing,Glebe House Nursing Home,4120.00, 04-May-2021
1738,Revenue,CAHD,North - Community based support,Permanent Nursing,Glebe House Nursing Home,4173.84, 04-May-2021
1739,Revenue,CAHD,South Glos Users in South Glos Homes,Permanent Nursing,Glebe House Nursing Home,750.40, 04-May-2021
1740,Revenue,CAHD,South Glos Users in South Glos Homes,Permanent Nursing,Glebe House Nursing Home,750.40, 04-May-2021
1741,Revenue,CAHD,North - Community based support,Permanent Nursing,Glebe House Nursing Home,4132.28, 04-May-2021
1742,Revenue,CAHD,South Glos Users in South Glos Homes,Permanent Nursing,Glebe House Nursing Home,750.40, 04-May-2021
1743,Revenue,CAHD,South Glos Users in South Glos Homes,Permanent Nursing,Glebe House Nursing Home,750.40, 04-May-2021
1744,Revenue,CAHD,North - Community based support,Permanent Nursing,Glebe House Nursing Home,4173.84, 04-May-2021
1745,Revenue,CAHD,South Glos Users in South Glos Homes,Permanent Nursing,Glebe House Nursing Home,750.40, 04-May-2021
1746,Revenue,CAHD,North - Community based support,Permanent Residential,Glebe House Nursing Home,5167.40, 04-May-2021
1747,Revenue,CAHD,South Glos Users in South Glos Homes,Permanent Nursing,Glebe House Nursing Home,750.40, 04-May-2021
1748,Revenue,CAHD,South Glos Users in South Glos Homes,Permanent Nursing,Glebe House Nursing Home,750.40, 04-May-2021
1749,Revenue,CAHD,South Glos Users in South Glos Homes,Permanent Nursing,Glebe House Nursing Home,750.40, 04-May-2021
1750,Revenue,CAHD,South Glos Users in South Glos Homes,Permanent Nursing,Glebe House Nursing Home,750.40, 04-May-2021
1751,Revenue,CAHD,South Glos Users in South Glos Homes,Permanent Nursing,Glebe House Nursing Home,750.40, 04-May-2021
1752,Revenue,CAHD,South Glos Users in South Glos Homes,Permanent Nursing,Glebe House Nursing Home,750.40, 04-May-2021
1753,Revenue,CAHD,South Glos Users in South Glos Homes,Permanent Nursing,Glebe House Nursing Home,551.76, 04-May-2021
1754,Revenue,CAHD,South Glos Users in South Glos Homes,Permanent Nursing,Glebe House Nursing Home,750.40, 04-May-2021
1755,Revenue,CAHD,Covid - ASC - Infection Control,Grants to Voluntary Bodies,Glebe House Nursing Home,12673.60, 10-May-2021
1756,Revenue,CAHD,ASC Rapid Testing Fund,Grants to Voluntary Bodies,Glebe House Nursing Home,9920.36, 10-May-2021
1757,Revenue,CAHD,Central - Commissioned Services,Permanent Nursing,Glenview Care Home,3224.00, 04-May-2021
1758,Revenue,CAHD,South - Commissioned Services,Permanent Nursing,Glenview Care Home,3220.00, 04-May-2021
1759,Revenue,CAHD,South - Commissioned Services,Permanent Nursing,Glenview Care Home,2984.00, 04-May-2021
1760,Revenue,CAHD,North - Community based support,Permanent Nursing,Glenview Care Home,3600.00, 04-May-2021
1761,Revenue,CAHD,South - Commissioned Services,Permanent Residential,Gordena Care Home,4111.36, 04-May-2021
1762,Revenue,CAHD,South - Commissioned Services,Permanent Residential,Gordena Care Home,2855.04, 04-May-2021
1763,Revenue,CAHD,South - Commissioned Services,Permanent Residential,Gordena Care Home,4064.72, 04-May-2021
1764,Revenue,CAHD,South - Commissioned Services,Permanent Residential,Gordena Care Home,4077.12, 04-May-2021
1765,Revenue,CAHD,Covid - ASC - Infection Control,Grants to Voluntary Bodies,Gordena Care Home,2152.12, 10-May-2021
1766,Revenue,CAHD,ASC Rapid Testing Fund,Grants to Voluntary Bodies,Gordena Care Home,1684.59, 10-May-2021
1767,Revenue,CAHD,South - Commissioned Services,Supported Living,Granville House,1985.24, 04-May-2021
1768,Revenue,CAHD,18-25 Year Olds,Supported Living,Granville House,1985.24, 04-May-2021
1769,Revenue,CAHD,South - Commissioned Services,Supported Living,Granville House,1985.84, 04-May-2021
1770,Revenue,CAHD,South - Commissioned Services,Supported Living,Granville House,1984.96, 04-May-2021
1771,Revenue,CAHD,North - S117,Permanent Nursing,Grasmere Rest Home,3800.00, 04-May-2021
1772,Revenue,CAHD,CSC - Asylum Seekers - Unaccompanied,Foster Parent Allowances,Greater London Fostering,3403.50, 17-May-2021
1773,Revenue,CAHD,CSC - Residential Placements,Permanent Residential,Greenfields Adolecent Development Limited,21214.20, 12-May-2021
1774,Revenue,CAHD,CSC - Residential Placements,Permanent Residential,Greenfields Adolecent Development Limited,21214.20, 12-May-2021
1775,Revenue,CAHD,Statemented Support Academies,Other Public Bodies,Greenshaw Learning Trust T/A Woodlands Primary,932.17, 24-May-2021
1776,Revenue,CAHD,Statemented Support Academies,Other Public Bodies,Greenshaw Learning Trust T/A Woodlands Primary,554.13, 24-May-2021
1777,Revenue,CAHD,Statemented Support Academies,Other Public Bodies,Greenshaw Learning Trust T/A Woodlands Primary,1072.89, 24-May-2021
1778,Revenue,CAHD,Statemented Support Academies,Other Public Bodies,Greenshaw Learning Trust T/A Woodlands Primary,577.71, 24-May-2021
1779,Revenue,CAHD,Statemented Support Academies,Other Public Bodies,Greenshaw Learning Trust T/A Woodlands Primary,837.09, 24-May-2021
1780,Revenue,CAHD,Statemented Support Academies,Other Public Bodies,Greenshaw Learning Trust T/A Woodlands Primary,742.77, 24-May-2021
1781,Revenue,CAHD,Statemented Support Academies,Other Public Bodies,Greenshaw Learning Trust T/A Woodlands Primary,778.14, 24-May-2021
1782,Revenue,CAHD,Statemented Support Academies,Other Public Bodies,Greenshaw Learning Trust T/A Woodlands Primary,860.67, 24-May-2021
1783,Revenue,CAHD,Academy Resource Base Funding,Other Public Bodies,Greenshaw Learning Trust T/A Woodlands Primary,648.70, 24-May-2021
1784,Revenue,CAHD,Academy Resource Base Funding,Other Public Bodies,Greenshaw Learning Trust T/A Woodlands Primary,1175.87, 24-May-2021
1785,Revenue,CAHD,Statemented Support Academies,Other Public Bodies,Greenshaw Learning Trust T/A Yate Academy,526.83, 24-May-2021
1786,Revenue,CAHD,Statemented Support Academies,Other Public Bodies,Greenshaw Learning Trust T/A Yate Academy,589.50, 24-May-2021
1787,Revenue,CAHD,Statemented Support Academies,Other Public Bodies,Greenshaw Learning Trust T/A Yate Academy,707.40, 24-May-2021
1788,Revenue,CAHD,Statemented Support Academies,Other Public Bodies,Greenshaw Learning Trust T/A Yate Academy,1320.48, 24-May-2021
1789,Revenue,CAHD,Statemented Support Academies,Other Public Bodies,Greenshaw Learning Trust T/A Yate Academy,1320.48, 24-May-2021
1790,Revenue,CAHD,Statemented Support Academies,Other Public Bodies,Greenshaw Learning Trust T/A Yate Academy,1209.92, 24-May-2021
1791,Revenue,CAHD,Statemented Support Academies,Other Public Bodies,Greenshaw Learning Trust T/A Yate Academy,1072.89, 24-May-2021
1792,Revenue,CAHD,Statemented Support Academies,Other Public Bodies,Greenshaw Learning Trust T/A Yate Academy,801.72, 24-May-2021
1793,Revenue,CAHD,Statemented Support Academies,Other Public Bodies,Greenshaw Learning Trust T/A Yate Academy,541.58, 24-May-2021
1794,Revenue,CAHD,Statemented Support Academies,Other Public Bodies,Greenshaw Learning Trust T/A Yate Academy,601.29, 24-May-2021
1795,Revenue,CAHD,Statemented Support Academies,Other Public Bodies,Greenshaw Learning Trust T/A Yate Academy,673.50, 24-May-2021
1796,Revenue,CAHD,Statemented Support Academies,Other Public Bodies,Greenshaw Learning Trust T/A Yate Academy,624.87, 24-May-2021
1797,Revenue,CAHD,Statemented Support Academies,Other Public Bodies,Greenshaw Learning Trust T/A Yate Academy,624.87, 24-May-2021
1798,Revenue,CAHD,Academy Resource Base Funding,Other Public Bodies,Greenshaw Learning Trust T/A Yate Academy,849.32, 24-May-2021
1799,Revenue,CAHD,Academy Resource Base Funding,Other Public Bodies,Greenshaw Learning Trust T/A Yate Academy,1540.83, 24-May-2021
1800,Revenue,CAHD,Academy Resource Base Funding,Other Public Bodies,Greenshaw Learning Trust T/A Yate Academy,1013.74, 24-May-2021
